Body Name,Body,Date,Department,Beneficiary,Summary of Purpose (SerCOP),Amount,Merchant Code,Transaction Number,Supplier ID
Sandwell Metropolitan Borough Council,http://www.sandwell.gov.uk/info/200202/performance_and_spending/1079/payments_over_500,01-Sep-2021,Adults Social Care Capital,RIDGE & PARTNERS LLP,Adults Social Care Capital,1500.00,"CIP - New Construction,Conversion, Enhancement & Reno",2122P06_CR00001,134994
Sandwell Metropolitan Borough Council,http://www.sandwell.gov.uk/info/200202/performance_and_spending/1079/payments_over_500,01-Sep-2021,Adults Social Care Capital,DOLPHIN LIFTS MIDLANDS LTD,Adults Social Care Capital,1600.00,Deferred Charges/Grant Payments,2122P06_CR00002,123852
Sandwell Metropolitan Borough Council,http://www.sandwell.gov.uk/info/200202/performance_and_spending/1079/payments_over_500,01-Sep-2021,Adults Social Care Capital,PR PROPERTY MAINTENANCE,Adults Social Care Capital,1650.00,Deferred Charges/Grant Payments,2122P06_CR00003,33836
Sandwell Metropolitan Borough Council,http://www.sandwell.gov.uk/info/200202/performance_and_spending/1079/payments_over_500,10-Sep-2021,Adults Social Care Capital,DOLPHIN LIFTS MIDLANDS LTD,Adults Social Care Capital,2769.25,Deferred Charges/Grant Payments,2122P06_CR00004,123852
Sandwell Metropolitan Borough Council,http://www.sandwell.gov.uk/info/200202/performance_and_spending/1079/payments_over_500,10-Sep-2021,Adults Social Care Capital,DOLPHIN LIFTS MIDLANDS LTD,Adults Social Care Capital,3318.94,Deferred Charges/Grant Payments,2122P06_CR00005,123852
Sandwell Metropolitan Borough Council,http://www.sandwell.gov.uk/info/200202/performance_and_spending/1079/payments_over_500,01-Sep-2021,Adults Social Care Capital,DLM BUILDING & MAINTENANCE LTD,Adults Social Care Capital,4688.00,CIP - Infrastructure,2122P06_CR00006,137596
Sandwell Metropolitan Borough Council,http://www.sandwell.gov.uk/info/200202/performance_and_spending/1079/payments_over_500,01-Sep-2021,Adults Social Care Capital,LIFT & ENGINEERING SERVICES LTD,Adults Social Care Capital,4727.18,"CIP - New Construction,Conversion, Enhancement & Reno",2122P06_CR00007,77003962
Sandwell Metropolitan Borough Council,http://www.sandwell.gov.uk/info/200202/performance_and_spending/1079/payments_over_500,10-Sep-2021,Adults Social Care Capital,AXIS EUROPE PLC                                                           02,Adults Social Care Capital,4764.82,Deferred Charges/Grant Payments,2122P06_CR00008,64946
Sandwell Metropolitan Borough Council,http://www.sandwell.gov.uk/info/200202/performance_and_spending/1079/payments_over_500,06-Sep-2021,Adults Social Care Capital,LIFT & ENGINEERING SERVICES LTD,Adults Social Care Capital,5910.13,"CIP - New Construction,Conversion, Enhancement & Reno",2122P06_CR00009,77003962
Sandwell Metropolitan Borough Council,http://www.sandwell.gov.uk/info/200202/performance_and_spending/1079/payments_over_500,01-Sep-2021,Adults Social Care Capital,PR PROPERTY MAINTENANCE,Adults Social Care Capital,12888.68,Deferred Charges/Grant Payments,2122P06_CR00010,33836
Sandwell Metropolitan Borough Council,http://www.sandwell.gov.uk/info/200202/performance_and_spending/1079/payments_over_500,14-Sep-2021,Adults Social Care Capital,WILLMOTT DIXON CONSTRUCTION LIMITED,Adults Social Care Capital,667059.33,"CIP - New Construction,Conversion, Enhancement & Reno",2122P06_CR00011,34081
Sandwell Metropolitan Borough Council,http://www.sandwell.gov.uk/info/200202/performance_and_spending/1079/payments_over_500,10-Sep-2021,Adults Social Care Capital,MARY HACKETT & ASSOCIATES LTD,Adults Social Care Capital,7395.00,Deferred Charges/Grant Payments,2122P06_CR00012,149837
Sandwell Metropolitan Borough Council,http://www.sandwell.gov.uk/info/200202/performance_and_spending/1079/payments_over_500,09-Sep-2021,Adults Social Care Capital,MARY HACKETT & ASSOCIATES LTD,Adults Social Care Capital,7500.00,Deferred Charges/Grant Payments,2122P06_CR00013,149837
Sandwell Metropolitan Borough Council,http://www.sandwell.gov.uk/info/200202/performance_and_spending/1079/payments_over_500,01-Sep-2021,Adults Social Care Capital,REDACTED PERSONAL DATA,Adults Social Care Capital,10000.00,Deferred Charges/Grant Payments,2122P06_CR00014,REDACTED PERSONAL DATA
Sandwell Metropolitan Borough Council,http://www.sandwell.gov.uk/info/200202/performance_and_spending/1079/payments_over_500,01-Sep-2021,Adults Social Care Capital,TDF DESIGN LIMITED,Adults Social Care Capital,11041.33,Deferred Charges/Grant Payments,2122P06_CR00015,10320
Sandwell Metropolitan Borough Council,http://www.sandwell.gov.uk/info/200202/performance_and_spending/1079/payments_over_500,06-Sep-2021,Adults Social Care Capital,TDF DESIGN LIMITED,Adults Social Care Capital,13000.00,Deferred Charges/Grant Payments,2122P06_CR00016,10320
Sandwell Metropolitan Borough Council,http://www.sandwell.gov.uk/info/200202/performance_and_spending/1079/payments_over_500,08-Sep-2021,Childrens Services,SOUTH STAFFORDSHIRE COLLEGE,Childrens Services,500.00,Grants,2122P06_CR00017,13528
Sandwell Metropolitan Borough Council,http://www.sandwell.gov.uk/info/200202/performance_and_spending/1079/payments_over_500,01-Sep-2021,Childrens Services,GAYTON ROAD COMMUNITY CENTRE ASSOCIATION,Childrens Services,516.00,Hire of Facilities,2122P06_CR00018,112420
Sandwell Metropolitan Borough Council,http://www.sandwell.gov.uk/info/200202/performance_and_spending/1079/payments_over_500,01-Sep-2021,Childrens Services,BUTT TAXIS,Childrens Services,517.41,Public Transport,2122P06_CR00019,109306
Sandwell Metropolitan Borough Council,http://www.sandwell.gov.uk/info/200202/performance_and_spending/1079/payments_over_500,14-Sep-2021,Childrens Services,TOTALENERGIES GAS & POWER LTD,Childrens Services,538.55,Electricity,2122P06_CR00020,107605
Sandwell Metropolitan Borough Council,http://www.sandwell.gov.uk/info/200202/performance_and_spending/1079/payments_over_500,13-Sep-2021,Childrens Services,BLAKEMORE FOOD SERVICE LTD,Childrens Services,540.58,Catering Provisions,2122P06_CR00021,2518
Sandwell Metropolitan Borough Council,http://www.sandwell.gov.uk/info/200202/performance_and_spending/1079/payments_over_500,02-Sep-2021,Childrens Services,SANDWELL VALLEY RIDING CENTRE,Childrens Services,560.00,Equipment & Furniture ,2122P06_CR00022,87543
Sandwell Metropolitan Borough Council,http://www.sandwell.gov.uk/info/200202/performance_and_spending/1079/payments_over_500,02-Sep-2021,Childrens Services,CARLYLE LTD,Childrens Services,560.00,Externally Purchased Professional Services ,2122P06_CR00023,01507965
Sandwell Metropolitan Borough Council,http://www.sandwell.gov.uk/info/200202/performance_and_spending/1079/payments_over_500,01-Sep-2021,Childrens Services,JMB GLOBAL LTD,Childrens Services,560.00,Externally Purchased Professional Services ,2122P06_CR00024,152360
Sandwell Metropolitan Borough Council,http://www.sandwell.gov.uk/info/200202/performance_and_spending/1079/payments_over_500,14-Sep-2021,Childrens Services,COMMUNITY FOUNDATION,Childrens Services,560.00,Grants,2122P06_CR00025,121601
Sandwell Metropolitan Borough Council,http://www.sandwell.gov.uk/info/200202/performance_and_spending/1079/payments_over_500,01-Sep-2021,Childrens Services,SANDWELL CITIZENS ADVICE BUREAUX,Childrens Services,560.00,Grants,2122P06_CR00026,01760899
Sandwell Metropolitan Borough Council,http://www.sandwell.gov.uk/info/200202/performance_and_spending/1079/payments_over_500,01-Sep-2021,Childrens Services,SANDWELL CITIZENS ADVICE BUREAUX,Childrens Services,560.00,Grants,2122P06_CR00027,01760899
Sandwell Metropolitan Borough Council,http://www.sandwell.gov.uk/info/200202/performance_and_spending/1079/payments_over_500,16-Sep-2021,Childrens Services,KANGAROO POUCH LIMITED,Childrens Services,560.00,Grants,2122P06_CR00028,106981
Sandwell Metropolitan Borough Council,http://www.sandwell.gov.uk/info/200202/performance_and_spending/1079/payments_over_500,16-Sep-2021,Childrens Services,KANGAROO POUCH LIMITED,Childrens Services,560.00,Grants,2122P06_CR00029,106981
Sandwell Metropolitan Borough Council,http://www.sandwell.gov.uk/info/200202/performance_and_spending/1079/payments_over_500,16-Sep-2021,Childrens Services,KANGAROO POUCH LIMITED,Childrens Services,560.00,Grants,2122P06_CR00030,106981
Sandwell Metropolitan Borough Council,http://www.sandwell.gov.uk/info/200202/performance_and_spending/1079/payments_over_500,01-Sep-2021,Childrens Services,TOTALENERGIES GAS & POWER LTD,Childrens Services,599.51,Electricity,2122P06_CR00031,107605
Sandwell Metropolitan Borough Council,http://www.sandwell.gov.uk/info/200202/performance_and_spending/1079/payments_over_500,14-Sep-2021,Childrens Services,E.ON UK PLC,Childrens Services,605.65,Electricity,2122P06_CR00032,28639
Sandwell Metropolitan Borough Council,http://www.sandwell.gov.uk/info/200202/performance_and_spending/1079/payments_over_500,02-Sep-2021,Childrens Services,OCR,Childrens Services,638.00,Externally Purchased Professional Services ,2122P06_CR00033,01620492
Sandwell Metropolitan Borough Council,http://www.sandwell.gov.uk/info/200202/performance_and_spending/1079/payments_over_500,01-Sep-2021,Childrens Services,HER MAJESTYS PRISON AND PROBATION SERVICE,Childrens Services,642.00,Other Establishments,2122P06_CR00034,134815
Sandwell Metropolitan Borough Council,http://www.sandwell.gov.uk/info/200202/performance_and_spending/1079/payments_over_500,01-Sep-2021,Childrens Services,INGESTRE ORANGERY AND GARDENS,Childrens Services,650.00,Materials & Consumables,2122P06_CR00035,127331
Sandwell Metropolitan Borough Council,http://www.sandwell.gov.uk/info/200202/performance_and_spending/1079/payments_over_500,01-Sep-2021,Childrens Services,EURO SHAF TRAINING SERVICES LIMITED,Childrens Services,686.26,Externally Purchased Professional Services ,2122P06_CR00036,76260
Sandwell Metropolitan Borough Council,http://www.sandwell.gov.uk/info/200202/performance_and_spending/1079/payments_over_500,01-Sep-2021,Childrens Services,EURO SHAF TRAINING SERVICES LIMITED,Childrens Services,686.26,Externally Purchased Professional Services ,2122P06_CR00037,76260
Sandwell Metropolitan Borough Council,http://www.sandwell.gov.uk/info/200202/performance_and_spending/1079/payments_over_500,13-Sep-2021,Childrens Services,OSBORNE TECHNOLOGIES LTD,Childrens Services,690.00,Security,2122P06_CR00038,129523
Sandwell Metropolitan Borough Council,http://www.sandwell.gov.uk/info/200202/performance_and_spending/1079/payments_over_500,01-Sep-2021,Childrens Services,EURO SHAF TRAINING SERVICES LIMITED,Childrens Services,695.00,Externally Purchased Professional Services ,2122P06_CR00039,76260
Sandwell Metropolitan Borough Council,http://www.sandwell.gov.uk/info/200202/performance_and_spending/1079/payments_over_500,01-Sep-2021,Childrens Services,BANGLADESHI WOMEN'S ASSOCIATION LIMITED,Childrens Services,716.39,Grants,2122P06_CR00040,69648
Sandwell Metropolitan Borough Council,http://www.sandwell.gov.uk/info/200202/performance_and_spending/1079/payments_over_500,01-Sep-2021,Childrens Services,BRAND FUSION INTERNATIONAL LTD,Childrens Services,716.39,Grants,2122P06_CR00041,152110
Sandwell Metropolitan Borough Council,http://www.sandwell.gov.uk/info/200202/performance_and_spending/1079/payments_over_500,02-Sep-2021,Childrens Services,CARLYLE LTD,Childrens Services,716.39,Grants,2122P06_CR00042,01507965
Sandwell Metropolitan Borough Council,http://www.sandwell.gov.uk/info/200202/performance_and_spending/1079/payments_over_500,01-Sep-2021,Childrens Services,THE GIFT VOUCHER SHOP LIMITED,Childrens Services,735.00,Operational Services ,2122P06_CR00043,111545
Sandwell Metropolitan Borough Council,http://www.sandwell.gov.uk/info/200202/performance_and_spending/1079/payments_over_500,01-Sep-2021,Childrens Services,TOTALENERGIES GAS & POWER LTD,Childrens Services,742.18,Electricity,2122P06_CR00044,107605
Sandwell Metropolitan Borough Council,http://www.sandwell.gov.uk/info/200202/performance_and_spending/1079/payments_over_500,01-Sep-2021,Childrens Services,CITRON HYGIENE UK LTD,Childrens Services,769.08,Hygiene Services,2122P06_CR00045,140849
Sandwell Metropolitan Borough Council,http://www.sandwell.gov.uk/info/200202/performance_and_spending/1079/payments_over_500,01-Sep-2021,Childrens Services,LEARNPLAY FOUNDATION LTD,Childrens Services,800.00,Externally Purchased Professional Services ,2122P06_CR00046,86525
Sandwell Metropolitan Borough Council,http://www.sandwell.gov.uk/info/200202/performance_and_spending/1079/payments_over_500,01-Sep-2021,Childrens Services,LEARNPLAY FOUNDATION LTD,Childrens Services,800.00,Externally Purchased Professional Services ,2122P06_CR00047,86525
Sandwell Metropolitan Borough Council,http://www.sandwell.gov.uk/info/200202/performance_and_spending/1079/payments_over_500,01-Sep-2021,Childrens Services,LEARNING INTO EMPLOYMENT ACADEMY LTD,Childrens Services,855.51,Externally Purchased Professional Services ,2122P06_CR00048,147427
Sandwell Metropolitan Borough Council,http://www.sandwell.gov.uk/info/200202/performance_and_spending/1079/payments_over_500,01-Sep-2021,Childrens Services,LEARNING INTO EMPLOYMENT ACADEMY LTD,Childrens Services,874.44,Externally Purchased Professional Services ,2122P06_CR00049,147427
Sandwell Metropolitan Borough Council,http://www.sandwell.gov.uk/info/200202/performance_and_spending/1079/payments_over_500,01-Sep-2021,Childrens Services,TOTALENERGIES GAS & POWER LTD,Childrens Services,881.62,Electricity,2122P06_CR00050,107605
Sandwell Metropolitan Borough Council,http://www.sandwell.gov.uk/info/200202/performance_and_spending/1079/payments_over_500,01-Sep-2021,Childrens Services,NCFE,Childrens Services,900.00,Externally Purchased Professional Services ,2122P06_CR00051,6230
Sandwell Metropolitan Borough Council,http://www.sandwell.gov.uk/info/200202/performance_and_spending/1079/payments_over_500,14-Sep-2021,Childrens Services,TOTALENERGIES GAS & POWER LTD,Childrens Services,921.00,Electricity,2122P06_CR00052,107605
Sandwell Metropolitan Borough Council,http://www.sandwell.gov.uk/info/200202/performance_and_spending/1079/payments_over_500,02-Sep-2021,Childrens Services,CARLYLE LTD,Childrens Services,941.16,Externally Purchased Professional Services ,2122P06_CR00053,01507965
Sandwell Metropolitan Borough Council,http://www.sandwell.gov.uk/info/200202/performance_and_spending/1079/payments_over_500,01-Sep-2021,Childrens Services,SANDWELL CITIZENS ADVICE BUREAUX,Childrens Services,941.16,Grants,2122P06_CR00054,01760899
Sandwell Metropolitan Borough Council,http://www.sandwell.gov.uk/info/200202/performance_and_spending/1079/payments_over_500,14-Sep-2021,Childrens Services,SANDWELL CITIZENS ADVICE BUREAUX,Childrens Services,941.16,Grants,2122P06_CR00055,01760899
Sandwell Metropolitan Borough Council,http://www.sandwell.gov.uk/info/200202/performance_and_spending/1079/payments_over_500,01-Sep-2021,Childrens Services,BRAND FUSION INTERNATIONAL LTD,Childrens Services,941.16,Grants,2122P06_CR00056,152110
Sandwell Metropolitan Borough Council,http://www.sandwell.gov.uk/info/200202/performance_and_spending/1079/payments_over_500,02-Sep-2021,Childrens Services,CARLYLE LTD,Childrens Services,941.16,Grants,2122P06_CR00057,01507965
Sandwell Metropolitan Borough Council,http://www.sandwell.gov.uk/info/200202/performance_and_spending/1079/payments_over_500,02-Sep-2021,Childrens Services,CARLYLE LTD,Childrens Services,941.16,Grants,2122P06_CR00058,01507965
Sandwell Metropolitan Borough Council,http://www.sandwell.gov.uk/info/200202/performance_and_spending/1079/payments_over_500,01-Sep-2021,Childrens Services,CONFEDERATION OF BANGLADESHI ORGANISATIONS (CBO) LIMITED,Childrens Services,941.16,Grants,2122P06_CR00059,10034
Sandwell Metropolitan Borough Council,http://www.sandwell.gov.uk/info/200202/performance_and_spending/1079/payments_over_500,01-Sep-2021,Childrens Services,CONWAY PACKING SERVICES LTD,Childrens Services,941.16,Grants,2122P06_CR00060,151356
Sandwell Metropolitan Borough Council,http://www.sandwell.gov.uk/info/200202/performance_and_spending/1079/payments_over_500,20-Sep-2021,Childrens Services,CHARLEMONT BOWLING CLUB,Childrens Services,975.00,Contract Payments,2122P06_CR00061,81304
Sandwell Metropolitan Borough Council,http://www.sandwell.gov.uk/info/200202/performance_and_spending/1079/payments_over_500,01-Sep-2021,Childrens Services,SOUTHSIDE BHX,Childrens Services,1000.00,Externally Purchased Professional Services ,2122P06_CR00062,154419
Sandwell Metropolitan Borough Council,http://www.sandwell.gov.uk/info/200202/performance_and_spending/1079/payments_over_500,14-Sep-2021,Childrens Services,LYNG PRIMARY SCHOOL                                              01,Childrens Services,1000.00,Grants,2122P06_CR00063,21030682
Sandwell Metropolitan Borough Council,http://www.sandwell.gov.uk/info/200202/performance_and_spending/1079/payments_over_500,14-Sep-2021,Childrens Services,SANDWELL CITIZENS ADVICE BUREAUX,Childrens Services,1010.75,Externally Purchased Professional Services ,2122P06_CR00064,01760899
Sandwell Metropolitan Borough Council,http://www.sandwell.gov.uk/info/200202/performance_and_spending/1079/payments_over_500,14-Sep-2021,Childrens Services,SANDWELL CITIZENS ADVICE BUREAUX,Childrens Services,1010.75,Externally Purchased Professional Services ,2122P06_CR00065,01760899
Sandwell Metropolitan Borough Council,http://www.sandwell.gov.uk/info/200202/performance_and_spending/1079/payments_over_500,01-Sep-2021,Childrens Services,BSN ASSOCIATES LIMITED,Childrens Services,1010.75,Externally Purchased Professional Services ,2122P06_CR00066,152374
Sandwell Metropolitan Borough Council,http://www.sandwell.gov.uk/info/200202/performance_and_spending/1079/payments_over_500,01-Sep-2021,Childrens Services,CRYSTAL HR & PAYROLL LTD,Childrens Services,1010.75,Externally Purchased Professional Services ,2122P06_CR00067,124658
Sandwell Metropolitan Borough Council,http://www.sandwell.gov.uk/info/200202/performance_and_spending/1079/payments_over_500,01-Sep-2021,Childrens Services,JMB GLOBAL LTD,Childrens Services,1010.75,Externally Purchased Professional Services ,2122P06_CR00068,152360
Sandwell Metropolitan Borough Council,http://www.sandwell.gov.uk/info/200202/performance_and_spending/1079/payments_over_500,01-Sep-2021,Childrens Services,SANDWELL CITIZENS ADVICE BUREAUX,Childrens Services,1010.75,Grants,2122P06_CR00069,01760899
Sandwell Metropolitan Borough Council,http://www.sandwell.gov.uk/info/200202/performance_and_spending/1079/payments_over_500,14-Sep-2021,Childrens Services,SANDWELL CITIZENS ADVICE BUREAUX,Childrens Services,1010.75,Grants,2122P06_CR00070,01760899
Sandwell Metropolitan Borough Council,http://www.sandwell.gov.uk/info/200202/performance_and_spending/1079/payments_over_500,01-Sep-2021,Childrens Services,DRYWALL STEEL SECTIONS LTD,Childrens Services,1010.75,Grants,2122P06_CR00071,132994
Sandwell Metropolitan Borough Council,http://www.sandwell.gov.uk/info/200202/performance_and_spending/1079/payments_over_500,01-Sep-2021,Childrens Services,LEARNING INTO EMPLOYMENT ACADEMY LTD,Childrens Services,1095.82,Externally Purchased Professional Services ,2122P06_CR00072,147427
Sandwell Metropolitan Borough Council,http://www.sandwell.gov.uk/info/200202/performance_and_spending/1079/payments_over_500,17-Sep-2021,Childrens Services,THE GIFT VOUCHER SHOP LIMITED,Childrens Services,1110.34,Operational Services ,2122P06_CR00073,111545
Sandwell Metropolitan Borough Council,http://www.sandwell.gov.uk/info/200202/performance_and_spending/1079/payments_over_500,01-Sep-2021,Childrens Services,LEARNING INTO EMPLOYMENT ACADEMY LTD,Childrens Services,1217.58,Externally Purchased Professional Services ,2122P06_CR00074,147427
Sandwell Metropolitan Borough Council,http://www.sandwell.gov.uk/info/200202/performance_and_spending/1079/payments_over_500,01-Sep-2021,Childrens Services,LEARNING INTO EMPLOYMENT ACADEMY LTD,Childrens Services,1217.58,Externally Purchased Professional Services ,2122P06_CR00075,147427
Sandwell Metropolitan Borough Council,http://www.sandwell.gov.uk/info/200202/performance_and_spending/1079/payments_over_500,01-Sep-2021,Childrens Services,LEARNING INTO EMPLOYMENT ACADEMY LTD,Childrens Services,1217.58,Externally Purchased Professional Services ,2122P06_CR00076,147427
Sandwell Metropolitan Borough Council,http://www.sandwell.gov.uk/info/200202/performance_and_spending/1079/payments_over_500,01-Sep-2021,Childrens Services,LEARNING INTO EMPLOYMENT ACADEMY LTD,Childrens Services,1217.58,Externally Purchased Professional Services ,2122P06_CR00077,147427
Sandwell Metropolitan Borough Council,http://www.sandwell.gov.uk/info/200202/performance_and_spending/1079/payments_over_500,01-Sep-2021,Childrens Services,LEARNING INTO EMPLOYMENT ACADEMY LTD,Childrens Services,1217.58,Externally Purchased Professional Services ,2122P06_CR00078,147427
Sandwell Metropolitan Borough Council,http://www.sandwell.gov.uk/info/200202/performance_and_spending/1079/payments_over_500,01-Sep-2021,Childrens Services,LEARNPLAY FOUNDATION LTD,Childrens Services,1320.00,Externally Purchased Professional Services ,2122P06_CR00079,86525
Sandwell Metropolitan Borough Council,http://www.sandwell.gov.uk/info/200202/performance_and_spending/1079/payments_over_500,01-Sep-2021,Childrens Services,LEARNPLAY FOUNDATION LTD,Childrens Services,1320.00,Externally Purchased Professional Services ,2122P06_CR00080,86525
Sandwell Metropolitan Borough Council,http://www.sandwell.gov.uk/info/200202/performance_and_spending/1079/payments_over_500,09-Sep-2021,Childrens Services,CREATION SKATEPARK LTD,Childrens Services,1330.00,Equipment & Furniture ,2122P06_CR00081,82383
Sandwell Metropolitan Borough Council,http://www.sandwell.gov.uk/info/200202/performance_and_spending/1079/payments_over_500,01-Sep-2021,Childrens Services,ADT FIRE & SECURITY PLC,Childrens Services,1399.10,Security,2122P06_CR00082,01115015
Sandwell Metropolitan Borough Council,http://www.sandwell.gov.uk/info/200202/performance_and_spending/1079/payments_over_500,15-Sep-2021,Childrens Services,CERTAS ENERGY LIMITED,Childrens Services,1511.00,Ingestre Hall Arts Centre.Energy Costs-Bio Energy,2122P06_CR00083,80421
Sandwell Metropolitan Borough Council,http://www.sandwell.gov.uk/info/200202/performance_and_spending/1079/payments_over_500,01-Sep-2021,Childrens Services,WOLVERHAMPTON CITY COUNCIL,Childrens Services,1612.80,External Contract Hire,2122P06_CR00084,01374555
Sandwell Metropolitan Borough Council,http://www.sandwell.gov.uk/info/200202/performance_and_spending/1079/payments_over_500,01-Sep-2021,Childrens Services,APD PRINT & DESIGN,Childrens Services,1810.00,Advertising & Publicity,2122P06_CR00085,49454
Sandwell Metropolitan Borough Council,http://www.sandwell.gov.uk/info/200202/performance_and_spending/1079/payments_over_500,01-Sep-2021,Childrens Services,THE PRIORY PRIMARY,Childrens Services,2002.30,Rents,2122P06_CR00086,01746051
Sandwell Metropolitan Borough Council,http://www.sandwell.gov.uk/info/200202/performance_and_spending/1079/payments_over_500,10-Sep-2021,Childrens Services,FUTURE FIRST INDEPENDENT SCHOOL,Childrens Services,2160.00,External Contract Hire,2122P06_CR00087,106165
Sandwell Metropolitan Borough Council,http://www.sandwell.gov.uk/info/200202/performance_and_spending/1079/payments_over_500,10-Sep-2021,Childrens Services,FUTURE FIRST INDEPENDENT SCHOOL,Childrens Services,2160.00,External Contract Hire,2122P06_CR00088,106165
Sandwell Metropolitan Borough Council,http://www.sandwell.gov.uk/info/200202/performance_and_spending/1079/payments_over_500,10-Sep-2021,Childrens Services,FUTURE FIRST INDEPENDENT SCHOOL,Childrens Services,2160.00,External Contract Hire,2122P06_CR00089,106165
Sandwell Metropolitan Borough Council,http://www.sandwell.gov.uk/info/200202/performance_and_spending/1079/payments_over_500,10-Sep-2021,Childrens Services,FUTURE FIRST INDEPENDENT SCHOOL,Childrens Services,2160.00,External Contract Hire,2122P06_CR00090,106165
Sandwell Metropolitan Borough Council,http://www.sandwell.gov.uk/info/200202/performance_and_spending/1079/payments_over_500,10-Sep-2021,Childrens Services,FUTURE FIRST INDEPENDENT SCHOOL,Childrens Services,2160.00,External Contract Hire,2122P06_CR00091,106165
Sandwell Metropolitan Borough Council,http://www.sandwell.gov.uk/info/200202/performance_and_spending/1079/payments_over_500,10-Sep-2021,Childrens Services,FUTURE FIRST INDEPENDENT SCHOOL,Childrens Services,2160.00,External Contract Hire,2122P06_CR00092,106165
Sandwell Metropolitan Borough Council,http://www.sandwell.gov.uk/info/200202/performance_and_spending/1079/payments_over_500,10-Sep-2021,Childrens Services,FUTURE FIRST INDEPENDENT SCHOOL,Childrens Services,2160.00,External Contract Hire,2122P06_CR00093,106165
Sandwell Metropolitan Borough Council,http://www.sandwell.gov.uk/info/200202/performance_and_spending/1079/payments_over_500,01-Sep-2021,Childrens Services,DIGBETH DINING CLUB CIC,Childrens Services,2400.00,Catering Provisions,2122P06_CR00094,153646
Sandwell Metropolitan Borough Council,http://www.sandwell.gov.uk/info/200202/performance_and_spending/1079/payments_over_500,09-Sep-2021,Childrens Services,CREATION SKATEPARK LTD,Childrens Services,3990.00,Equipment & Furniture ,2122P06_CR00095,82383
Sandwell Metropolitan Borough Council,http://www.sandwell.gov.uk/info/200202/performance_and_spending/1079/payments_over_500,01-Sep-2021,Childrens Services,HER MAJESTYS PRISON AND PROBATION SERVICE,Childrens Services,4095.00,Other Establishments,2122P06_CR00096,134815
Sandwell Metropolitan Borough Council,http://www.sandwell.gov.uk/info/200202/performance_and_spending/1079/payments_over_500,01-Sep-2021,Childrens Services,WOLVERHAMPTON CITY COUNCIL,Childrens Services,4212.60,External Contract Hire,2122P06_CR00097,01374555
Sandwell Metropolitan Borough Council,http://www.sandwell.gov.uk/info/200202/performance_and_spending/1079/payments_over_500,01-Sep-2021,Childrens Services,HER MAJESTYS PRISON AND PROBATION SERVICE,Childrens Services,5670.00,Other Establishments,2122P06_CR00098,134815
Sandwell Metropolitan Borough Council,http://www.sandwell.gov.uk/info/200202/performance_and_spending/1079/payments_over_500,01-Sep-2021,Childrens Services,HER MAJESTYS PRISON AND PROBATION SERVICE,Childrens Services,6314.00,Other Establishments,2122P06_CR00099,134815
Sandwell Metropolitan Borough Council,http://www.sandwell.gov.uk/info/200202/performance_and_spending/1079/payments_over_500,01-Sep-2021,Childrens Services,HER MAJESTYS PRISON AND PROBATION SERVICE,Childrens Services,8820.00,Other Establishments,2122P06_CR00100,134815
Sandwell Metropolitan Borough Council,http://www.sandwell.gov.uk/info/200202/performance_and_spending/1079/payments_over_500,01-Sep-2021,Childrens Services,HER MAJESTYS PRISON AND PROBATION SERVICE,Childrens Services,9450.00,Other Establishments,2122P06_CR00101,134815
Sandwell Metropolitan Borough Council,http://www.sandwell.gov.uk/info/200202/performance_and_spending/1079/payments_over_500,01-Sep-2021,Childrens Services,NET BUILDER LIMITED,Childrens Services,12500.00,Externally Purchased Professional Services ,2122P06_CR00102,139019
Sandwell Metropolitan Borough Council,http://www.sandwell.gov.uk/info/200202/performance_and_spending/1079/payments_over_500,10-Sep-2021,Childrens Services,HER MAJESTYS PRISON AND PROBATION SERVICE,Childrens Services,15060.00,Other Establishments,2122P06_CR00103,134815
Sandwell Metropolitan Borough Council,http://www.sandwell.gov.uk/info/200202/performance_and_spending/1079/payments_over_500,01-Sep-2021,Childrens Services,HER MAJESTYS PRISON AND PROBATION SERVICE,Childrens Services,16646.00,Other Establishments,2122P06_CR00104,134815
Sandwell Metropolitan Borough Council,http://www.sandwell.gov.uk/info/200202/performance_and_spending/1079/payments_over_500,01-Sep-2021,Childrens Services,HER MAJESTYS PRISON AND PROBATION SERVICE,Childrens Services,17220.00,Other Establishments,2122P06_CR00105,134815
Sandwell Metropolitan Borough Council,http://www.sandwell.gov.uk/info/200202/performance_and_spending/1079/payments_over_500,01-Sep-2021,Childrens Services,HER MAJESTYS PRISON AND PROBATION SERVICE,Childrens Services,17794.00,Other Establishments,2122P06_CR00106,134815
Sandwell Metropolitan Borough Council,http://www.sandwell.gov.uk/info/200202/performance_and_spending/1079/payments_over_500,09-Sep-2021,Childrens Services,REDACTED PERSONAL DATA,Childrens Services,31607.72,Public Transport,2122P06_CR00107,REDACTED PERSONAL DATA
Sandwell Metropolitan Borough Council,http://www.sandwell.gov.uk/info/200202/performance_and_spending/1079/payments_over_500,01-Sep-2021,Childrens Services,YOUTHLINX LTD,Childrens Services,51569.00,Rents,2122P06_CR00108,130473
Sandwell Metropolitan Borough Council,http://www.sandwell.gov.uk/info/200202/performance_and_spending/1079/payments_over_500,02-Sep-2021,Childrens Services,CLASSIC CARS 1997,Childrens Services,53304.25,Public Transport,2122P06_CR00109,06005093
Sandwell Metropolitan Borough Council,http://www.sandwell.gov.uk/info/200202/performance_and_spending/1079/payments_over_500,20-Sep-2021,Childrens Services,MURRAY HALL COMMUNITY TRUST,Childrens Services,151965.45,Contract Payments,2122P06_CR00110,01627284
Sandwell Metropolitan Borough Council,http://www.sandwell.gov.uk/info/200202/performance_and_spending/1079/payments_over_500,10-Sep-2021,Childrens Services,REDACTED PERSONAL DATA,Childrens Services,545.45,External Contract Hire,2122P06_CR00111,REDACTED PERSONAL DATA
Sandwell Metropolitan Borough Council,http://www.sandwell.gov.uk/info/200202/performance_and_spending/1079/payments_over_500,10-Sep-2021,Childrens Services,REDACTED PERSONAL DATA,Childrens Services,545.45,External Contract Hire,2122P06_CR00112,REDACTED PERSONAL DATA
Sandwell Metropolitan Borough Council,http://www.sandwell.gov.uk/info/200202/performance_and_spending/1079/payments_over_500,10-Sep-2021,Childrens Services,REDACTED PERSONAL DATA,Childrens Services,545.45,External Contract Hire,2122P06_CR00113,REDACTED PERSONAL DATA
Sandwell Metropolitan Borough Council,http://www.sandwell.gov.uk/info/200202/performance_and_spending/1079/payments_over_500,10-Sep-2021,Childrens Services,REDACTED PERSONAL DATA,Childrens Services,545.45,External Contract Hire,2122P06_CR00114,REDACTED PERSONAL DATA
Sandwell Metropolitan Borough Council,http://www.sandwell.gov.uk/info/200202/performance_and_spending/1079/payments_over_500,10-Sep-2021,Childrens Services,REDACTED PERSONAL DATA,Childrens Services,545.45,External Contract Hire,2122P06_CR00115,REDACTED PERSONAL DATA
Sandwell Metropolitan Borough Council,http://www.sandwell.gov.uk/info/200202/performance_and_spending/1079/payments_over_500,10-Sep-2021,Childrens Services,REDACTED PERSONAL DATA,Childrens Services,545.45,External Contract Hire,2122P06_CR00116,REDACTED PERSONAL DATA
Sandwell Metropolitan Borough Council,http://www.sandwell.gov.uk/info/200202/performance_and_spending/1079/payments_over_500,10-Sep-2021,Childrens Services,REDACTED PERSONAL DATA,Childrens Services,545.45,External Contract Hire,2122P06_CR00117,REDACTED PERSONAL DATA
Sandwell Metropolitan Borough Council,http://www.sandwell.gov.uk/info/200202/performance_and_spending/1079/payments_over_500,10-Sep-2021,Childrens Services,REDACTED PERSONAL DATA,Childrens Services,545.45,External Contract Hire,2122P06_CR00118,REDACTED PERSONAL DATA
Sandwell Metropolitan Borough Council,http://www.sandwell.gov.uk/info/200202/performance_and_spending/1079/payments_over_500,10-Sep-2021,Childrens Services,REDACTED PERSONAL DATA,Childrens Services,545.45,External Contract Hire,2122P06_CR00119,REDACTED PERSONAL DATA
Sandwell Metropolitan Borough Council,http://www.sandwell.gov.uk/info/200202/performance_and_spending/1079/payments_over_500,10-Sep-2021,Childrens Services,REDACTED PERSONAL DATA,Childrens Services,545.45,External Contract Hire,2122P06_CR00120,REDACTED PERSONAL DATA
Sandwell Metropolitan Borough Council,http://www.sandwell.gov.uk/info/200202/performance_and_spending/1079/payments_over_500,10-Sep-2021,Childrens Services,REDACTED PERSONAL DATA,Childrens Services,545.45,External Contract Hire,2122P06_CR00121,REDACTED PERSONAL DATA
Sandwell Metropolitan Borough Council,http://www.sandwell.gov.uk/info/200202/performance_and_spending/1079/payments_over_500,10-Sep-2021,Childrens Services,REDACTED PERSONAL DATA,Childrens Services,545.45,External Contract Hire,2122P06_CR00122,REDACTED PERSONAL DATA
Sandwell Metropolitan Borough Council,http://www.sandwell.gov.uk/info/200202/performance_and_spending/1079/payments_over_500,10-Sep-2021,Childrens Services,REDACTED PERSONAL DATA,Childrens Services,545.45,External Contract Hire,2122P06_CR00123,REDACTED PERSONAL DATA
Sandwell Metropolitan Borough Council,http://www.sandwell.gov.uk/info/200202/performance_and_spending/1079/payments_over_500,10-Sep-2021,Childrens Services,REDACTED PERSONAL DATA,Childrens Services,545.45,External Contract Hire,2122P06_CR00124,REDACTED PERSONAL DATA
Sandwell Metropolitan Borough Council,http://www.sandwell.gov.uk/info/200202/performance_and_spending/1079/payments_over_500,10-Sep-2021,Childrens Services,REDACTED PERSONAL DATA,Childrens Services,545.45,External Contract Hire,2122P06_CR00125,REDACTED PERSONAL DATA
Sandwell Metropolitan Borough Council,http://www.sandwell.gov.uk/info/200202/performance_and_spending/1079/payments_over_500,10-Sep-2021,Childrens Services,REDACTED PERSONAL DATA,Childrens Services,545.45,External Contract Hire,2122P06_CR00126,REDACTED PERSONAL DATA
Sandwell Metropolitan Borough Council,http://www.sandwell.gov.uk/info/200202/performance_and_spending/1079/payments_over_500,10-Sep-2021,Childrens Services,REDACTED PERSONAL DATA,Childrens Services,545.45,External Contract Hire,2122P06_CR00127,REDACTED PERSONAL DATA
Sandwell Metropolitan Borough Council,http://www.sandwell.gov.uk/info/200202/performance_and_spending/1079/payments_over_500,10-Sep-2021,Childrens Services,REDACTED PERSONAL DATA,Childrens Services,545.45,External Contract Hire,2122P06_CR00128,REDACTED PERSONAL DATA
Sandwell Metropolitan Borough Council,http://www.sandwell.gov.uk/info/200202/performance_and_spending/1079/payments_over_500,10-Sep-2021,Childrens Services,REDACTED PERSONAL DATA,Childrens Services,545.45,External Contract Hire,2122P06_CR00129,REDACTED PERSONAL DATA
Sandwell Metropolitan Borough Council,http://www.sandwell.gov.uk/info/200202/performance_and_spending/1079/payments_over_500,10-Sep-2021,Childrens Services,REDACTED PERSONAL DATA,Childrens Services,545.45,External Contract Hire,2122P06_CR00130,REDACTED PERSONAL DATA
Sandwell Metropolitan Borough Council,http://www.sandwell.gov.uk/info/200202/performance_and_spending/1079/payments_over_500,10-Sep-2021,Childrens Services,REDACTED PERSONAL DATA,Childrens Services,545.45,External Contract Hire,2122P06_CR00131,REDACTED PERSONAL DATA
Sandwell Metropolitan Borough Council,http://www.sandwell.gov.uk/info/200202/performance_and_spending/1079/payments_over_500,10-Sep-2021,Childrens Services,REDACTED PERSONAL DATA,Childrens Services,727.27,External Contract Hire,2122P06_CR00132,REDACTED PERSONAL DATA
Sandwell Metropolitan Borough Council,http://www.sandwell.gov.uk/info/200202/performance_and_spending/1079/payments_over_500,10-Sep-2021,Childrens Services,REDACTED PERSONAL DATA,Childrens Services,727.27,External Contract Hire,2122P06_CR00133,REDACTED PERSONAL DATA
Sandwell Metropolitan Borough Council,http://www.sandwell.gov.uk/info/200202/performance_and_spending/1079/payments_over_500,10-Sep-2021,Childrens Services,REDACTED PERSONAL DATA,Childrens Services,727.27,External Contract Hire,2122P06_CR00134,REDACTED PERSONAL DATA
Sandwell Metropolitan Borough Council,http://www.sandwell.gov.uk/info/200202/performance_and_spending/1079/payments_over_500,10-Sep-2021,Childrens Services,REDACTED PERSONAL DATA,Childrens Services,727.27,External Contract Hire,2122P06_CR00135,REDACTED PERSONAL DATA
Sandwell Metropolitan Borough Council,http://www.sandwell.gov.uk/info/200202/performance_and_spending/1079/payments_over_500,10-Sep-2021,Childrens Services,REDACTED PERSONAL DATA,Childrens Services,727.27,External Contract Hire,2122P06_CR00136,REDACTED PERSONAL DATA
Sandwell Metropolitan Borough Council,http://www.sandwell.gov.uk/info/200202/performance_and_spending/1079/payments_over_500,10-Sep-2021,Childrens Services,REDACTED PERSONAL DATA,Childrens Services,727.27,External Contract Hire,2122P06_CR00137,REDACTED PERSONAL DATA
Sandwell Metropolitan Borough Council,http://www.sandwell.gov.uk/info/200202/performance_and_spending/1079/payments_over_500,10-Sep-2021,Childrens Services,REDACTED PERSONAL DATA,Childrens Services,727.27,External Contract Hire,2122P06_CR00138,REDACTED PERSONAL DATA
Sandwell Metropolitan Borough Council,http://www.sandwell.gov.uk/info/200202/performance_and_spending/1079/payments_over_500,10-Sep-2021,Childrens Services,REDACTED PERSONAL DATA,Childrens Services,727.27,External Contract Hire,2122P06_CR00139,REDACTED PERSONAL DATA
Sandwell Metropolitan Borough Council,http://www.sandwell.gov.uk/info/200202/performance_and_spending/1079/payments_over_500,10-Sep-2021,Childrens Services,REDACTED PERSONAL DATA,Childrens Services,727.27,External Contract Hire,2122P06_CR00140,REDACTED PERSONAL DATA
Sandwell Metropolitan Borough Council,http://www.sandwell.gov.uk/info/200202/performance_and_spending/1079/payments_over_500,10-Sep-2021,Childrens Services,REDACTED PERSONAL DATA,Childrens Services,727.27,External Contract Hire,2122P06_CR00141,REDACTED PERSONAL DATA
Sandwell Metropolitan Borough Council,http://www.sandwell.gov.uk/info/200202/performance_and_spending/1079/payments_over_500,10-Sep-2021,Childrens Services,REDACTED PERSONAL DATA,Childrens Services,727.27,External Contract Hire,2122P06_CR00142,REDACTED PERSONAL DATA
Sandwell Metropolitan Borough Council,http://www.sandwell.gov.uk/info/200202/performance_and_spending/1079/payments_over_500,10-Sep-2021,Childrens Services,REDACTED PERSONAL DATA,Childrens Services,727.27,External Contract Hire,2122P06_CR00143,REDACTED PERSONAL DATA
Sandwell Metropolitan Borough Council,http://www.sandwell.gov.uk/info/200202/performance_and_spending/1079/payments_over_500,10-Sep-2021,Childrens Services,REDACTED PERSONAL DATA,Childrens Services,727.27,External Contract Hire,2122P06_CR00144,REDACTED PERSONAL DATA
Sandwell Metropolitan Borough Council,http://www.sandwell.gov.uk/info/200202/performance_and_spending/1079/payments_over_500,10-Sep-2021,Childrens Services,REDACTED PERSONAL DATA,Childrens Services,727.27,External Contract Hire,2122P06_CR00145,REDACTED PERSONAL DATA
Sandwell Metropolitan Borough Council,http://www.sandwell.gov.uk/info/200202/performance_and_spending/1079/payments_over_500,10-Sep-2021,Childrens Services,REDACTED PERSONAL DATA,Childrens Services,727.28,External Contract Hire,2122P06_CR00146,REDACTED PERSONAL DATA
Sandwell Metropolitan Borough Council,http://www.sandwell.gov.uk/info/200202/performance_and_spending/1079/payments_over_500,10-Sep-2021,Childrens Services,REDACTED PERSONAL DATA,Childrens Services,727.28,External Contract Hire,2122P06_CR00147,REDACTED PERSONAL DATA
Sandwell Metropolitan Borough Council,http://www.sandwell.gov.uk/info/200202/performance_and_spending/1079/payments_over_500,10-Sep-2021,Childrens Services,REDACTED PERSONAL DATA,Childrens Services,727.28,External Contract Hire,2122P06_CR00148,REDACTED PERSONAL DATA
Sandwell Metropolitan Borough Council,http://www.sandwell.gov.uk/info/200202/performance_and_spending/1079/payments_over_500,10-Sep-2021,Childrens Services,REDACTED PERSONAL DATA,Childrens Services,727.28,External Contract Hire,2122P06_CR00149,REDACTED PERSONAL DATA
Sandwell Metropolitan Borough Council,http://www.sandwell.gov.uk/info/200202/performance_and_spending/1079/payments_over_500,10-Sep-2021,Childrens Services,REDACTED PERSONAL DATA,Childrens Services,800.00,External Contract Hire,2122P06_CR00150,REDACTED PERSONAL DATA
Sandwell Metropolitan Borough Council,http://www.sandwell.gov.uk/info/200202/performance_and_spending/1079/payments_over_500,10-Sep-2021,Childrens Services,REDACTED PERSONAL DATA,Childrens Services,909.09,External Contract Hire,2122P06_CR00151,REDACTED PERSONAL DATA
Sandwell Metropolitan Borough Council,http://www.sandwell.gov.uk/info/200202/performance_and_spending/1079/payments_over_500,10-Sep-2021,Childrens Services,REDACTED PERSONAL DATA,Childrens Services,1090.90,External Contract Hire,2122P06_CR00152,REDACTED PERSONAL DATA
Sandwell Metropolitan Borough Council,http://www.sandwell.gov.uk/info/200202/performance_and_spending/1079/payments_over_500,01-Sep-2021,Childrens Services Capital,NICHOLLS COLTON & PARTNERS LTD,Childrens Services Capital,600.00,"CIP - New Construction,Conversion, Enhancement & Reno",2122P06_CR00153,3215
Sandwell Metropolitan Borough Council,http://www.sandwell.gov.uk/info/200202/performance_and_spending/1079/payments_over_500,01-Sep-2021,Childrens Services Capital,STONE COMPUTERS LIMITED,Childrens Services Capital,680.00,CIP - Fixtures & Fittings,2122P06_CR00154,23360
Sandwell Metropolitan Borough Council,http://www.sandwell.gov.uk/info/200202/performance_and_spending/1079/payments_over_500,01-Sep-2021,Childrens Services Capital,BRYLAND FIRE PROTECTION LTD,Childrens Services Capital,1975.91,CIP - Fixtures & Fittings,2122P06_CR00155,3520
Sandwell Metropolitan Borough Council,http://www.sandwell.gov.uk/info/200202/performance_and_spending/1079/payments_over_500,06-Sep-2021,Childrens Services Capital,NICHOLLS COLTON & PARTNERS LTD,Childrens Services Capital,3210.00,"CIP - New Construction,Conversion, Enhancement & Reno",2122P06_CR00156,3215
Sandwell Metropolitan Borough Council,http://www.sandwell.gov.uk/info/200202/performance_and_spending/1079/payments_over_500,08-Sep-2021,Childrens Services Capital,STONE COMPUTERS LIMITED,Childrens Services Capital,15584.00,CIP - Fixtures & Fittings,2122P06_CR00157,23360
Sandwell Metropolitan Borough Council,http://www.sandwell.gov.uk/info/200202/performance_and_spending/1079/payments_over_500,01-Sep-2021,Childrens Services Capital,CONTINENTAL SPORTS LTD,Childrens Services Capital,21506.06,"CIP - New Construction,Conversion, Enhancement & Reno",2122P06_CR00158,01001464
Sandwell Metropolitan Borough Council,http://www.sandwell.gov.uk/info/200202/performance_and_spending/1079/payments_over_500,01-Sep-2021,Childrens Services Capital,SMITHS OFFICE & COMMERCIAL FURNITURE LTD,Childrens Services Capital,26891.00,CIP - Fixtures & Fittings,2122P06_CR00159,14838
Sandwell Metropolitan Borough Council,http://www.sandwell.gov.uk/info/200202/performance_and_spending/1079/payments_over_500,07-Sep-2021,Childrens Services Capital,WILLMOTT DIXON CONSTRUCTION LIMITED,Childrens Services Capital,96940.16,"CIP - New Construction,Conversion, Enhancement & Reno",2122P06_CR00160,34081
Sandwell Metropolitan Borough Council,http://www.sandwell.gov.uk/info/200202/performance_and_spending/1079/payments_over_500,01-Sep-2021,Housing & Communities,ULVERSCROFT LARGE PRINT BOOKS LTD,Neighbourhoods,525.69,Materials & Consumables,2122P06_CR00161,01044938
Sandwell Metropolitan Borough Council,http://www.sandwell.gov.uk/info/200202/performance_and_spending/1079/payments_over_500,01-Sep-2021,Housing & Communities,ULVERSCROFT LARGE PRINT BOOKS LTD,Neighbourhoods,530.38,Materials & Consumables,2122P06_CR00162,01044938
Sandwell Metropolitan Borough Council,http://www.sandwell.gov.uk/info/200202/performance_and_spending/1079/payments_over_500,30-Sep-2021,Housing & Communities,DAYS RENTAL,Neighbourhoods,502.20,Vehicle Hiring Charges,2122P06_CR00163,128169
Sandwell Metropolitan Borough Council,http://www.sandwell.gov.uk/info/200202/performance_and_spending/1079/payments_over_500,30-Sep-2021,Housing & Communities,DAYS RENTAL,Neighbourhoods,502.20,Vehicle Hiring Charges,2122P06_CR00164,128169
Sandwell Metropolitan Borough Council,http://www.sandwell.gov.uk/info/200202/performance_and_spending/1079/payments_over_500,08-Sep-2021,Housing & Communities,OAKLEYS LTD,Neighbourhoods,514.60,Repairs & Maintenance,2122P06_CR00165,01598115
Sandwell Metropolitan Borough Council,http://www.sandwell.gov.uk/info/200202/performance_and_spending/1079/payments_over_500,01-Sep-2021,Housing & Communities,DAYS RENTAL,Neighbourhoods,518.94,Vehicle Hiring Charges,2122P06_CR00166,128169
Sandwell Metropolitan Borough Council,http://www.sandwell.gov.uk/info/200202/performance_and_spending/1079/payments_over_500,01-Sep-2021,Housing & Communities,DAYS RENTAL,Neighbourhoods,518.94,Vehicle Hiring Charges,2122P06_CR00167,128169
Sandwell Metropolitan Borough Council,http://www.sandwell.gov.uk/info/200202/performance_and_spending/1079/payments_over_500,01-Sep-2021,Housing & Communities,DAWSONGROUP VANS,Neighbourhoods,528.55,Vehicle Hiring Charges,2122P06_CR00168,151498
Sandwell Metropolitan Borough Council,http://www.sandwell.gov.uk/info/200202/performance_and_spending/1079/payments_over_500,01-Sep-2021,Housing & Communities,DAWSONGROUP VANS,Neighbourhoods,528.55,Vehicle Hiring Charges,2122P06_CR00169,151498
Sandwell Metropolitan Borough Council,http://www.sandwell.gov.uk/info/200202/performance_and_spending/1079/payments_over_500,01-Sep-2021,Housing & Communities,NORTHGATE VEHICLE HIRE (WEST MIDLANDS) LTD,Neighbourhoods,531.03,Vehicle Hiring Charges,2122P06_CR00170,01057676
Sandwell Metropolitan Borough Council,http://www.sandwell.gov.uk/info/200202/performance_and_spending/1079/payments_over_500,24-Sep-2021,Housing & Communities,DENNIS EAGLE LTD,Neighbourhoods,560.23,Fire Service Workshops,2122P06_CR00171,01004865
Sandwell Metropolitan Borough Council,http://www.sandwell.gov.uk/info/200202/performance_and_spending/1079/payments_over_500,09-Sep-2021,Housing & Communities,GEESINK NORBA LTD,Neighbourhoods,572.99,Fire Service Workshops,2122P06_CR00172,102799
Sandwell Metropolitan Borough Council,http://www.sandwell.gov.uk/info/200202/performance_and_spending/1079/payments_over_500,01-Sep-2021,Housing & Communities,PARTSPLUS,Neighbourhoods,578.78,Fire Service Workshops,2122P06_CR00173,01087922
Sandwell Metropolitan Borough Council,http://www.sandwell.gov.uk/info/200202/performance_and_spending/1079/payments_over_500,21-Sep-2021,Housing & Communities,DENNIS EAGLE LTD,Neighbourhoods,582.20,Fire Service Workshops,2122P06_CR00174,01004865
Sandwell Metropolitan Borough Council,http://www.sandwell.gov.uk/info/200202/performance_and_spending/1079/payments_over_500,24-Sep-2021,Housing & Communities,DIRECT TYRE MANAGEMENT LTD,Neighbourhoods,598.07,Tyres,2122P06_CR00175,134146
Sandwell Metropolitan Borough Council,http://www.sandwell.gov.uk/info/200202/performance_and_spending/1079/payments_over_500,08-Sep-2021,Housing & Communities,PUGH'S PLANT HIRE,Neighbourhoods,600.00,Vehicle Hiring Charges,2122P06_CR00176,147204
Sandwell Metropolitan Borough Council,http://www.sandwell.gov.uk/info/200202/performance_and_spending/1079/payments_over_500,24-Sep-2021,Housing & Communities,ROBINS & DAY PARTS WEST MIDLANDS,Neighbourhoods,600.38,Fire Service Workshops,2122P06_CR00177,118812
Sandwell Metropolitan Borough Council,http://www.sandwell.gov.uk/info/200202/performance_and_spending/1079/payments_over_500,01-Sep-2021,Housing & Communities,FR SHARROCK LTD,Neighbourhoods,611.75,Fire Service Workshops,2122P06_CR00178,01496028
Sandwell Metropolitan Borough Council,http://www.sandwell.gov.uk/info/200202/performance_and_spending/1079/payments_over_500,01-Sep-2021,Housing & Communities,TERBERG MATEC UK LTD,Neighbourhoods,632.47,Repairs & Maintenance,2122P06_CR00179,21235
Sandwell Metropolitan Borough Council,http://www.sandwell.gov.uk/info/200202/performance_and_spending/1079/payments_over_500,01-Sep-2021,Housing & Communities,TERBERG MATEC UK LTD,Neighbourhoods,673.92,Fire Service Workshops,2122P06_CR00180,21235
Sandwell Metropolitan Borough Council,http://www.sandwell.gov.uk/info/200202/performance_and_spending/1079/payments_over_500,22-Sep-2021,Housing & Communities,RYGOR COMMERCIALS LTD,Neighbourhoods,675.15,Fire Service Workshops,2122P06_CR00181,3345
Sandwell Metropolitan Borough Council,http://www.sandwell.gov.uk/info/200202/performance_and_spending/1079/payments_over_500,02-Sep-2021,Housing & Communities,RYGOR COMMERCIALS LTD,Neighbourhoods,681.79,Fire Service Workshops,2122P06_CR00182,3345
Sandwell Metropolitan Borough Council,http://www.sandwell.gov.uk/info/200202/performance_and_spending/1079/payments_over_500,17-Sep-2021,Housing & Communities,TERBERG MATEC UK LTD,Neighbourhoods,683.21,Fire Service Workshops,2122P06_CR00183,21235
Sandwell Metropolitan Borough Council,http://www.sandwell.gov.uk/info/200202/performance_and_spending/1079/payments_over_500,23-Sep-2021,Housing & Communities,H L SMITH (TRANSMISSIONS) LTD,Neighbourhoods,685.00,Fire Service Workshops,2122P06_CR00184,01032886
Sandwell Metropolitan Borough Council,http://www.sandwell.gov.uk/info/200202/performance_and_spending/1079/payments_over_500,15-Sep-2021,Housing & Communities,ADT FIRE & SECURITY PLC,Neighbourhoods,685.00,Security,2122P06_CR00185,01115015
Sandwell Metropolitan Borough Council,http://www.sandwell.gov.uk/info/200202/performance_and_spending/1079/payments_over_500,13-Sep-2021,Housing & Communities,DENNIS EAGLE LTD,Neighbourhoods,705.14,Fire Service Workshops,2122P06_CR00186,01004865
Sandwell Metropolitan Borough Council,http://www.sandwell.gov.uk/info/200202/performance_and_spending/1079/payments_over_500,15-Sep-2021,Housing & Communities,RYGOR COMMERCIALS LTD,Neighbourhoods,705.28,Fire Service Workshops,2122P06_CR00187,3345
Sandwell Metropolitan Borough Council,http://www.sandwell.gov.uk/info/200202/performance_and_spending/1079/payments_over_500,01-Sep-2021,Housing & Communities,DIRECT TYRE MANAGEMENT LTD,Neighbourhoods,710.64,Tyres,2122P06_CR00188,134146
Sandwell Metropolitan Borough Council,http://www.sandwell.gov.uk/info/200202/performance_and_spending/1079/payments_over_500,23-Sep-2021,Housing & Communities,DAYS RENTAL,Neighbourhoods,733.10,Vehicle Hiring Charges,2122P06_CR00189,128169
Sandwell Metropolitan Borough Council,http://www.sandwell.gov.uk/info/200202/performance_and_spending/1079/payments_over_500,02-Sep-2021,Housing & Communities,NICOL TRANSMISSIONS UK LTD,Neighbourhoods,740.00,Fire Service Workshops,2122P06_CR00190,15941
Sandwell Metropolitan Borough Council,http://www.sandwell.gov.uk/info/200202/performance_and_spending/1079/payments_over_500,01-Sep-2021,Housing & Communities,RYGOR COMMERCIALS LTD,Neighbourhoods,741.45,Fire Service Workshops,2122P06_CR00191,3345
Sandwell Metropolitan Borough Council,http://www.sandwell.gov.uk/info/200202/performance_and_spending/1079/payments_over_500,21-Sep-2021,Housing & Communities,GREENHOUS COMMERCIALS LTD,Neighbourhoods,775.00,Fire Service Workshops,2122P06_CR00192,01141434
Sandwell Metropolitan Borough Council,http://www.sandwell.gov.uk/info/200202/performance_and_spending/1079/payments_over_500,13-Sep-2021,Housing & Communities,DENNIS EAGLE LTD,Neighbourhoods,796.59,Fire Service Workshops,2122P06_CR00193,01004865
Sandwell Metropolitan Borough Council,http://www.sandwell.gov.uk/info/200202/performance_and_spending/1079/payments_over_500,10-Sep-2021,Housing & Communities,DENNIS EAGLE LTD,Neighbourhoods,812.49,Fire Service Workshops,2122P06_CR00194,01004865
Sandwell Metropolitan Borough Council,http://www.sandwell.gov.uk/info/200202/performance_and_spending/1079/payments_over_500,08-Sep-2021,Housing & Communities,DENNIS EAGLE LTD,Neighbourhoods,813.42,Fire Service Workshops,2122P06_CR00195,01004865
Sandwell Metropolitan Borough Council,http://www.sandwell.gov.uk/info/200202/performance_and_spending/1079/payments_over_500,27-Sep-2021,Housing & Communities,DENNIS EAGLE LTD,Neighbourhoods,861.10,Fire Service Workshops,2122P06_CR00196,01004865
Sandwell Metropolitan Borough Council,http://www.sandwell.gov.uk/info/200202/performance_and_spending/1079/payments_over_500,30-Sep-2021,Housing & Communities,DAYS RENTAL,Neighbourhoods,862.20,Vehicle Hiring Charges,2122P06_CR00197,128169
Sandwell Metropolitan Borough Council,http://www.sandwell.gov.uk/info/200202/performance_and_spending/1079/payments_over_500,30-Sep-2021,Housing & Communities,DAYS RENTAL,Neighbourhoods,862.20,Vehicle Hiring Charges,2122P06_CR00198,128169
Sandwell Metropolitan Borough Council,http://www.sandwell.gov.uk/info/200202/performance_and_spending/1079/payments_over_500,30-Sep-2021,Housing & Communities,DAYS RENTAL,Neighbourhoods,862.20,Vehicle Hiring Charges,2122P06_CR00199,128169
Sandwell Metropolitan Borough Council,http://www.sandwell.gov.uk/info/200202/performance_and_spending/1079/payments_over_500,20-Sep-2021,Housing & Communities,GEESINK NORBA LTD,Neighbourhoods,865.87,Fire Service Workshops,2122P06_CR00200,102799
Sandwell Metropolitan Borough Council,http://www.sandwell.gov.uk/info/200202/performance_and_spending/1079/payments_over_500,21-Sep-2021,Housing & Communities,H L SMITH (TRANSMISSIONS) LTD,Neighbourhoods,875.00,Fire Service Workshops,2122P06_CR00201,01032886
Sandwell Metropolitan Borough Council,http://www.sandwell.gov.uk/info/200202/performance_and_spending/1079/payments_over_500,09-Sep-2021,Housing & Communities,SIMON TULLETT MACHINERY COMPANY LIMITED,Neighbourhoods,878.52,Repairs & Maintenance,2122P06_CR00202,109117
Sandwell Metropolitan Borough Council,http://www.sandwell.gov.uk/info/200202/performance_and_spending/1079/payments_over_500,01-Sep-2021,Housing & Communities,DAYS RENTAL,Neighbourhoods,890.94,Vehicle Hiring Charges,2122P06_CR00203,128169
Sandwell Metropolitan Borough Council,http://www.sandwell.gov.uk/info/200202/performance_and_spending/1079/payments_over_500,01-Sep-2021,Housing & Communities,DAYS RENTAL,Neighbourhoods,890.94,Vehicle Hiring Charges,2122P06_CR00204,128169
Sandwell Metropolitan Borough Council,http://www.sandwell.gov.uk/info/200202/performance_and_spending/1079/payments_over_500,01-Sep-2021,Housing & Communities,DAYS RENTAL,Neighbourhoods,890.94,Vehicle Hiring Charges,2122P06_CR00205,128169
Sandwell Metropolitan Borough Council,http://www.sandwell.gov.uk/info/200202/performance_and_spending/1079/payments_over_500,01-Sep-2021,Housing & Communities,PHS BESAFE,Neighbourhoods,1054.83,Protective Clothing & Uniforms,2122P06_CR00206,124613
Sandwell Metropolitan Borough Council,http://www.sandwell.gov.uk/info/200202/performance_and_spending/1079/payments_over_500,27-Sep-2021,Housing & Communities,DENNIS EAGLE LTD,Neighbourhoods,1094.15,Fire Service Workshops,2122P06_CR00207,01004865
Sandwell Metropolitan Borough Council,http://www.sandwell.gov.uk/info/200202/performance_and_spending/1079/payments_over_500,10-Sep-2021,Housing & Communities,DIRECT TYRE MANAGEMENT LTD,Neighbourhoods,1222.10,Tyres,2122P06_CR00208,134146
Sandwell Metropolitan Borough Council,http://www.sandwell.gov.uk/info/200202/performance_and_spending/1079/payments_over_500,07-Sep-2021,Housing & Communities,ROBINS & DAY PARTS WEST MIDLANDS,Neighbourhoods,1392.18,Fire Service Workshops,2122P06_CR00209,118812
Sandwell Metropolitan Borough Council,http://www.sandwell.gov.uk/info/200202/performance_and_spending/1079/payments_over_500,01-Sep-2021,Housing & Communities,HADLEYS STEAM CLEANING LTD,Neighbourhoods,1408.00,Repairs & Maintenance,2122P06_CR00210,132536
Sandwell Metropolitan Borough Council,http://www.sandwell.gov.uk/info/200202/performance_and_spending/1079/payments_over_500,14-Sep-2021,Housing & Communities,COOPER MOBILE SERVICES LTD,Neighbourhoods,1434.25,Fire Service Workshops,2122P06_CR00211,01304378
Sandwell Metropolitan Borough Council,http://www.sandwell.gov.uk/info/200202/performance_and_spending/1079/payments_over_500,01-Sep-2021,Housing & Communities,BUTLER REYNOLDS LTD,Neighbourhoods,1530.33,Fire Service Workshops,2122P06_CR00212,147157
Sandwell Metropolitan Borough Council,http://www.sandwell.gov.uk/info/200202/performance_and_spending/1079/payments_over_500,01-Sep-2021,Housing & Communities,FREIGHT TRANSPORT ASSOCIATION,Neighbourhoods,1675.00,Subscriptions,2122P06_CR00213,10335
Sandwell Metropolitan Borough Council,http://www.sandwell.gov.uk/info/200202/performance_and_spending/1079/payments_over_500,23-Sep-2021,Housing & Communities,H L SMITH (TRANSMISSIONS) LTD,Neighbourhoods,1725.00,Fire Service Workshops,2122P06_CR00214,01032886
Sandwell Metropolitan Borough Council,http://www.sandwell.gov.uk/info/200202/performance_and_spending/1079/payments_over_500,01-Sep-2021,Housing & Communities,DENNIS EAGLE LTD,Neighbourhoods,3087.19,Fire Service Workshops,2122P06_CR00215,01004865
Sandwell Metropolitan Borough Council,http://www.sandwell.gov.uk/info/200202/performance_and_spending/1079/payments_over_500,14-Sep-2021,Housing & Communities,HARTSHORNE MOTOR SERVICES LTD                                   01,Neighbourhoods,3371.94,Fire Service Workshops,2122P06_CR00216,01508668
Sandwell Metropolitan Borough Council,http://www.sandwell.gov.uk/info/200202/performance_and_spending/1079/payments_over_500,16-Sep-2021,Housing & Communities,WESTGATE TRANSPORT TRAINING LTD,Neighbourhoods,4677.81,Externally Purchased Professional Services ,2122P06_CR00217,8350
Sandwell Metropolitan Borough Council,http://www.sandwell.gov.uk/info/200202/performance_and_spending/1079/payments_over_500,13-Sep-2021,Housing & Communities,EUROMEC CONTRACTS LIMITED,Neighbourhoods,7600.00,Purchase of Vehicles,2122P06_CR00218,116244
Sandwell Metropolitan Borough Council,http://www.sandwell.gov.uk/info/200202/performance_and_spending/1079/payments_over_500,01-Sep-2021,Housing & Communities,MOTUS COMMERCIALS HALESOWEN,Neighbourhoods,11276.71,Fire Service Workshops,2122P06_CR00219,142253
Sandwell Metropolitan Borough Council,http://www.sandwell.gov.uk/info/200202/performance_and_spending/1079/payments_over_500,10-Sep-2021,Housing & Communities,MARSHALL PEUGEOT PETERBOROUGH,Neighbourhoods,20468.80,Licences & Test Fees,2122P06_CR00220,147845
Sandwell Metropolitan Borough Council,http://www.sandwell.gov.uk/info/200202/performance_and_spending/1079/payments_over_500,10-Sep-2021,Housing & Communities,MARSHALL PEUGEOT PETERBOROUGH,Neighbourhoods,20520.80,Licences & Test Fees,2122P06_CR00221,147845
Sandwell Metropolitan Borough Council,http://www.sandwell.gov.uk/info/200202/performance_and_spending/1079/payments_over_500,10-Sep-2021,Housing & Communities,MARSHALL PEUGEOT PETERBOROUGH,Neighbourhoods,24035.80,Licences & Test Fees,2122P06_CR00222,147845
Sandwell Metropolitan Borough Council,http://www.sandwell.gov.uk/info/200202/performance_and_spending/1079/payments_over_500,01-Sep-2021,Housing & Communities,JH ENVIRONMENTAL & CLEANSING SERVICES LTD,Neighbourhoods,500.00,Waste Disposal Charges,2122P06_CR00223,63576
Sandwell Metropolitan Borough Council,http://www.sandwell.gov.uk/info/200202/performance_and_spending/1079/payments_over_500,01-Sep-2021,Housing & Communities,CHUBB FIRE & SECURITY LIMITED t/a CHUBB ELECTRONIC SECURITY,Neighbourhoods,518.55,Security,2122P06_CR00224,81343
Sandwell Metropolitan Borough Council,http://www.sandwell.gov.uk/info/200202/performance_and_spending/1079/payments_over_500,10-Sep-2021,Housing & Communities,ORIGIN AMENITY SOLUTIONS,Neighbourhoods,523.00,Materials & Consumables,2122P06_CR00225,01076172
Sandwell Metropolitan Borough Council,http://www.sandwell.gov.uk/info/200202/performance_and_spending/1079/payments_over_500,06-Sep-2021,Housing & Communities,CITRON HYGIENE UK LTD,Neighbourhoods,529.96,Materials & Consumables,2122P06_CR00226,140849
Sandwell Metropolitan Borough Council,http://www.sandwell.gov.uk/info/200202/performance_and_spending/1079/payments_over_500,01-Sep-2021,Housing & Communities,PENNON WATER SERVICES T/A SOURCE FOR BUSINESS,Neighbourhoods,533.35,Water Services,2122P06_CR00227,131726
Sandwell Metropolitan Borough Council,http://www.sandwell.gov.uk/info/200202/performance_and_spending/1079/payments_over_500,01-Sep-2021,Housing & Communities,BCH PROPERTY LIMITED,Neighbourhoods,541.71,Rents,2122P06_CR00228,01011861
Sandwell Metropolitan Borough Council,http://www.sandwell.gov.uk/info/200202/performance_and_spending/1079/payments_over_500,14-Sep-2021,Housing & Communities,ABSOLUTE TRANSLATIONS LIMITED,Neighbourhoods,549.45,Externally Purchased Professional Services ,2122P06_CR00229,127115
Sandwell Metropolitan Borough Council,http://www.sandwell.gov.uk/info/200202/performance_and_spending/1079/payments_over_500,06-Sep-2021,Housing & Communities,CONTRACT LETTINGS LTD,Neighbourhoods,559.86,Rents,2122P06_CR00230,76625
Sandwell Metropolitan Borough Council,http://www.sandwell.gov.uk/info/200202/performance_and_spending/1079/payments_over_500,06-Sep-2021,Housing & Communities,CONTRACT LETTINGS LTD,Neighbourhoods,559.86,Rents,2122P06_CR00231,76625
Sandwell Metropolitan Borough Council,http://www.sandwell.gov.uk/info/200202/performance_and_spending/1079/payments_over_500,14-Sep-2021,Housing & Communities,IMMEDIATE CARE MEDICAL SERVICES LIMITED,Neighbourhoods,570.00,Civic Events,2122P06_CR00232,127453
Sandwell Metropolitan Borough Council,http://www.sandwell.gov.uk/info/200202/performance_and_spending/1079/payments_over_500,01-Sep-2021,Housing & Communities,BUCKS HOUSING LTD T/A HAGLEY HOTEL,Neighbourhoods,585.00,Rents,2122P06_CR00233,143677
Sandwell Metropolitan Borough Council,http://www.sandwell.gov.uk/info/200202/performance_and_spending/1079/payments_over_500,24-Sep-2021,Housing & Communities,PROFILE SECURITY SERVICES LTD,Neighbourhoods,597.52,Security,2122P06_CR00234,131253
Sandwell Metropolitan Borough Council,http://www.sandwell.gov.uk/info/200202/performance_and_spending/1079/payments_over_500,09-Sep-2021,Housing & Communities,REDACTED PERSONAL DATA,Neighbourhoods,600.00,Civic Events,2122P06_CR00235,REDACTED PERSONAL DATA
Sandwell Metropolitan Borough Council,http://www.sandwell.gov.uk/info/200202/performance_and_spending/1079/payments_over_500,15-Sep-2021,Housing & Communities,MIDLAND FORESTRY LIMITED,Neighbourhoods,604.00,Externally Purchased Professional Services ,2122P06_CR00236,45812
Sandwell Metropolitan Borough Council,http://www.sandwell.gov.uk/info/200202/performance_and_spending/1079/payments_over_500,01-Sep-2021,Housing & Communities,BEEHIVE BITS LIMITED,Neighbourhoods,619.20,Materials & Consumables,2122P06_CR00237,130628
Sandwell Metropolitan Borough Council,http://www.sandwell.gov.uk/info/200202/performance_and_spending/1079/payments_over_500,24-Sep-2021,Housing & Communities,CERTAS ENERGY LIMITED,Neighbourhoods,621.29,Oil,2122P06_CR00238,80421
Sandwell Metropolitan Borough Council,http://www.sandwell.gov.uk/info/200202/performance_and_spending/1079/payments_over_500,01-Sep-2021,Housing & Communities,PROFILE SECURITY SERVICES LTD,Neighbourhoods,624.68,Security,2122P06_CR00239,131253
Sandwell Metropolitan Borough Council,http://www.sandwell.gov.uk/info/200202/performance_and_spending/1079/payments_over_500,01-Sep-2021,Housing & Communities,BEECHWOOD TREES & LANDSCAPE LTD,Neighbourhoods,632.50,Externally Purchased Professional Services ,2122P06_CR00240,93287
Sandwell Metropolitan Borough Council,http://www.sandwell.gov.uk/info/200202/performance_and_spending/1079/payments_over_500,01-Sep-2021,Housing & Communities,BCH PROPERTY LIMITED,Neighbourhoods,641.76,Rents,2122P06_CR00241,01011861
Sandwell Metropolitan Borough Council,http://www.sandwell.gov.uk/info/200202/performance_and_spending/1079/payments_over_500,01-Sep-2021,Housing & Communities,CONTRACT LETTINGS LTD,Neighbourhoods,650.00,Rents,2122P06_CR00242,76625
Sandwell Metropolitan Borough Council,http://www.sandwell.gov.uk/info/200202/performance_and_spending/1079/payments_over_500,01-Sep-2021,Housing & Communities,PROFILE SECURITY SERVICES LTD,Neighbourhoods,651.84,Security,2122P06_CR00243,131253
Sandwell Metropolitan Borough Council,http://www.sandwell.gov.uk/info/200202/performance_and_spending/1079/payments_over_500,17-Sep-2021,Housing & Communities,KEYCRAFT,Neighbourhoods,696.00,Materials & Consumables,2122P06_CR00244,01064066
Sandwell Metropolitan Borough Council,http://www.sandwell.gov.uk/info/200202/performance_and_spending/1079/payments_over_500,01-Sep-2021,Housing & Communities,TRH WALSALL LTD,Neighbourhoods,700.14,Rents,2122P06_CR00245,85648
Sandwell Metropolitan Borough Council,http://www.sandwell.gov.uk/info/200202/performance_and_spending/1079/payments_over_500,06-Sep-2021,Housing & Communities,CONTRACT LETTINGS LTD,Neighbourhoods,701.22,Rents,2122P06_CR00246,76625
Sandwell Metropolitan Borough Council,http://www.sandwell.gov.uk/info/200202/performance_and_spending/1079/payments_over_500,06-Sep-2021,Housing & Communities,CONTRACT LETTINGS LTD,Neighbourhoods,701.22,Rents,2122P06_CR00247,76625
Sandwell Metropolitan Borough Council,http://www.sandwell.gov.uk/info/200202/performance_and_spending/1079/payments_over_500,06-Sep-2021,Housing & Communities,CONTRACT LETTINGS LTD,Neighbourhoods,701.22,Rents,2122P06_CR00248,76625
Sandwell Metropolitan Borough Council,http://www.sandwell.gov.uk/info/200202/performance_and_spending/1079/payments_over_500,06-Sep-2021,Housing & Communities,CONTRACT LETTINGS LTD,Neighbourhoods,701.22,Rents,2122P06_CR00249,76625
Sandwell Metropolitan Borough Council,http://www.sandwell.gov.uk/info/200202/performance_and_spending/1079/payments_over_500,06-Sep-2021,Housing & Communities,CONTRACT LETTINGS LTD,Neighbourhoods,701.22,Rents,2122P06_CR00250,76625
Sandwell Metropolitan Borough Council,http://www.sandwell.gov.uk/info/200202/performance_and_spending/1079/payments_over_500,06-Sep-2021,Housing & Communities,CONTRACT LETTINGS LTD,Neighbourhoods,701.22,Rents,2122P06_CR00251,76625
Sandwell Metropolitan Borough Council,http://www.sandwell.gov.uk/info/200202/performance_and_spending/1079/payments_over_500,01-Sep-2021,Housing & Communities,NATIONWIDE REMOVALS & STORAGE LTD T/A REMOVALS.CO.UK,Neighbourhoods,705.00,Waste Disposal Charges,2122P06_CR00252,123785
Sandwell Metropolitan Borough Council,http://www.sandwell.gov.uk/info/200202/performance_and_spending/1079/payments_over_500,24-Sep-2021,Housing & Communities,PROFILE SECURITY SERVICES LTD,Neighbourhoods,706.16,Security,2122P06_CR00253,131253
Sandwell Metropolitan Borough Council,http://www.sandwell.gov.uk/info/200202/performance_and_spending/1079/payments_over_500,01-Sep-2021,Housing & Communities,CERTAS ENERGY LIMITED,Neighbourhoods,720.03,Oil,2122P06_CR00254,80421
Sandwell Metropolitan Borough Council,http://www.sandwell.gov.uk/info/200202/performance_and_spending/1079/payments_over_500,01-Sep-2021,Housing & Communities,BEECHWOOD TREES & LANDSCAPE LTD,Neighbourhoods,750.00,Externally Purchased Professional Services ,2122P06_CR00255,93287
Sandwell Metropolitan Borough Council,http://www.sandwell.gov.uk/info/200202/performance_and_spending/1079/payments_over_500,01-Sep-2021,Housing & Communities,BEECHWOOD TREES & LANDSCAPE LTD,Neighbourhoods,750.00,Externally Purchased Professional Services ,2122P06_CR00256,93287
Sandwell Metropolitan Borough Council,http://www.sandwell.gov.uk/info/200202/performance_and_spending/1079/payments_over_500,21-Sep-2021,Housing & Communities,ESSEX AVENUE COMMUNITY ASSOCIATION,Neighbourhoods,750.00,Tenants Expenses,2122P06_CR00257,113690
Sandwell Metropolitan Borough Council,http://www.sandwell.gov.uk/info/200202/performance_and_spending/1079/payments_over_500,01-Sep-2021,Housing & Communities,HOUSING PARTNERS LIMITED,Neighbourhoods,759.00,Externally Purchased Professional Services ,2122P06_CR00258,78376
Sandwell Metropolitan Borough Council,http://www.sandwell.gov.uk/info/200202/performance_and_spending/1079/payments_over_500,03-Sep-2021,Housing & Communities,MIDLAND FORESTRY LIMITED,Neighbourhoods,760.00,Externally Purchased Professional Services ,2122P06_CR00259,45812
Sandwell Metropolitan Borough Council,http://www.sandwell.gov.uk/info/200202/performance_and_spending/1079/payments_over_500,17-Sep-2021,Housing & Communities,MIDLAND FORESTRY LIMITED,Neighbourhoods,760.00,Externally Purchased Professional Services ,2122P06_CR00260,45812
Sandwell Metropolitan Borough Council,http://www.sandwell.gov.uk/info/200202/performance_and_spending/1079/payments_over_500,01-Sep-2021,Housing & Communities,WATER PLUS SELECT LIMITED,Neighbourhoods,762.49,Water Services,2122P06_CR00261,129644
Sandwell Metropolitan Borough Council,http://www.sandwell.gov.uk/info/200202/performance_and_spending/1079/payments_over_500,06-Sep-2021,Housing & Communities,CONTRACT LETTINGS LTD,Neighbourhoods,763.22,Rents,2122P06_CR00262,76625
Sandwell Metropolitan Borough Council,http://www.sandwell.gov.uk/info/200202/performance_and_spending/1079/payments_over_500,06-Sep-2021,Housing & Communities,CONTRACT LETTINGS LTD,Neighbourhoods,763.22,Rents,2122P06_CR00263,76625
Sandwell Metropolitan Borough Council,http://www.sandwell.gov.uk/info/200202/performance_and_spending/1079/payments_over_500,06-Sep-2021,Housing & Communities,CONTRACT LETTINGS LTD,Neighbourhoods,763.22,Rents,2122P06_CR00264,76625
Sandwell Metropolitan Borough Council,http://www.sandwell.gov.uk/info/200202/performance_and_spending/1079/payments_over_500,01-Sep-2021,Housing & Communities,SERCO LIMITED,Neighbourhoods,764.22,Waste Disposal Charges,2122P06_CR00265,53771
Sandwell Metropolitan Borough Council,http://www.sandwell.gov.uk/info/200202/performance_and_spending/1079/payments_over_500,01-Sep-2021,Housing & Communities,BUCKS HOUSING LTD T/A HAGLEY HOTEL,Neighbourhoods,770.00,Rents,2122P06_CR00266,143677
Sandwell Metropolitan Borough Council,http://www.sandwell.gov.uk/info/200202/performance_and_spending/1079/payments_over_500,06-Sep-2021,Housing & Communities,CONTRACT LETTINGS LTD,Neighbourhoods,771.90,Rents,2122P06_CR00267,76625
Sandwell Metropolitan Borough Council,http://www.sandwell.gov.uk/info/200202/performance_and_spending/1079/payments_over_500,06-Sep-2021,Housing & Communities,CONTRACT LETTINGS LTD,Neighbourhoods,794.22,Rents,2122P06_CR00268,76625
Sandwell Metropolitan Borough Council,http://www.sandwell.gov.uk/info/200202/performance_and_spending/1079/payments_over_500,01-Sep-2021,Housing & Communities,BUCKS HOUSING LTD T/A HAGLEY HOTEL,Neighbourhoods,800.00,Rents,2122P06_CR00269,143677
Sandwell Metropolitan Borough Council,http://www.sandwell.gov.uk/info/200202/performance_and_spending/1079/payments_over_500,01-Sep-2021,Housing & Communities,TRH WALSALL LTD,Neighbourhoods,816.76,Rents,2122P06_CR00270,85648
Sandwell Metropolitan Borough Council,http://www.sandwell.gov.uk/info/200202/performance_and_spending/1079/payments_over_500,01-Sep-2021,Housing & Communities,TRH WALSALL LTD,Neighbourhoods,816.76,Rents,2122P06_CR00271,85648
Sandwell Metropolitan Borough Council,http://www.sandwell.gov.uk/info/200202/performance_and_spending/1079/payments_over_500,24-Sep-2021,Housing & Communities,PROFILE SECURITY SERVICES LTD,Neighbourhoods,835.17,Security,2122P06_CR00272,131253
Sandwell Metropolitan Borough Council,http://www.sandwell.gov.uk/info/200202/performance_and_spending/1079/payments_over_500,01-Sep-2021,Housing & Communities,VENDAID LTD,Neighbourhoods,884.30,Materials & Consumables,2122P06_CR00273,01045695
Sandwell Metropolitan Borough Council,http://www.sandwell.gov.uk/info/200202/performance_and_spending/1079/payments_over_500,02-Sep-2021,Housing & Communities,BEECHWOOD TREES & LANDSCAPE LTD,Neighbourhoods,922.00,Externally Purchased Professional Services ,2122P06_CR00274,93287
Sandwell Metropolitan Borough Council,http://www.sandwell.gov.uk/info/200202/performance_and_spending/1079/payments_over_500,03-Sep-2021,Housing & Communities,BEECHWOOD TREES & LANDSCAPE LTD,Neighbourhoods,930.00,Externally Purchased Professional Services ,2122P06_CR00275,93287
Sandwell Metropolitan Borough Council,http://www.sandwell.gov.uk/info/200202/performance_and_spending/1079/payments_over_500,10-Sep-2021,Housing & Communities,WEST MIDLANDS HOUSING SOLUTIONS LTD,Neighbourhoods,935.00,Equipment & Furniture ,2122P06_CR00276,150318
Sandwell Metropolitan Borough Council,http://www.sandwell.gov.uk/info/200202/performance_and_spending/1079/payments_over_500,01-Sep-2021,Housing & Communities,TRH WALSALL LTD,Neighbourhoods,962.64,Rents,2122P06_CR00277,85648
Sandwell Metropolitan Borough Council,http://www.sandwell.gov.uk/info/200202/performance_and_spending/1079/payments_over_500,01-Sep-2021,Housing & Communities,GILANI ENTERPRISES LIMITED,Neighbourhoods,1000.00,Rents,2122P06_CR00278,2696
Sandwell Metropolitan Borough Council,http://www.sandwell.gov.uk/info/200202/performance_and_spending/1079/payments_over_500,01-Sep-2021,Housing & Communities,INVICTA BUSINESS MACHINES LTD,Neighbourhoods,1014.00,Subscriptions,2122P06_CR00279,142027
Sandwell Metropolitan Borough Council,http://www.sandwell.gov.uk/info/200202/performance_and_spending/1079/payments_over_500,01-Sep-2021,Housing & Communities,AUSTINS ESTATE AGENTS,Neighbourhoods,1038.00,Rents,2122P06_CR00280,154478
Sandwell Metropolitan Borough Council,http://www.sandwell.gov.uk/info/200202/performance_and_spending/1079/payments_over_500,01-Sep-2021,Housing & Communities,RIGHT TO CARE LTD.,Neighbourhoods,1071.43,Rents,2122P06_CR00281,133426
Sandwell Metropolitan Borough Council,http://www.sandwell.gov.uk/info/200202/performance_and_spending/1079/payments_over_500,01-Sep-2021,Housing & Communities,BIBLIOTHECA LIMITED,Neighbourhoods,1106.00,ICT ,2122P06_CR00282,94179
Sandwell Metropolitan Borough Council,http://www.sandwell.gov.uk/info/200202/performance_and_spending/1079/payments_over_500,01-Sep-2021,Housing & Communities,DORMY HOTEL,Neighbourhoods,1156.32,Rents,2122P06_CR00283,01737052
Sandwell Metropolitan Borough Council,http://www.sandwell.gov.uk/info/200202/performance_and_spending/1079/payments_over_500,01-Sep-2021,Housing & Communities,BCH PROPERTY LIMITED,Neighbourhoods,1166.76,Rents,2122P06_CR00284,01011861
Sandwell Metropolitan Borough Council,http://www.sandwell.gov.uk/info/200202/performance_and_spending/1079/payments_over_500,01-Sep-2021,Housing & Communities,PHOENIX GAS SERVICES LIMITED,Neighbourhoods,1197.00,Contract Payments,2122P06_CR00285,126729
Sandwell Metropolitan Borough Council,http://www.sandwell.gov.uk/info/200202/performance_and_spending/1079/payments_over_500,21-Sep-2021,Housing & Communities,TRINITY PROPERTY                                      01,Neighbourhoods,1250.00,Tenants Expenses,2122P06_CR00286,115767
Sandwell Metropolitan Borough Council,http://www.sandwell.gov.uk/info/200202/performance_and_spending/1079/payments_over_500,07-Sep-2021,Housing & Communities,BEECHWOOD TREES & LANDSCAPE LTD,Neighbourhoods,1300.00,Externally Purchased Professional Services ,2122P06_CR00287,93287
Sandwell Metropolitan Borough Council,http://www.sandwell.gov.uk/info/200202/performance_and_spending/1079/payments_over_500,09-Sep-2021,Housing & Communities,ABERYSTWYTH UNIVERSITY,Neighbourhoods,1306.67,Staff Development & Training,2122P06_CR00288,01735334
Sandwell Metropolitan Borough Council,http://www.sandwell.gov.uk/info/200202/performance_and_spending/1079/payments_over_500,01-Sep-2021,Housing & Communities,HAYSTOUN CONSTRUCTION LTD,Neighbourhoods,1335.00,Operational Services ,2122P06_CR00289,11849
Sandwell Metropolitan Borough Council,http://www.sandwell.gov.uk/info/200202/performance_and_spending/1079/payments_over_500,01-Sep-2021,Housing & Communities,BCH PROPERTY LIMITED,Neighbourhoods,1375.20,Rents,2122P06_CR00290,01011861
Sandwell Metropolitan Borough Council,http://www.sandwell.gov.uk/info/200202/performance_and_spending/1079/payments_over_500,01-Sep-2021,Housing & Communities,CERTAS ENERGY LIMITED,Neighbourhoods,1394.75,Fuel ,2122P06_CR00291,80421
Sandwell Metropolitan Borough Council,http://www.sandwell.gov.uk/info/200202/performance_and_spending/1079/payments_over_500,02-Sep-2021,Housing & Communities,ORIGIN AMENITY SOLUTIONS,Neighbourhoods,1425.00,Materials & Consumables,2122P06_CR00292,01076172
Sandwell Metropolitan Borough Council,http://www.sandwell.gov.uk/info/200202/performance_and_spending/1079/payments_over_500,07-Sep-2021,Housing & Communities,HAYSTOUN CONSTRUCTION LTD,Neighbourhoods,1440.00,Operational Services ,2122P06_CR00293,11849
Sandwell Metropolitan Borough Council,http://www.sandwell.gov.uk/info/200202/performance_and_spending/1079/payments_over_500,01-Sep-2021,Housing & Communities,WEST MIDLANDS HOUSING SOLUTIONS LTD,Neighbourhoods,1490.00,Equipment & Furniture ,2122P06_CR00294,150318
Sandwell Metropolitan Borough Council,http://www.sandwell.gov.uk/info/200202/performance_and_spending/1079/payments_over_500,01-Sep-2021,Housing & Communities,WEST MIDLANDS HOUSING SOLUTIONS LTD,Neighbourhoods,1490.00,Equipment & Furniture ,2122P06_CR00295,150318
Sandwell Metropolitan Borough Council,http://www.sandwell.gov.uk/info/200202/performance_and_spending/1079/payments_over_500,17-Sep-2021,Housing & Communities,WEST MIDLANDS HOUSING SOLUTIONS LTD,Neighbourhoods,1490.00,Equipment & Furniture ,2122P06_CR00296,150318
Sandwell Metropolitan Borough Council,http://www.sandwell.gov.uk/info/200202/performance_and_spending/1079/payments_over_500,01-Sep-2021,Housing & Communities,BCH PROPERTY LIMITED,Neighbourhoods,1568.00,Rents,2122P06_CR00297,01011861
Sandwell Metropolitan Borough Council,http://www.sandwell.gov.uk/info/200202/performance_and_spending/1079/payments_over_500,01-Sep-2021,Housing & Communities,BUCKS HOUSING LTD T/A HAGLEY HOTEL,Neighbourhoods,1625.00,Rents,2122P06_CR00298,143677
Sandwell Metropolitan Borough Council,http://www.sandwell.gov.uk/info/200202/performance_and_spending/1079/payments_over_500,14-Sep-2021,Housing & Communities,PROFILE SECURITY SERVICES LTD,Neighbourhoods,1702.40,Security,2122P06_CR00299,131253
Sandwell Metropolitan Borough Council,http://www.sandwell.gov.uk/info/200202/performance_and_spending/1079/payments_over_500,01-Sep-2021,Housing & Communities,REDACTED PERSONAL DATA,Neighbourhoods,1714.80,Rents,2122P06_CR00300,REDACTED PERSONAL DATA
Sandwell Metropolitan Borough Council,http://www.sandwell.gov.uk/info/200202/performance_and_spending/1079/payments_over_500,01-Sep-2021,Housing & Communities,REDACTED PERSONAL DATA,Neighbourhoods,1714.80,Rents,2122P06_CR00301,REDACTED PERSONAL DATA
Sandwell Metropolitan Borough Council,http://www.sandwell.gov.uk/info/200202/performance_and_spending/1079/payments_over_500,20-Sep-2021,Housing & Communities,HAYSTOUN CONSTRUCTION LTD,Neighbourhoods,1750.00,Grounds Maintenance & Improvements,2122P06_CR00302,11849
Sandwell Metropolitan Borough Council,http://www.sandwell.gov.uk/info/200202/performance_and_spending/1079/payments_over_500,01-Sep-2021,Housing & Communities,REDACTED PERSONAL DATA,Neighbourhoods,1771.96,Rents,2122P06_CR00303,REDACTED PERSONAL DATA
Sandwell Metropolitan Borough Council,http://www.sandwell.gov.uk/info/200202/performance_and_spending/1079/payments_over_500,01-Sep-2021,Housing & Communities,BUCKS HOUSING LTD T/A HAGLEY HOTEL,Neighbourhoods,1775.00,Rents,2122P06_CR00304,143677
Sandwell Metropolitan Borough Council,http://www.sandwell.gov.uk/info/200202/performance_and_spending/1079/payments_over_500,01-Sep-2021,Housing & Communities,INFAMOUS COMMUNITY ARTS,Neighbourhoods,1800.00,Civic Events,2122P06_CR00305,102940
Sandwell Metropolitan Borough Council,http://www.sandwell.gov.uk/info/200202/performance_and_spending/1079/payments_over_500,11-Sep-2021,Housing & Communities,G & B KENDALL & SONS,Neighbourhoods,1810.00,Materials & Consumables,2122P06_CR00306,01422772
Sandwell Metropolitan Borough Council,http://www.sandwell.gov.uk/info/200202/performance_and_spending/1079/payments_over_500,01-Sep-2021,Housing & Communities,BUCKS HOUSING LTD T/A HAGLEY HOTEL,Neighbourhoods,1925.00,Rents,2122P06_CR00307,143677
Sandwell Metropolitan Borough Council,http://www.sandwell.gov.uk/info/200202/performance_and_spending/1079/payments_over_500,01-Sep-2021,Housing & Communities,GILANI ENTERPRISES LIMITED,Neighbourhoods,1942.86,Rents,2122P06_CR00308,2696
Sandwell Metropolitan Borough Council,http://www.sandwell.gov.uk/info/200202/performance_and_spending/1079/payments_over_500,06-Sep-2021,Housing & Communities,REDACTED PERSONAL DATA,Neighbourhoods,1944.80,Civic Events,2122P06_CR00309,REDACTED PERSONAL DATA
Sandwell Metropolitan Borough Council,http://www.sandwell.gov.uk/info/200202/performance_and_spending/1079/payments_over_500,01-Sep-2021,Housing & Communities,PROFILE SECURITY SERVICES LTD,Neighbourhoods,2037.00,Security,2122P06_CR00310,131253
Sandwell Metropolitan Borough Council,http://www.sandwell.gov.uk/info/200202/performance_and_spending/1079/payments_over_500,01-Sep-2021,Housing & Communities,SUEZ RECYLING AND RECOVERY HOLDINGS UK LTD,Neighbourhoods,2067.70,Waste Disposal Charges,2122P06_CR00311,129939
Sandwell Metropolitan Borough Council,http://www.sandwell.gov.uk/info/200202/performance_and_spending/1079/payments_over_500,01-Sep-2021,Housing & Communities,Q TECHNICAL SERVICES UK LTD,Neighbourhoods,2100.00,Building Maintenance & Improvements,2122P06_CR00312,135645
Sandwell Metropolitan Borough Council,http://www.sandwell.gov.uk/info/200202/performance_and_spending/1079/payments_over_500,15-Sep-2021,Housing & Communities,WEST MIDLANDS HOUSING SOLUTIONS LTD,Neighbourhoods,2260.00,Equipment & Furniture ,2122P06_CR00313,150318
Sandwell Metropolitan Borough Council,http://www.sandwell.gov.uk/info/200202/performance_and_spending/1079/payments_over_500,06-Sep-2021,Housing & Communities,HOME FARM NURSERIES (PINVIN) LIMITED,Neighbourhoods,2270.70,Operational Services ,2122P06_CR00314,77003445
Sandwell Metropolitan Borough Council,http://www.sandwell.gov.uk/info/200202/performance_and_spending/1079/payments_over_500,20-Sep-2021,Housing & Communities,WEST MIDLANDS MARQUEES,Neighbourhoods,2325.00,Equipment & Furniture ,2122P06_CR00315,134805
Sandwell Metropolitan Borough Council,http://www.sandwell.gov.uk/info/200202/performance_and_spending/1079/payments_over_500,22-Sep-2021,Housing & Communities,REDACTED PERSONAL DATA,Neighbourhoods,2450.00,Rents,2122P06_CR00316,REDACTED PERSONAL DATA
Sandwell Metropolitan Borough Council,http://www.sandwell.gov.uk/info/200202/performance_and_spending/1079/payments_over_500,01-Sep-2021,Housing & Communities,SANDWELL LIFT PROJECT COMPANY (NO 3) LIMITED,Neighbourhoods,2495.58,Water Services,2122P06_CR00317,113986
Sandwell Metropolitan Borough Council,http://www.sandwell.gov.uk/info/200202/performance_and_spending/1079/payments_over_500,01-Sep-2021,Housing & Communities,ALLSTAR BUSINESS SOLUTIONS LIMITED,Neighbourhoods,2513.01,Fuel ,2122P06_CR00318,104057
Sandwell Metropolitan Borough Council,http://www.sandwell.gov.uk/info/200202/performance_and_spending/1079/payments_over_500,01-Sep-2021,Housing & Communities,BUCKS HOUSING LTD T/A HAGLEY HOTEL,Neighbourhoods,2625.00,Rents,2122P06_CR00319,143677
Sandwell Metropolitan Borough Council,http://www.sandwell.gov.uk/info/200202/performance_and_spending/1079/payments_over_500,01-Sep-2021,Housing & Communities,INSIGHT MEDIA INTERNET LIMITED,Housing & Communities,2992.50,CIP - Infrastructure,2122P06_CR00320,132525
Sandwell Metropolitan Borough Council,http://www.sandwell.gov.uk/info/200202/performance_and_spending/1079/payments_over_500,01-Sep-2021,Housing & Communities,COOKE RUDLING LIMITED,Assistant Chief Executive (Excl SIU),3150.00,Externally Purchased Professional Services ,2122P06_CR00321,01577073
Sandwell Metropolitan Borough Council,http://www.sandwell.gov.uk/info/200202/performance_and_spending/1079/payments_over_500,15-Sep-2021,Housing & Communities,ALLSTAR BUSINESS SOLUTIONS LIMITED,Neighbourhoods,3303.93,Fuel ,2122P06_CR00322,104057
Sandwell Metropolitan Borough Council,http://www.sandwell.gov.uk/info/200202/performance_and_spending/1079/payments_over_500,17-Sep-2021,Housing & Communities,MIDLAND FORESTRY LIMITED,Neighbourhoods,3331.00,Externally Purchased Professional Services ,2122P06_CR00323,45812
Sandwell Metropolitan Borough Council,http://www.sandwell.gov.uk/info/200202/performance_and_spending/1079/payments_over_500,01-Sep-2021,Housing & Communities,AECOM INFRASTRUCTURE & ENVIRONMENT UK LIMITED,Neighbourhoods,3538.42,Consultancy,2122P06_CR00324,107299
Sandwell Metropolitan Borough Council,http://www.sandwell.gov.uk/info/200202/performance_and_spending/1079/payments_over_500,01-Sep-2021,Housing & Communities,REDACTED PERSONAL DATA,Neighbourhoods,3550.00,Consultancy,2122P06_CR00325,REDACTED PERSONAL DATA
Sandwell Metropolitan Borough Council,http://www.sandwell.gov.uk/info/200202/performance_and_spending/1079/payments_over_500,01-Sep-2021,Housing & Communities,TOTALENERGIES GAS & POWER LTD,Housing & Communities,4055.81,"CIP - New Construction,Conversion, Enhancement & Reno",2122P06_CR00326,107605
Sandwell Metropolitan Borough Council,http://www.sandwell.gov.uk/info/200202/performance_and_spending/1079/payments_over_500,20-Sep-2021,Housing & Communities,STORAGE BITZ LIMITED,Neighbourhoods,4288.00,Equipment & Furniture ,2122P06_CR00327,116231
Sandwell Metropolitan Borough Council,http://www.sandwell.gov.uk/info/200202/performance_and_spending/1079/payments_over_500,20-Sep-2021,Housing & Communities,SHARP,Neighbourhoods,4402.44,Rents,2122P06_CR00328,08280972
Sandwell Metropolitan Borough Council,http://www.sandwell.gov.uk/info/200202/performance_and_spending/1079/payments_over_500,20-Sep-2021,Housing & Communities,SHARP,Neighbourhoods,4402.44,Rents,2122P06_CR00329,08280972
Sandwell Metropolitan Borough Council,http://www.sandwell.gov.uk/info/200202/performance_and_spending/1079/payments_over_500,20-Sep-2021,Housing & Communities,SHARP,Neighbourhoods,4402.44,Rents,2122P06_CR00330,08280972
Sandwell Metropolitan Borough Council,http://www.sandwell.gov.uk/info/200202/performance_and_spending/1079/payments_over_500,01-Sep-2021,Housing & Communities,C F BARKER AND SONS (MARQUEES) LTD,Housing & Communities,4910.35,Equipment & Furniture ,2122P06_CR00331,152338
Sandwell Metropolitan Borough Council,http://www.sandwell.gov.uk/info/200202/performance_and_spending/1079/payments_over_500,01-Sep-2021,Housing & Communities,SERCO LIMITED,Neighbourhoods,5426.20,Waste Disposal Charges,2122P06_CR00332,53771
Sandwell Metropolitan Borough Council,http://www.sandwell.gov.uk/info/200202/performance_and_spending/1079/payments_over_500,01-Sep-2021,Housing & Communities,GILANI ENTERPRISES LIMITED,Neighbourhoods,5942.86,Rents,2122P06_CR00333,2696
Sandwell Metropolitan Borough Council,http://www.sandwell.gov.uk/info/200202/performance_and_spending/1079/payments_over_500,01-Sep-2021,Housing & Communities,HILL INTERIOR CONTRACTS LTD,Neighbourhoods,6127.00,Rents,2122P06_CR00334,17158
Sandwell Metropolitan Borough Council,http://www.sandwell.gov.uk/info/200202/performance_and_spending/1079/payments_over_500,20-Sep-2021,Housing & Communities,HAYSTOUN CONSTRUCTION LTD,Neighbourhoods,7503.73,Operational Services ,2122P06_CR00335,11849
Sandwell Metropolitan Borough Council,http://www.sandwell.gov.uk/info/200202/performance_and_spending/1079/payments_over_500,01-Sep-2021,Housing & Communities,MACE LTD,Neighbourhoods,9060.00,Consultancy,2122P06_CR00336,30882
Sandwell Metropolitan Borough Council,http://www.sandwell.gov.uk/info/200202/performance_and_spending/1079/payments_over_500,15-Sep-2021,Housing & Communities,AECOM INFRASTRUCTURE & ENVIRONMENT UK LIMITED,Neighbourhoods,10163.83,Consultancy,2122P06_CR00337,107299
Sandwell Metropolitan Borough Council,http://www.sandwell.gov.uk/info/200202/performance_and_spending/1079/payments_over_500,02-Sep-2021,Housing & Communities,CERTAS ENERGY LIMITED,Neighbourhoods,10363.04,Fuel ,2122P06_CR00338,80421
Sandwell Metropolitan Borough Council,http://www.sandwell.gov.uk/info/200202/performance_and_spending/1079/payments_over_500,01-Sep-2021,Housing & Communities,PROFILE SECURITY SERVICES LTD,Neighbourhoods,10612.77,Security,2122P06_CR00339,131253
Sandwell Metropolitan Borough Council,http://www.sandwell.gov.uk/info/200202/performance_and_spending/1079/payments_over_500,01-Sep-2021,Housing & Communities,PROFILE SECURITY SERVICES LTD,Neighbourhoods,11451.44,Security,2122P06_CR00340,131253
Sandwell Metropolitan Borough Council,http://www.sandwell.gov.uk/info/200202/performance_and_spending/1079/payments_over_500,10-Sep-2021,Housing & Communities,R & A SOFTWARE (SYSTEMS) LIMITED,Neighbourhoods,12420.00,ICT ,2122P06_CR00341,99711
Sandwell Metropolitan Borough Council,http://www.sandwell.gov.uk/info/200202/performance_and_spending/1079/payments_over_500,20-Sep-2021,Housing & Communities,SERCO LIMITED,Neighbourhoods,12662.71,Waste Disposal Charges,2122P06_CR00342,53771
Sandwell Metropolitan Borough Council,http://www.sandwell.gov.uk/info/200202/performance_and_spending/1079/payments_over_500,01-Sep-2021,Housing & Communities,SERCO LIMITED,Neighbourhoods,12889.64,Waste Disposal Charges,2122P06_CR00343,53771
Sandwell Metropolitan Borough Council,http://www.sandwell.gov.uk/info/200202/performance_and_spending/1079/payments_over_500,10-Sep-2021,Housing & Communities,CERTAS ENERGY LIMITED,Neighbourhoods,13333.52,Fuel ,2122P06_CR00344,80421
Sandwell Metropolitan Borough Council,http://www.sandwell.gov.uk/info/200202/performance_and_spending/1079/payments_over_500,16-Sep-2021,Housing & Communities,BIBLIOTHECA LIMITED,Neighbourhoods,13917.23,ICT ,2122P06_CR00345,94179
Sandwell Metropolitan Borough Council,http://www.sandwell.gov.uk/info/200202/performance_and_spending/1079/payments_over_500,22-Sep-2021,Housing & Communities,AMATEUR SWIMMING ASSOC (SWIM ENGLAND) LTD,Neighbourhoods,16000.00,Externally Purchased Professional Services ,2122P06_CR00346,154806
Sandwell Metropolitan Borough Council,http://www.sandwell.gov.uk/info/200202/performance_and_spending/1079/payments_over_500,01-Sep-2021,Housing & Communities,J MCCANN & CO LIMITED,Housing & Communities,18076.55,CIP - Fixtures & Fittings,2122P06_CR00347,127457
Sandwell Metropolitan Borough Council,http://www.sandwell.gov.uk/info/200202/performance_and_spending/1079/payments_over_500,01-Sep-2021,Housing & Communities,RIDDELL TPS LIMITED,Neighbourhoods,18528.08,Rents,2122P06_CR00348,132427
Sandwell Metropolitan Borough Council,http://www.sandwell.gov.uk/info/200202/performance_and_spending/1079/payments_over_500,01-Sep-2021,Housing & Communities,HOME FARM NURSERIES (PINVIN) LIMITED,Neighbourhoods,19272.59,Materials & Consumables,2122P06_CR00349,77003445
Sandwell Metropolitan Borough Council,http://www.sandwell.gov.uk/info/200202/performance_and_spending/1079/payments_over_500,01-Sep-2021,Housing & Communities,SANDWELL LIFT PROJECT COMPANY (NO 3) LIMITED,Neighbourhoods,111833.11,SH Payments,2122P06_CR00350,113986
Sandwell Metropolitan Borough Council,http://www.sandwell.gov.uk/info/200202/performance_and_spending/1079/payments_over_500,02-Sep-2021,Housing & Communities,P CASEY LTD,Housing & Communities,155115.39,"CIP - New Construction,Conversion, Enhancement & Reno",2122P06_CR00351,149276
Sandwell Metropolitan Borough Council,http://www.sandwell.gov.uk/info/200202/performance_and_spending/1079/payments_over_500,10-Sep-2021,Housing & Communities,GRANICUS-FIRMSTEP LTD,Housing & Communities,178435.80,ICT ,2122P06_CR00352,122375
Sandwell Metropolitan Borough Council,http://www.sandwell.gov.uk/info/200202/performance_and_spending/1079/payments_over_500,08-Sep-2021,Housing & Communities,INTERCLASS PLC,Housing & Communities,335317.96,"CIP - New Construction,Conversion, Enhancement & Reno",2122P06_CR00353,77001959
Sandwell Metropolitan Borough Council,http://www.sandwell.gov.uk/info/200202/performance_and_spending/1079/payments_over_500,02-Sep-2021,Housing & Communities,STAFFORDSHIRE COUNTY COUNCIL,Neighbourhoods,386789.36,Waste Disposal Charges,2122P06_CR00354,01124861
Sandwell Metropolitan Borough Council,http://www.sandwell.gov.uk/info/200202/performance_and_spending/1079/payments_over_500,02-Sep-2021,Housing & Communities,STAFFORDSHIRE COUNTY COUNCIL,Neighbourhoods,386789.36,Waste Disposal Charges,2122P06_CR00355,01124861
Sandwell Metropolitan Borough Council,http://www.sandwell.gov.uk/info/200202/performance_and_spending/1079/payments_over_500,01-Sep-2021,Housing & Communities,SERCO LIMITED,Neighbourhoods,513080.39,Waste Disposal Charges,2122P06_CR00356,53771
Sandwell Metropolitan Borough Council,http://www.sandwell.gov.uk/info/200202/performance_and_spending/1079/payments_over_500,01-Sep-2021,Housing & Communities,SERCO LIMITED,Neighbourhoods,599584.62,Waste Disposal Charges,2122P06_CR00357,53771
Sandwell Metropolitan Borough Council,http://www.sandwell.gov.uk/info/200202/performance_and_spending/1079/payments_over_500,09-Sep-2021,Housing & Communities,WATES CONSTRUCTION LTD                                 01,Housing & Communities,1219742.16,"CIP - New Construction,Conversion, Enhancement & Reno",2122P06_CR00358,77000882
Sandwell Metropolitan Borough Council,http://www.sandwell.gov.uk/info/200202/performance_and_spending/1079/payments_over_500,08-Sep-2021,Housing & Communities,SERCO LIMITED,Neighbourhoods,1548625.84,Waste Disposal Charges,2122P06_CR00359,53771
Sandwell Metropolitan Borough Council,http://www.sandwell.gov.uk/info/200202/performance_and_spending/1079/payments_over_500,08-Sep-2021,Housing & Communities,WATES CONSTRUCTION LTD                                 01,Housing & Communities,1896625.56,"CIP - New Construction,Conversion, Enhancement & Reno",2122P06_CR00360,77000882
Sandwell Metropolitan Borough Council,http://www.sandwell.gov.uk/info/200202/performance_and_spending/1079/payments_over_500,28-Sep-2021,Housing & Communities,REDACTED PERSONAL DATA,Neighbourhoods,500.00,Rents,2122P06_CR00361,REDACTED PERSONAL DATA
Sandwell Metropolitan Borough Council,http://www.sandwell.gov.uk/info/200202/performance_and_spending/1079/payments_over_500,28-Sep-2021,Housing & Communities,REDACTED PERSONAL DATA,Neighbourhoods,500.00,Rents,2122P06_CR00362,REDACTED PERSONAL DATA
Sandwell Metropolitan Borough Council,http://www.sandwell.gov.uk/info/200202/performance_and_spending/1079/payments_over_500,28-Sep-2021,Housing & Communities,REDACTED PERSONAL DATA,Neighbourhoods,500.00,Rents,2122P06_CR00363,REDACTED PERSONAL DATA
Sandwell Metropolitan Borough Council,http://www.sandwell.gov.uk/info/200202/performance_and_spending/1079/payments_over_500,28-Sep-2021,Housing & Communities,REDACTED PERSONAL DATA,Neighbourhoods,500.00,Rents,2122P06_CR00364,REDACTED PERSONAL DATA
Sandwell Metropolitan Borough Council,http://www.sandwell.gov.uk/info/200202/performance_and_spending/1079/payments_over_500,28-Sep-2021,Housing & Communities,REDACTED PERSONAL DATA,Neighbourhoods,500.00,Rents,2122P06_CR00365,REDACTED PERSONAL DATA
Sandwell Metropolitan Borough Council,http://www.sandwell.gov.uk/info/200202/performance_and_spending/1079/payments_over_500,28-Sep-2021,Housing & Communities,REDACTED PERSONAL DATA,Neighbourhoods,500.00,Rents,2122P06_CR00366,REDACTED PERSONAL DATA
Sandwell Metropolitan Borough Council,http://www.sandwell.gov.uk/info/200202/performance_and_spending/1079/payments_over_500,28-Sep-2021,Housing & Communities,REDACTED PERSONAL DATA,Neighbourhoods,500.00,Rents,2122P06_CR00367,REDACTED PERSONAL DATA
Sandwell Metropolitan Borough Council,http://www.sandwell.gov.uk/info/200202/performance_and_spending/1079/payments_over_500,28-Sep-2021,Housing & Communities,REDACTED PERSONAL DATA,Neighbourhoods,500.00,Rents,2122P06_CR00368,REDACTED PERSONAL DATA
Sandwell Metropolitan Borough Council,http://www.sandwell.gov.uk/info/200202/performance_and_spending/1079/payments_over_500,28-Sep-2021,Housing & Communities,REDACTED PERSONAL DATA,Neighbourhoods,500.00,Rents,2122P06_CR00369,REDACTED PERSONAL DATA
Sandwell Metropolitan Borough Council,http://www.sandwell.gov.uk/info/200202/performance_and_spending/1079/payments_over_500,28-Sep-2021,Housing & Communities,REDACTED PERSONAL DATA,Neighbourhoods,500.00,Rents,2122P06_CR00370,REDACTED PERSONAL DATA
Sandwell Metropolitan Borough Council,http://www.sandwell.gov.uk/info/200202/performance_and_spending/1079/payments_over_500,28-Sep-2021,Housing & Communities,REDACTED PERSONAL DATA,Neighbourhoods,550.00,Rents,2122P06_CR00371,REDACTED PERSONAL DATA
Sandwell Metropolitan Borough Council,http://www.sandwell.gov.uk/info/200202/performance_and_spending/1079/payments_over_500,28-Sep-2021,Housing & Communities,REDACTED PERSONAL DATA,Neighbourhoods,550.00,Rents,2122P06_CR00372,REDACTED PERSONAL DATA
Sandwell Metropolitan Borough Council,http://www.sandwell.gov.uk/info/200202/performance_and_spending/1079/payments_over_500,28-Sep-2021,Housing & Communities,REDACTED PERSONAL DATA,Neighbourhoods,550.00,Rents,2122P06_CR00373,REDACTED PERSONAL DATA
Sandwell Metropolitan Borough Council,http://www.sandwell.gov.uk/info/200202/performance_and_spending/1079/payments_over_500,28-Sep-2021,Housing & Communities,REDACTED PERSONAL DATA,Neighbourhoods,550.00,Rents,2122P06_CR00374,REDACTED PERSONAL DATA
Sandwell Metropolitan Borough Council,http://www.sandwell.gov.uk/info/200202/performance_and_spending/1079/payments_over_500,28-Sep-2021,Housing & Communities,REDACTED PERSONAL DATA,Neighbourhoods,550.00,Rents,2122P06_CR00375,REDACTED PERSONAL DATA
Sandwell Metropolitan Borough Council,http://www.sandwell.gov.uk/info/200202/performance_and_spending/1079/payments_over_500,28-Sep-2021,Housing & Communities,REDACTED PERSONAL DATA,Neighbourhoods,1000.00,Rents,2122P06_CR00376,REDACTED PERSONAL DATA
Sandwell Metropolitan Borough Council,http://www.sandwell.gov.uk/info/200202/performance_and_spending/1079/payments_over_500,21-Sep-2021,Housing & Communities,SANDWELL CITIZENS ADVICE BUREAUX,Housing & Communities,4800.00,Grant Payments,2122P06_CR00377,01760899
Sandwell Metropolitan Borough Council,http://www.sandwell.gov.uk/info/200202/performance_and_spending/1079/payments_over_500,01-Sep-2021,Housing Revenue Account Capital,SELECT WINDOWS (HOME IMPROVEMENTS) LIMITED,Housing Revenue Account Capital,638.00,Contract Payments,2122P06_CR00378,42616
Sandwell Metropolitan Borough Council,http://www.sandwell.gov.uk/info/200202/performance_and_spending/1079/payments_over_500,01-Sep-2021,Housing Revenue Account Capital,SELECT WINDOWS (HOME IMPROVEMENTS) LIMITED,Housing Revenue Account Capital,675.00,Contract Payments,2122P06_CR00379,42616
Sandwell Metropolitan Borough Council,http://www.sandwell.gov.uk/info/200202/performance_and_spending/1079/payments_over_500,01-Sep-2021,Housing Revenue Account Capital,SELECT WINDOWS (HOME IMPROVEMENTS) LIMITED,Housing Revenue Account Capital,675.20,Contract Payments,2122P06_CR00380,42616
Sandwell Metropolitan Borough Council,http://www.sandwell.gov.uk/info/200202/performance_and_spending/1079/payments_over_500,01-Sep-2021,Housing Revenue Account Capital,SELECT WINDOWS (HOME IMPROVEMENTS) LIMITED,Housing Revenue Account Capital,712.13,Contract Payments,2122P06_CR00381,42616
Sandwell Metropolitan Borough Council,http://www.sandwell.gov.uk/info/200202/performance_and_spending/1079/payments_over_500,20-Sep-2021,Housing Revenue Account Capital,RIDGE & PARTNERS LLP,Housing Revenue Account Capital,860.00,CIP - Acquisition of Land & Existing Buildings,2122P06_CR00382,134994
Sandwell Metropolitan Borough Council,http://www.sandwell.gov.uk/info/200202/performance_and_spending/1079/payments_over_500,20-Sep-2021,Housing Revenue Account Capital,RIDGE & PARTNERS LLP,Housing Revenue Account Capital,860.00,Professional Fees (Asset),2122P06_CR00383,134994
Sandwell Metropolitan Borough Council,http://www.sandwell.gov.uk/info/200202/performance_and_spending/1079/payments_over_500,01-Sep-2021,Housing Revenue Account Capital,SELECT WINDOWS (HOME IMPROVEMENTS) LIMITED,Housing Revenue Account Capital,878.50,Contract Payments,2122P06_CR00384,42616
Sandwell Metropolitan Borough Council,http://www.sandwell.gov.uk/info/200202/performance_and_spending/1079/payments_over_500,01-Sep-2021,Housing Revenue Account Capital,SELECT WINDOWS (HOME IMPROVEMENTS) LIMITED,Housing Revenue Account Capital,934.22,Contract Payments,2122P06_CR00385,42616
Sandwell Metropolitan Borough Council,http://www.sandwell.gov.uk/info/200202/performance_and_spending/1079/payments_over_500,20-Sep-2021,Housing Revenue Account Capital,DOLPHIN LIFTS MIDLANDS LTD,Housing Revenue Account Capital,1000.00,Deferred Charges/Grant Payments,2122P06_CR00386,123852
Sandwell Metropolitan Borough Council,http://www.sandwell.gov.uk/info/200202/performance_and_spending/1079/payments_over_500,01-Sep-2021,Housing Revenue Account Capital,SELECT WINDOWS (HOME IMPROVEMENTS) LIMITED,Housing Revenue Account Capital,1241.00,Contract Payments,2122P06_CR00387,42616
Sandwell Metropolitan Borough Council,http://www.sandwell.gov.uk/info/200202/performance_and_spending/1079/payments_over_500,10-Sep-2021,Housing Revenue Account Capital,DOLPHIN LIFTS MIDLANDS LTD,Housing Revenue Account Capital,1250.00,Deferred Charges/Grant Payments,2122P06_CR00388,123852
Sandwell Metropolitan Borough Council,http://www.sandwell.gov.uk/info/200202/performance_and_spending/1079/payments_over_500,10-Sep-2021,Housing Revenue Account Capital,AXIS EUROPE PLC                                                           02,Housing Revenue Account Capital,1571.34,Deferred Charges/Grant Payments,2122P06_CR00389,64946
Sandwell Metropolitan Borough Council,http://www.sandwell.gov.uk/info/200202/performance_and_spending/1079/payments_over_500,01-Sep-2021,Housing Revenue Account Capital,SELECT WINDOWS (HOME IMPROVEMENTS) LIMITED,Housing Revenue Account Capital,2260.75,Contract Payments,2122P06_CR00390,42616
Sandwell Metropolitan Borough Council,http://www.sandwell.gov.uk/info/200202/performance_and_spending/1079/payments_over_500,20-Sep-2021,Housing Revenue Account Capital,DOLPHIN LIFTS MIDLANDS LTD,Housing Revenue Account Capital,2280.00,Deferred Charges/Grant Payments,2122P06_CR00391,123852
Sandwell Metropolitan Borough Council,http://www.sandwell.gov.uk/info/200202/performance_and_spending/1079/payments_over_500,01-Sep-2021,Housing Revenue Account Capital,WESSEX LIFT CO LTD,Housing Revenue Account Capital,3208.85,Building Maintenance & Improvements,2122P06_CR00392,01095737
Sandwell Metropolitan Borough Council,http://www.sandwell.gov.uk/info/200202/performance_and_spending/1079/payments_over_500,20-Sep-2021,Housing Revenue Account Capital,DOLPHIN LIFTS MIDLANDS LTD,Housing Revenue Account Capital,3846.74,Deferred Charges/Grant Payments,2122P06_CR00393,123852
Sandwell Metropolitan Borough Council,http://www.sandwell.gov.uk/info/200202/performance_and_spending/1079/payments_over_500,01-Sep-2021,Housing Revenue Account Capital,LOVELL PARTNERSHIPS  LTD,Housing Revenue Account Capital,5057.32,"CIP - New Construction,Conversion, Enhancement & Reno",2122P06_CR00394,77007398
Sandwell Metropolitan Borough Council,http://www.sandwell.gov.uk/info/200202/performance_and_spending/1079/payments_over_500,10-Sep-2021,Housing Revenue Account Capital,AXIS EUROPE PLC                                                           02,Housing Revenue Account Capital,5254.44,Deferred Charges/Grant Payments,2122P06_CR00395,64946
Sandwell Metropolitan Borough Council,http://www.sandwell.gov.uk/info/200202/performance_and_spending/1079/payments_over_500,10-Sep-2021,Housing Revenue Account Capital,AXIS EUROPE PLC                                                           02,Housing Revenue Account Capital,5733.77,Deferred Charges/Grant Payments,2122P06_CR00396,64946
Sandwell Metropolitan Borough Council,http://www.sandwell.gov.uk/info/200202/performance_and_spending/1079/payments_over_500,20-Sep-2021,Housing Revenue Account Capital,PR PROPERTY MAINTENANCE,Housing Revenue Account Capital,5995.47,Deferred Charges/Grant Payments,2122P06_CR00397,33836
Sandwell Metropolitan Borough Council,http://www.sandwell.gov.uk/info/200202/performance_and_spending/1079/payments_over_500,10-Sep-2021,Housing Revenue Account Capital,DOLPHIN LIFTS MIDLANDS LTD,Housing Revenue Account Capital,6993.66,Deferred Charges/Grant Payments,2122P06_CR00398,123852
Sandwell Metropolitan Borough Council,http://www.sandwell.gov.uk/info/200202/performance_and_spending/1079/payments_over_500,01-Sep-2021,Housing Revenue Account Capital,CADENT GAS LTD,Housing Revenue Account Capital,13218.00,Gas,2122P06_CR00399,131864
Sandwell Metropolitan Borough Council,http://www.sandwell.gov.uk/info/200202/performance_and_spending/1079/payments_over_500,03-Sep-2021,Housing Revenue Account Capital,LOVELL PARTNERSHIPS  LTD,Housing Revenue Account Capital,18819.33,"CIP - New Construction,Conversion, Enhancement & Reno",2122P06_CR00400,77007398
Sandwell Metropolitan Borough Council,http://www.sandwell.gov.uk/info/200202/performance_and_spending/1079/payments_over_500,17-Sep-2021,Housing Revenue Account Capital,PR PROPERTY MAINTENANCE,Housing Revenue Account Capital,31326.70,Deferred Charges/Grant Payments,2122P06_CR00401,33836
Sandwell Metropolitan Borough Council,http://www.sandwell.gov.uk/info/200202/performance_and_spending/1079/payments_over_500,17-Sep-2021,Housing Revenue Account Capital,PR PROPERTY MAINTENANCE,Housing Revenue Account Capital,34495.90,Deferred Charges/Grant Payments,2122P06_CR00402,33836
Sandwell Metropolitan Borough Council,http://www.sandwell.gov.uk/info/200202/performance_and_spending/1079/payments_over_500,10-Sep-2021,Housing Revenue Account Capital,AXIS EUROPE PLC                                                           02,Housing Revenue Account Capital,41948.32,Deferred Charges/Grant Payments,2122P06_CR00403,64946
Sandwell Metropolitan Borough Council,http://www.sandwell.gov.uk/info/200202/performance_and_spending/1079/payments_over_500,03-Sep-2021,Housing Revenue Account Capital,LOVELL PARTNERSHIPS  LTD,Housing Revenue Account Capital,47746.39,"CIP - New Construction,Conversion, Enhancement & Reno",2122P06_CR00404,77007398
Sandwell Metropolitan Borough Council,http://www.sandwell.gov.uk/info/200202/performance_and_spending/1079/payments_over_500,17-Sep-2021,Housing Revenue Account Capital,PR PROPERTY MAINTENANCE,Housing Revenue Account Capital,56432.91,Deferred Charges/Grant Payments,2122P06_CR00405,33836
Sandwell Metropolitan Borough Council,http://www.sandwell.gov.uk/info/200202/performance_and_spending/1079/payments_over_500,03-Sep-2021,Housing Revenue Account Capital,LOVELL PARTNERSHIPS  LTD,Housing Revenue Account Capital,61722.91,"CIP - New Construction,Conversion, Enhancement & Reno",2122P06_CR00406,77007398
Sandwell Metropolitan Borough Council,http://www.sandwell.gov.uk/info/200202/performance_and_spending/1079/payments_over_500,09-Sep-2021,Housing Revenue Account Capital,J.HARPER & SONS (LEOMINSTER) LIMITED,Housing Revenue Account Capital,101234.45,"CIP - New Construction,Conversion, Enhancement & Reno",2122P06_CR00407,111814
Sandwell Metropolitan Borough Council,http://www.sandwell.gov.uk/info/200202/performance_and_spending/1079/payments_over_500,01-Sep-2021,Housing Revenue Account Capital,VINCI CONSTRUCTION LTD,Housing Revenue Account Capital,113130.89,"CIP - New Construction,Conversion, Enhancement & Reno",2122P06_CR00408,36361
Sandwell Metropolitan Borough Council,http://www.sandwell.gov.uk/info/200202/performance_and_spending/1079/payments_over_500,08-Sep-2021,Housing Revenue Account Capital,J.HARPER & SONS (LEOMINSTER) LIMITED,Housing Revenue Account Capital,113436.36,"CIP - New Construction,Conversion, Enhancement & Reno",2122P06_CR00409,111814
Sandwell Metropolitan Borough Council,http://www.sandwell.gov.uk/info/200202/performance_and_spending/1079/payments_over_500,20-Sep-2021,Housing Revenue Account Capital,HIGGS LLP  ,Housing Revenue Account Capital,143108.00,CIP - Acquisition of Land & Existing Buildings,2122P06_CR00410,120965
Sandwell Metropolitan Borough Council,http://www.sandwell.gov.uk/info/200202/performance_and_spending/1079/payments_over_500,14-Sep-2021,Housing Revenue Account Capital,SPELLER METCALFE MALVERN LIMITED,Housing Revenue Account Capital,150703.69,"CIP - New Construction,Conversion, Enhancement & Reno",2122P06_CR00411,92473
Sandwell Metropolitan Borough Council,http://www.sandwell.gov.uk/info/200202/performance_and_spending/1079/payments_over_500,13-Sep-2021,Housing Revenue Account Capital,HIGGS LLP  ,Housing Revenue Account Capital,155468.00,CIP - Acquisition of Land & Existing Buildings,2122P06_CR00412,120965
Sandwell Metropolitan Borough Council,http://www.sandwell.gov.uk/info/200202/performance_and_spending/1079/payments_over_500,15-Sep-2021,Housing Revenue Account Capital,HIGGS & SONS SOLICITORS,Housing Revenue Account Capital,165768.00,CIP - Acquisition of Land & Existing Buildings,2122P06_CR00413,120965
Sandwell Metropolitan Borough Council,http://www.sandwell.gov.uk/info/200202/performance_and_spending/1079/payments_over_500,23-Sep-2021,Housing Revenue Account Capital,HIGGS LLP  ,Housing Revenue Account Capital,196759.20,CIP - Acquisition of Land & Existing Buildings,2122P06_CR00414,120965
Sandwell Metropolitan Borough Council,http://www.sandwell.gov.uk/info/200202/performance_and_spending/1079/payments_over_500,27-Sep-2021,Housing Revenue Account Capital,HIGGS LLP  ,Housing Revenue Account Capital,201909.20,CIP - Acquisition of Land & Existing Buildings,2122P06_CR00415,120965
Sandwell Metropolitan Borough Council,http://www.sandwell.gov.uk/info/200202/performance_and_spending/1079/payments_over_500,14-Sep-2021,Housing Revenue Account Capital,SURE MAINTENANCE LIMITED,Housing Revenue Account Capital,203381.53,"CIP - New Construction,Conversion, Enhancement & Reno",2122P06_CR00416,93926
Sandwell Metropolitan Borough Council,http://www.sandwell.gov.uk/info/200202/performance_and_spending/1079/payments_over_500,14-Sep-2021,Housing Revenue Account Capital,SEDDON CONSTRUCTION LIMITED,Housing Revenue Account Capital,227654.16,"CIP - New Construction,Conversion, Enhancement & Reno",2122P06_CR00417,132999
Sandwell Metropolitan Borough Council,http://www.sandwell.gov.uk/info/200202/performance_and_spending/1079/payments_over_500,06-Sep-2021,Housing Revenue Account Capital,HIGGS LLP  ,Housing Revenue Account Capital,265004.60,CIP - Acquisition of Land & Existing Buildings,2122P06_CR00418,120965
Sandwell Metropolitan Borough Council,http://www.sandwell.gov.uk/info/200202/performance_and_spending/1079/payments_over_500,01-Sep-2021,Housing Revenue Account Capital,LOVELL PARTNERSHIPS  LTD,Housing Revenue Account Capital,324639.50,"CIP - New Construction,Conversion, Enhancement & Reno",2122P06_CR00419,77007398
Sandwell Metropolitan Borough Council,http://www.sandwell.gov.uk/info/200202/performance_and_spending/1079/payments_over_500,09-Sep-2021,Housing Revenue Account Capital,VINCI CONSTRUCTION LTD,Housing Revenue Account Capital,400180.60,"CIP - New Construction,Conversion, Enhancement & Reno",2122P06_CR00420,36361
Sandwell Metropolitan Borough Council,http://www.sandwell.gov.uk/info/200202/performance_and_spending/1079/payments_over_500,09-Sep-2021,Housing Revenue Account Capital,SEDDON CONSTRUCTION LIMITED,Housing Revenue Account Capital,648656.08,"CIP - New Construction,Conversion, Enhancement & Reno",2122P06_CR00421,132999
Sandwell Metropolitan Borough Council,http://www.sandwell.gov.uk/info/200202/performance_and_spending/1079/payments_over_500,22-Sep-2021,Individual School Budgets With Inclusion,REDACTED PERSONAL DATA,Individual School Budgets With Inclusion,575.51,Grant Payments,2122P06_CR00422,REDACTED PERSONAL DATA
Sandwell Metropolitan Borough Council,http://www.sandwell.gov.uk/info/200202/performance_and_spending/1079/payments_over_500,22-Sep-2021,Individual School Budgets With Inclusion,REDACTED PERSONAL DATA,Individual School Budgets With Inclusion,686.70,Grant Payments,2122P06_CR00423,REDACTED PERSONAL DATA
Sandwell Metropolitan Borough Council,http://www.sandwell.gov.uk/info/200202/performance_and_spending/1079/payments_over_500,22-Sep-2021,Individual School Budgets With Inclusion,REDACTED PERSONAL DATA,Individual School Budgets With Inclusion,686.70,Grant Payments,2122P06_CR00424,REDACTED PERSONAL DATA
Sandwell Metropolitan Borough Council,http://www.sandwell.gov.uk/info/200202/performance_and_spending/1079/payments_over_500,22-Sep-2021,Individual School Budgets With Inclusion,MAC-E-MOOZ DAYCARE LTD,Individual School Budgets With Inclusion,718.20,Grant Payments,2122P06_CR00425,112058
Sandwell Metropolitan Borough Council,http://www.sandwell.gov.uk/info/200202/performance_and_spending/1079/payments_over_500,22-Sep-2021,Individual School Budgets With Inclusion,REDACTED PERSONAL DATA,Individual School Budgets With Inclusion,726.08,Grant Payments,2122P06_CR00426,REDACTED PERSONAL DATA
Sandwell Metropolitan Borough Council,http://www.sandwell.gov.uk/info/200202/performance_and_spending/1079/payments_over_500,22-Sep-2021,Individual School Budgets With Inclusion,REDACTED PERSONAL DATA,Individual School Budgets With Inclusion,902.95,Grant Payments,2122P06_CR00427,REDACTED PERSONAL DATA
Sandwell Metropolitan Borough Council,http://www.sandwell.gov.uk/info/200202/performance_and_spending/1079/payments_over_500,22-Sep-2021,Individual School Budgets With Inclusion,REDACTED PERSONAL DATA,Individual School Budgets With Inclusion,915.60,Grant Payments,2122P06_CR00428,REDACTED PERSONAL DATA
Sandwell Metropolitan Borough Council,http://www.sandwell.gov.uk/info/200202/performance_and_spending/1079/payments_over_500,22-Sep-2021,Individual School Budgets With Inclusion,REDACTED PERSONAL DATA,Individual School Budgets With Inclusion,915.60,Grant Payments,2122P06_CR00429,REDACTED PERSONAL DATA
Sandwell Metropolitan Borough Council,http://www.sandwell.gov.uk/info/200202/performance_and_spending/1079/payments_over_500,22-Sep-2021,Individual School Budgets With Inclusion,TULIP DAY NURSERY LTD,Individual School Budgets With Inclusion,915.60,Grant Payments,2122P06_CR00430,152250
Sandwell Metropolitan Borough Council,http://www.sandwell.gov.uk/info/200202/performance_and_spending/1079/payments_over_500,22-Sep-2021,Individual School Budgets With Inclusion,CATHERINE HOUSE DAY NURSERY,Individual School Budgets With Inclusion,926.10,Grant Payments,2122P06_CR00431,08587767
Sandwell Metropolitan Borough Council,http://www.sandwell.gov.uk/info/200202/performance_and_spending/1079/payments_over_500,22-Sep-2021,Individual School Budgets With Inclusion,REDACTED PERSONAL DATA,Individual School Budgets With Inclusion,936.60,Grant Payments,2122P06_CR00432,REDACTED PERSONAL DATA
Sandwell Metropolitan Borough Council,http://www.sandwell.gov.uk/info/200202/performance_and_spending/1079/payments_over_500,22-Sep-2021,Individual School Budgets With Inclusion,REDACTED PERSONAL DATA,Individual School Budgets With Inclusion,968.10,Grant Payments,2122P06_CR00433,REDACTED PERSONAL DATA
Sandwell Metropolitan Borough Council,http://www.sandwell.gov.uk/info/200202/performance_and_spending/1079/payments_over_500,22-Sep-2021,Individual School Budgets With Inclusion,REDACTED PERSONAL DATA,Individual School Budgets With Inclusion,1048.78,Grant Payments,2122P06_CR00434,REDACTED PERSONAL DATA
Sandwell Metropolitan Borough Council,http://www.sandwell.gov.uk/info/200202/performance_and_spending/1079/payments_over_500,22-Sep-2021,Individual School Budgets With Inclusion,REDACTED PERSONAL DATA,Individual School Budgets With Inclusion,1144.50,Grant Payments,2122P06_CR00435,REDACTED PERSONAL DATA
Sandwell Metropolitan Borough Council,http://www.sandwell.gov.uk/info/200202/performance_and_spending/1079/payments_over_500,22-Sep-2021,Individual School Budgets With Inclusion,REDACTED PERSONAL DATA,Individual School Budgets With Inclusion,1157.63,Grant Payments,2122P06_CR00436,REDACTED PERSONAL DATA
Sandwell Metropolitan Borough Council,http://www.sandwell.gov.uk/info/200202/performance_and_spending/1079/payments_over_500,22-Sep-2021,Individual School Budgets With Inclusion,REDACTED PERSONAL DATA,Individual School Budgets With Inclusion,1157.63,Grant Payments,2122P06_CR00437,REDACTED PERSONAL DATA
Sandwell Metropolitan Borough Council,http://www.sandwell.gov.uk/info/200202/performance_and_spending/1079/payments_over_500,22-Sep-2021,Individual School Budgets With Inclusion,REDACTED PERSONAL DATA,Individual School Budgets With Inclusion,1170.75,Grant Payments,2122P06_CR00438,REDACTED PERSONAL DATA
Sandwell Metropolitan Borough Council,http://www.sandwell.gov.uk/info/200202/performance_and_spending/1079/payments_over_500,22-Sep-2021,Individual School Budgets With Inclusion,TWO STEPS PRE-SCHOOL,Individual School Budgets With Inclusion,1170.75,Grant Payments,2122P06_CR00439,109186
Sandwell Metropolitan Borough Council,http://www.sandwell.gov.uk/info/200202/performance_and_spending/1079/payments_over_500,22-Sep-2021,Individual School Budgets With Inclusion,JOYFUL CHILDRENS NURSERY,Individual School Budgets With Inclusion,1278.90,Grant Payments,2122P06_CR00440,150961
Sandwell Metropolitan Borough Council,http://www.sandwell.gov.uk/info/200202/performance_and_spending/1079/payments_over_500,22-Sep-2021,Individual School Budgets With Inclusion,AL KAHIR SCHOOL,Individual School Budgets With Inclusion,1639.05,Grant Payments,2122P06_CR00441,128728
Sandwell Metropolitan Borough Council,http://www.sandwell.gov.uk/info/200202/performance_and_spending/1079/payments_over_500,22-Sep-2021,Individual School Budgets With Inclusion,LITTLE ANGELS DAY NURSERY LIMITED,Individual School Budgets With Inclusion,1639.05,Grant Payments,2122P06_CR00442,10207
Sandwell Metropolitan Borough Council,http://www.sandwell.gov.uk/info/200202/performance_and_spending/1079/payments_over_500,22-Sep-2021,Individual School Budgets With Inclusion,REDACTED PERSONAL DATA,Individual School Budgets With Inclusion,1852.20,Grant Payments,2122P06_CR00443,REDACTED PERSONAL DATA
Sandwell Metropolitan Borough Council,http://www.sandwell.gov.uk/info/200202/performance_and_spending/1079/payments_over_500,22-Sep-2021,Individual School Budgets With Inclusion,LITTLE ACADEMY NURSERY,Individual School Budgets With Inclusion,2107.35,Grant Payments,2122P06_CR00444,81904
Sandwell Metropolitan Borough Council,http://www.sandwell.gov.uk/info/200202/performance_and_spending/1079/payments_over_500,22-Sep-2021,Individual School Budgets With Inclusion,N & K VARMA LIMITED T/A (KIDDIES PLAYHOUSE TIPTON),Individual School Budgets With Inclusion,2107.35,Grant Payments,2122P06_CR00445,26124
Sandwell Metropolitan Borough Council,http://www.sandwell.gov.uk/info/200202/performance_and_spending/1079/payments_over_500,22-Sep-2021,Individual School Budgets With Inclusion,LITTLE LEGEND NURSERIES LTD,Individual School Budgets With Inclusion,2236.50,Grant Payments,2122P06_CR00446,117890
Sandwell Metropolitan Borough Council,http://www.sandwell.gov.uk/info/200202/performance_and_spending/1079/payments_over_500,22-Sep-2021,Individual School Budgets With Inclusion,FERNDALE PRIMARY SCHOOL                                    01,Individual School Budgets With Inclusion,2289.00,Grant Payments,2122P06_CR00447,11562
Sandwell Metropolitan Borough Council,http://www.sandwell.gov.uk/info/200202/performance_and_spending/1079/payments_over_500,22-Sep-2021,Individual School Budgets With Inclusion,LITTLE STEPPERS,Individual School Budgets With Inclusion,2323.44,Grant Payments,2122P06_CR00448,120240
Sandwell Metropolitan Borough Council,http://www.sandwell.gov.uk/info/200202/performance_and_spending/1079/payments_over_500,22-Sep-2021,Individual School Budgets With Inclusion,JUNIPER'S PRESCHOOL,Individual School Budgets With Inclusion,2770.95,Grant Payments,2122P06_CR00449,154579
Sandwell Metropolitan Borough Council,http://www.sandwell.gov.uk/info/200202/performance_and_spending/1079/payments_over_500,22-Sep-2021,Individual School Budgets With Inclusion,BRIGHT LIGHTS DAY NURSERY,Individual School Budgets With Inclusion,2793.00,Grant Payments,2122P06_CR00450,89877
Sandwell Metropolitan Borough Council,http://www.sandwell.gov.uk/info/200202/performance_and_spending/1079/payments_over_500,22-Sep-2021,Individual School Budgets With Inclusion,ADVENTURE QUEST (GREAT BRIDGE) LTD,Individual School Budgets With Inclusion,2975.70,Grant Payments,2122P06_CR00451,153563
Sandwell Metropolitan Borough Council,http://www.sandwell.gov.uk/info/200202/performance_and_spending/1079/payments_over_500,22-Sep-2021,Individual School Budgets With Inclusion,TIP TOP DAY NURSERY WEDNESBURY,Individual School Budgets With Inclusion,2975.70,Grant Payments,2122P06_CR00452,147082
Sandwell Metropolitan Borough Council,http://www.sandwell.gov.uk/info/200202/performance_and_spending/1079/payments_over_500,22-Sep-2021,Individual School Budgets With Inclusion,LITTLE VALERS PRE SCHOOL,Individual School Budgets With Inclusion,3204.60,Grant Payments,2122P06_CR00453,99107
Sandwell Metropolitan Borough Council,http://www.sandwell.gov.uk/info/200202/performance_and_spending/1079/payments_over_500,22-Sep-2021,Individual School Budgets With Inclusion,BLUEBELLS DAY NURSERY,Individual School Budgets With Inclusion,3241.35,Grant Payments,2122P06_CR00454,01721314
Sandwell Metropolitan Borough Council,http://www.sandwell.gov.uk/info/200202/performance_and_spending/1079/payments_over_500,22-Sep-2021,Individual School Budgets With Inclusion,KANGAROO POUCH CHARLEMONT,Individual School Budgets With Inclusion,3278.10,Grant Payments,2122P06_CR00455,117283
Sandwell Metropolitan Borough Council,http://www.sandwell.gov.uk/info/200202/performance_and_spending/1079/payments_over_500,22-Sep-2021,Individual School Budgets With Inclusion,KANGAROO POUCH LIMITED,Individual School Budgets With Inclusion,3512.25,Grant Payments,2122P06_CR00456,106981
Sandwell Metropolitan Borough Council,http://www.sandwell.gov.uk/info/200202/performance_and_spending/1079/payments_over_500,22-Sep-2021,Individual School Budgets With Inclusion,ST MICHAELS DAY NURSERY,Individual School Budgets With Inclusion,3872.40,Grant Payments,2122P06_CR00457,01698538
Sandwell Metropolitan Borough Council,http://www.sandwell.gov.uk/info/200202/performance_and_spending/1079/payments_over_500,22-Sep-2021,Individual School Budgets With Inclusion,KANGAROO POUCH AT GREAT BRIDGE,Individual School Budgets With Inclusion,3935.93,Grant Payments,2122P06_CR00458,129771
Sandwell Metropolitan Borough Council,http://www.sandwell.gov.uk/info/200202/performance_and_spending/1079/payments_over_500,22-Sep-2021,Individual School Budgets With Inclusion,BLOXCIDGE HOUSE DAY NURSERY,Individual School Budgets With Inclusion,3935.93,Grant Payments,2122P06_CR00459,82862
Sandwell Metropolitan Borough Council,http://www.sandwell.gov.uk/info/200202/performance_and_spending/1079/payments_over_500,22-Sep-2021,Individual School Budgets With Inclusion,PITTA PATTA DAYCARE,Individual School Budgets With Inclusion,3980.55,Grant Payments,2122P06_CR00460,114742
Sandwell Metropolitan Borough Council,http://www.sandwell.gov.uk/info/200202/performance_and_spending/1079/payments_over_500,22-Sep-2021,Individual School Budgets With Inclusion,THE TODDLER HOUSE LIMITED,Individual School Budgets With Inclusion,3980.55,Grant Payments,2122P06_CR00461,122166
Sandwell Metropolitan Borough Council,http://www.sandwell.gov.uk/info/200202/performance_and_spending/1079/payments_over_500,22-Sep-2021,Individual School Budgets With Inclusion,SADWICA DAY NURSERY,Individual School Budgets With Inclusion,3990.00,Grant Payments,2122P06_CR00462,01667892
Sandwell Metropolitan Borough Council,http://www.sandwell.gov.uk/info/200202/performance_and_spending/1079/payments_over_500,22-Sep-2021,Individual School Budgets With Inclusion,DAFFODILS NURSERY LTD,Individual School Budgets With Inclusion,4069.80,Grant Payments,2122P06_CR00463,120066
Sandwell Metropolitan Borough Council,http://www.sandwell.gov.uk/info/200202/performance_and_spending/1079/payments_over_500,22-Sep-2021,Individual School Budgets With Inclusion,SANTOS DAY NURSERIES,Individual School Budgets With Inclusion,4120.20,Grant Payments,2122P06_CR00464,129262
Sandwell Metropolitan Borough Council,http://www.sandwell.gov.uk/info/200202/performance_and_spending/1079/payments_over_500,22-Sep-2021,Individual School Budgets With Inclusion,PLAYHOUSE DAY NURSERY,Individual School Budgets With Inclusion,4167.45,Grant Payments,2122P06_CR00465,01586669
Sandwell Metropolitan Borough Council,http://www.sandwell.gov.uk/info/200202/performance_and_spending/1079/payments_over_500,22-Sep-2021,Individual School Budgets With Inclusion,STEPPING STONES NURSERY,Individual School Budgets With Inclusion,4260.06,Grant Payments,2122P06_CR00466,50029
Sandwell Metropolitan Borough Council,http://www.sandwell.gov.uk/info/200202/performance_and_spending/1079/payments_over_500,22-Sep-2021,Individual School Budgets With Inclusion,LITTLE LEARNERS LTD,Individual School Budgets With Inclusion,4548.60,Grant Payments,2122P06_CR00467,01424133
Sandwell Metropolitan Borough Council,http://www.sandwell.gov.uk/info/200202/performance_and_spending/1079/payments_over_500,22-Sep-2021,Individual School Budgets With Inclusion,BUSY BEE NURSERY,Individual School Budgets With Inclusion,4683.00,Grant Payments,2122P06_CR00468,01222577
Sandwell Metropolitan Borough Council,http://www.sandwell.gov.uk/info/200202/performance_and_spending/1079/payments_over_500,22-Sep-2021,Individual School Budgets With Inclusion,ROOTS & SHOOTS PLAYGROUP,Individual School Budgets With Inclusion,4804.80,Grant Payments,2122P06_CR00469,75502
Sandwell Metropolitan Borough Council,http://www.sandwell.gov.uk/info/200202/performance_and_spending/1079/payments_over_500,22-Sep-2021,Individual School Budgets With Inclusion,FATIMA DAY NURSERY,Individual School Budgets With Inclusion,5093.55,Grant Payments,2122P06_CR00470,131343
Sandwell Metropolitan Borough Council,http://www.sandwell.gov.uk/info/200202/performance_and_spending/1079/payments_over_500,22-Sep-2021,Individual School Budgets With Inclusion,UNITED KIDS LIMITED,Individual School Budgets With Inclusion,5093.55,Grant Payments,2122P06_CR00471,136360
Sandwell Metropolitan Borough Council,http://www.sandwell.gov.uk/info/200202/performance_and_spending/1079/payments_over_500,22-Sep-2021,Individual School Budgets With Inclusion,KANGAROO POUCH AT TIVIDALE,Individual School Budgets With Inclusion,5325.08,Grant Payments,2122P06_CR00472,113715
Sandwell Metropolitan Borough Council,http://www.sandwell.gov.uk/info/200202/performance_and_spending/1079/payments_over_500,22-Sep-2021,Individual School Budgets With Inclusion,LITTLE SAPLINGS CHILDCARE CENTRES,Individual School Budgets With Inclusion,5385.45,Grant Payments,2122P06_CR00473,131043
Sandwell Metropolitan Borough Council,http://www.sandwell.gov.uk/info/200202/performance_and_spending/1079/payments_over_500,22-Sep-2021,Individual School Budgets With Inclusion,FIRST STEPS DAY NURSERY,Individual School Budgets With Inclusion,5385.45,Grant Payments,2122P06_CR00474,51155
Sandwell Metropolitan Borough Council,http://www.sandwell.gov.uk/info/200202/performance_and_spending/1079/payments_over_500,22-Sep-2021,Individual School Budgets With Inclusion,TIPTON EXPLORERS NURSERY,Individual School Budgets With Inclusion,5385.45,Grant Payments,2122P06_CR00475,132351
Sandwell Metropolitan Borough Council,http://www.sandwell.gov.uk/info/200202/performance_and_spending/1079/payments_over_500,22-Sep-2021,Individual School Budgets With Inclusion,HAPPY DAYS NURSERY (GREETS GREEN),Individual School Budgets With Inclusion,5506.20,Grant Payments,2122P06_CR00476,125840
Sandwell Metropolitan Borough Council,http://www.sandwell.gov.uk/info/200202/performance_and_spending/1079/payments_over_500,22-Sep-2021,Individual School Budgets With Inclusion,TIPTON NURSERY,Individual School Budgets With Inclusion,5506.20,Grant Payments,2122P06_CR00477,89881
Sandwell Metropolitan Borough Council,http://www.sandwell.gov.uk/info/200202/performance_and_spending/1079/payments_over_500,22-Sep-2021,Individual School Budgets With Inclusion,CAP DAY NURSERY,Individual School Budgets With Inclusion,5808.60,Grant Payments,2122P06_CR00478,51154
Sandwell Metropolitan Borough Council,http://www.sandwell.gov.uk/info/200202/performance_and_spending/1079/payments_over_500,22-Sep-2021,Individual School Budgets With Inclusion,MINI MONKEYS LTD,Individual School Budgets With Inclusion,6019.65,Grant Payments,2122P06_CR00479,114818
Sandwell Metropolitan Borough Council,http://www.sandwell.gov.uk/info/200202/performance_and_spending/1079/payments_over_500,22-Sep-2021,Individual School Budgets With Inclusion,MINNS LIMITED,Individual School Budgets With Inclusion,6087.90,Grant Payments,2122P06_CR00480,120067
Sandwell Metropolitan Borough Council,http://www.sandwell.gov.uk/info/200202/performance_and_spending/1079/payments_over_500,22-Sep-2021,Individual School Budgets With Inclusion,SPON LANE DAY NURSERY LIMITED,Individual School Budgets With Inclusion,6224.40,Grant Payments,2122P06_CR00481,127024
Sandwell Metropolitan Borough Council,http://www.sandwell.gov.uk/info/200202/performance_and_spending/1079/payments_over_500,22-Sep-2021,Individual School Budgets With Inclusion,SMARTY PANTS @ LIGHTWOODS HOUSE LTD,Individual School Budgets With Inclusion,6251.18,Grant Payments,2122P06_CR00482,130645
Sandwell Metropolitan Borough Council,http://www.sandwell.gov.uk/info/200202/performance_and_spending/1079/payments_over_500,22-Sep-2021,Individual School Budgets With Inclusion,TINY TOEZ LIMITED,Individual School Budgets With Inclusion,6409.20,Grant Payments,2122P06_CR00483,23618
Sandwell Metropolitan Borough Council,http://www.sandwell.gov.uk/info/200202/performance_and_spending/1079/payments_over_500,22-Sep-2021,Individual School Budgets With Inclusion,FIREFLIES NURSERY LIMITED,Individual School Budgets With Inclusion,6556.20,Grant Payments,2122P06_CR00484,124120
Sandwell Metropolitan Borough Council,http://www.sandwell.gov.uk/info/200202/performance_and_spending/1079/payments_over_500,22-Sep-2021,Individual School Budgets With Inclusion,PERRYFIELDS PRE SCHOOL,Individual School Budgets With Inclusion,6577.06,Grant Payments,2122P06_CR00485,18879
Sandwell Metropolitan Borough Council,http://www.sandwell.gov.uk/info/200202/performance_and_spending/1079/payments_over_500,22-Sep-2021,Individual School Budgets With Inclusion,BOOKWORMS DAYCARE LIMITED,Individual School Budgets With Inclusion,6714.23,Grant Payments,2122P06_CR00486,114741
Sandwell Metropolitan Borough Council,http://www.sandwell.gov.uk/info/200202/performance_and_spending/1079/payments_over_500,22-Sep-2021,Individual School Budgets With Inclusion,THE PATCH DAY NURSERY,Individual School Budgets With Inclusion,6790.35,Grant Payments,2122P06_CR00487,126020
Sandwell Metropolitan Borough Council,http://www.sandwell.gov.uk/info/200202/performance_and_spending/1079/payments_over_500,22-Sep-2021,Individual School Budgets With Inclusion,5 STAR DAY NURSERY - OLDBURY,Individual School Budgets With Inclusion,6945.75,Grant Payments,2122P06_CR00488,120730
Sandwell Metropolitan Borough Council,http://www.sandwell.gov.uk/info/200202/performance_and_spending/1079/payments_over_500,22-Sep-2021,Individual School Budgets With Inclusion,MOORLANDS LITTLE LEARNERS PLAYGROUP,Individual School Budgets With Inclusion,7177.28,Grant Payments,2122P06_CR00489,46390
Sandwell Metropolitan Borough Council,http://www.sandwell.gov.uk/info/200202/performance_and_spending/1079/payments_over_500,22-Sep-2021,Individual School Budgets With Inclusion,UNITED KIDS CHILDCARE,Individual School Budgets With Inclusion,7258.65,Grant Payments,2122P06_CR00490,134806
Sandwell Metropolitan Borough Council,http://www.sandwell.gov.uk/info/200202/performance_and_spending/1079/payments_over_500,22-Sep-2021,Individual School Budgets With Inclusion,GNG NURSERY,Individual School Budgets With Inclusion,7258.65,Grant Payments,2122P06_CR00491,114805
Sandwell Metropolitan Borough Council,http://www.sandwell.gov.uk/info/200202/performance_and_spending/1079/payments_over_500,22-Sep-2021,Individual School Budgets With Inclusion,THE FAMILY NURSERY COMPANY LTD,Individual School Budgets With Inclusion,7258.65,Grant Payments,2122P06_CR00492,89879
Sandwell Metropolitan Borough Council,http://www.sandwell.gov.uk/info/200202/performance_and_spending/1079/payments_over_500,22-Sep-2021,Individual School Budgets With Inclusion,FIRST STEPS OLDBURY,Individual School Budgets With Inclusion,7408.80,Grant Payments,2122P06_CR00493,118886
Sandwell Metropolitan Borough Council,http://www.sandwell.gov.uk/info/200202/performance_and_spending/1079/payments_over_500,22-Sep-2021,Individual School Budgets With Inclusion,LILLIPUT LODGE CHILDRENS DAY NURSERY,Individual School Budgets With Inclusion,7408.80,Grant Payments,2122P06_CR00494,2980
Sandwell Metropolitan Borough Council,http://www.sandwell.gov.uk/info/200202/performance_and_spending/1079/payments_over_500,22-Sep-2021,Individual School Budgets With Inclusion,TIDDLYWINKS KIDDYS NURSERY LIMITED,Individual School Budgets With Inclusion,7408.80,Grant Payments,2122P06_CR00495,110667
Sandwell Metropolitan Borough Council,http://www.sandwell.gov.uk/info/200202/performance_and_spending/1079/payments_over_500,22-Sep-2021,Individual School Budgets With Inclusion,LOLA BELLES PRIVATE DAY NURSERY,Individual School Budgets With Inclusion,7492.80,Grant Payments,2122P06_CR00496,89271
Sandwell Metropolitan Borough Council,http://www.sandwell.gov.uk/info/200202/performance_and_spending/1079/payments_over_500,22-Sep-2021,Individual School Budgets With Inclusion,5 STAR DAY NURSERY LIMITED,Individual School Budgets With Inclusion,7553.70,Grant Payments,2122P06_CR00497,105382
Sandwell Metropolitan Borough Council,http://www.sandwell.gov.uk/info/200202/performance_and_spending/1079/payments_over_500,22-Sep-2021,Individual School Budgets With Inclusion,ABC DAY NURSERY & PRE SCHOOL LTD,Individual School Budgets With Inclusion,7782.60,Grant Payments,2122P06_CR00498,01472823
Sandwell Metropolitan Borough Council,http://www.sandwell.gov.uk/info/200202/performance_and_spending/1079/payments_over_500,22-Sep-2021,Individual School Budgets With Inclusion,CONIFERS DAY NURSERY LTD,Individual School Budgets With Inclusion,7871.85,Grant Payments,2122P06_CR00499,131957
Sandwell Metropolitan Borough Council,http://www.sandwell.gov.uk/info/200202/performance_and_spending/1079/payments_over_500,22-Sep-2021,Individual School Budgets With Inclusion,RARE WOOD LIMITED,Individual School Budgets With Inclusion,7900.20,Grant Payments,2122P06_CR00500,20167
Sandwell Metropolitan Borough Council,http://www.sandwell.gov.uk/info/200202/performance_and_spending/1079/payments_over_500,22-Sep-2021,Individual School Budgets With Inclusion,BANANA MOON DAY NURSERY,Individual School Budgets With Inclusion,8195.25,Grant Payments,2122P06_CR00501,124220
Sandwell Metropolitan Borough Council,http://www.sandwell.gov.uk/info/200202/performance_and_spending/1079/payments_over_500,22-Sep-2021,Individual School Budgets With Inclusion,ROWLEY VILLAGE DAY NURSERY,Individual School Budgets With Inclusion,8334.90,Grant Payments,2122P06_CR00502,24228
Sandwell Metropolitan Borough Council,http://www.sandwell.gov.uk/info/200202/performance_and_spending/1079/payments_over_500,22-Sep-2021,Individual School Budgets With Inclusion,HUMPTY DUMPTYS DAY NURSERY,Individual School Budgets With Inclusion,8429.40,Grant Payments,2122P06_CR00503,08510771
Sandwell Metropolitan Borough Council,http://www.sandwell.gov.uk/info/200202/performance_and_spending/1079/payments_over_500,22-Sep-2021,Individual School Budgets With Inclusion,RAK DAY CARE LTD T/A HAPPY VALLEY PRE SCHOOL LTD,Individual School Budgets With Inclusion,8429.40,Grant Payments,2122P06_CR00504,01572212
Sandwell Metropolitan Borough Council,http://www.sandwell.gov.uk/info/200202/performance_and_spending/1079/payments_over_500,22-Sep-2021,Individual School Budgets With Inclusion,FAIRYTALES NURSERY LTD,Individual School Budgets With Inclusion,8473.82,Grant Payments,2122P06_CR00505,106247
Sandwell Metropolitan Borough Council,http://www.sandwell.gov.uk/info/200202/performance_and_spending/1079/payments_over_500,22-Sep-2021,Individual School Budgets With Inclusion,REDACTED PERSONAL DATA,Individual School Budgets With Inclusion,9492.53,Grant Payments,2122P06_CR00506,REDACTED PERSONAL DATA
Sandwell Metropolitan Borough Council,http://www.sandwell.gov.uk/info/200202/performance_and_spending/1079/payments_over_500,22-Sep-2021,Individual School Budgets With Inclusion,THE WONDER YEARS DAY NURSERY LIMITED,Individual School Budgets With Inclusion,10068.45,Grant Payments,2122P06_CR00507,01647249
Sandwell Metropolitan Borough Council,http://www.sandwell.gov.uk/info/200202/performance_and_spending/1079/payments_over_500,22-Sep-2021,Individual School Budgets With Inclusion,THE RIVERS MULTI ACADEMY TRUST,Individual School Budgets With Inclusion,10302.60,Grant Payments,2122P06_CR00508,61014
Sandwell Metropolitan Borough Council,http://www.sandwell.gov.uk/info/200202/performance_and_spending/1079/payments_over_500,22-Sep-2021,Individual School Budgets With Inclusion,TIMBERTREE NEIGHBOURHOOD NURSERY,Individual School Budgets With Inclusion,10650.15,Grant Payments,2122P06_CR00509,135664
Sandwell Metropolitan Borough Council,http://www.sandwell.gov.uk/info/200202/performance_and_spending/1079/payments_over_500,22-Sep-2021,Individual School Budgets With Inclusion,ST HUBERTS PRE-SCHOOL PLAYGROUP 2,Individual School Budgets With Inclusion,11576.25,Grant Payments,2122P06_CR00510,123074
Sandwell Metropolitan Borough Council,http://www.sandwell.gov.uk/info/200202/performance_and_spending/1079/payments_over_500,22-Sep-2021,Individual School Budgets With Inclusion,SANDWELL NHS TRUST DAY NURSERY,Individual School Budgets With Inclusion,11785.55,Grant Payments,2122P06_CR00511,40788
Sandwell Metropolitan Borough Council,http://www.sandwell.gov.uk/info/200202/performance_and_spending/1079/payments_over_500,22-Sep-2021,Individual School Budgets With Inclusion,OUR LADY AND ST HUBERTS CATHOLIC PRIMARY SCHOOL                                      02,Individual School Budgets With Inclusion,11807.78,Grant Payments,2122P06_CR00512,61053
Sandwell Metropolitan Borough Council,http://www.sandwell.gov.uk/info/200202/performance_and_spending/1079/payments_over_500,22-Sep-2021,Individual School Budgets With Inclusion,LITTLE WENDY HOUSE DAY NURSERY,Individual School Budgets With Inclusion,11941.65,Grant Payments,2122P06_CR00513,91544
Sandwell Metropolitan Borough Council,http://www.sandwell.gov.uk/info/200202/performance_and_spending/1079/payments_over_500,22-Sep-2021,Individual School Budgets With Inclusion,TIPTON TODDLERS DAY NURSERY,Individual School Budgets With Inclusion,11941.65,Grant Payments,2122P06_CR00514,4397
Sandwell Metropolitan Borough Council,http://www.sandwell.gov.uk/info/200202/performance_and_spending/1079/payments_over_500,22-Sep-2021,Individual School Budgets With Inclusion,SMARTY PANTS PRIVATE DAY NURSERY LTD,Individual School Budgets With Inclusion,12409.95,Grant Payments,2122P06_CR00515,74037
Sandwell Metropolitan Borough Council,http://www.sandwell.gov.uk/info/200202/performance_and_spending/1079/payments_over_500,01-Sep-2021,Individual School Budgets With Inclusion,THE RIVERS MULTI ACADEMY TRUST,Individual School Budgets With Inclusion,13446.90,Grant Payments,2122P06_CR00516,61014
Sandwell Metropolitan Borough Council,http://www.sandwell.gov.uk/info/200202/performance_and_spending/1079/payments_over_500,01-Sep-2021,Individual School Budgets With Inclusion,THE RIVERS MULTI ACADEMY TRUST,Individual School Budgets With Inclusion,13446.90,Grant Payments,2122P06_CR00517,61014
Sandwell Metropolitan Borough Council,http://www.sandwell.gov.uk/info/200202/performance_and_spending/1079/payments_over_500,22-Sep-2021,Individual School Budgets With Inclusion,TICK TOCK DAY NURSERY LTD,Individual School Budgets With Inclusion,13580.70,Grant Payments,2122P06_CR00518,9391
Sandwell Metropolitan Borough Council,http://www.sandwell.gov.uk/info/200202/performance_and_spending/1079/payments_over_500,22-Sep-2021,Individual School Budgets With Inclusion,UNICORN DAY NURSERY,Individual School Budgets With Inclusion,14508.90,Grant Payments,2122P06_CR00519,91543
Sandwell Metropolitan Borough Council,http://www.sandwell.gov.uk/info/200202/performance_and_spending/1079/payments_over_500,22-Sep-2021,Individual School Budgets With Inclusion,WEST BROMWICH & DISTRICT Y.M.C.A. COMMUNITY ENTERPRISES,Individual School Budgets With Inclusion,14603.40,Grant Payments,2122P06_CR00520,01088376
Sandwell Metropolitan Borough Council,http://www.sandwell.gov.uk/info/200202/performance_and_spending/1079/payments_over_500,22-Sep-2021,Individual School Budgets With Inclusion,LITTLE EXPLORERS (WEST MIDLANDS) LTD,Individual School Budgets With Inclusion,16669.80,Grant Payments,2122P06_CR00521,114804
Sandwell Metropolitan Borough Council,http://www.sandwell.gov.uk/info/200202/performance_and_spending/1079/payments_over_500,22-Sep-2021,Individual School Budgets With Inclusion,TINY WOODS PRE SCHOOL,Individual School Budgets With Inclusion,17396.40,Grant Payments,2122P06_CR00522,91788
Sandwell Metropolitan Borough Council,http://www.sandwell.gov.uk/info/200202/performance_and_spending/1079/payments_over_500,27-Sep-2021,Individual School Budgets With Inclusion,SHIRELAND TECHNOLOGY PRIMARY SCHOOL,Individual School Budgets With Inclusion,18969.60,Grants,2122P06_CR00523,148598
Sandwell Metropolitan Borough Council,http://www.sandwell.gov.uk/info/200202/performance_and_spending/1079/payments_over_500,22-Sep-2021,Individual School Budgets With Inclusion,WIGGLES & GIGGLES LTD,Individual School Budgets With Inclusion,20143.20,Grant Payments,2122P06_CR00524,01674799
Sandwell Metropolitan Borough Council,http://www.sandwell.gov.uk/info/200202/performance_and_spending/1079/payments_over_500,27-Sep-2021,Individual School Budgets With Inclusion,ST CATHERINE OF SIENA MULTI ACADEMY COMPANY                       02,Individual School Budgets With Inclusion,20947.50,Grants,2122P06_CR00525,61052
Sandwell Metropolitan Borough Council,http://www.sandwell.gov.uk/info/200202/performance_and_spending/1079/payments_over_500,22-Sep-2021,Individual School Budgets With Inclusion,WONDERLAND CHILDRENS DAY NURSERY (UK) LTD,Individual School Budgets With Inclusion,22478.40,Grant Payments,2122P06_CR00526,50852
Sandwell Metropolitan Borough Council,http://www.sandwell.gov.uk/info/200202/performance_and_spending/1079/payments_over_500,22-Sep-2021,Individual School Budgets With Inclusion,LAVENDER FARM DAY NURSERY,Individual School Budgets With Inclusion,23883.30,Grant Payments,2122P06_CR00527,65596
Sandwell Metropolitan Borough Council,http://www.sandwell.gov.uk/info/200202/performance_and_spending/1079/payments_over_500,01-Sep-2021,Individual School Budgets With Inclusion,BROWNS BOOKS FOR STUDENTS,Individual School Budgets With Inclusion,501.08,Externally Purchased Professional Services ,2122P06_CR00528,123872
Sandwell Metropolitan Borough Council,http://www.sandwell.gov.uk/info/200202/performance_and_spending/1079/payments_over_500,01-Sep-2021,Individual School Budgets With Inclusion,WATERLOGIC GB LIMITED,Individual School Budgets With Inclusion,505.02,Catering Equipment,2122P06_CR00529,1106
Sandwell Metropolitan Borough Council,http://www.sandwell.gov.uk/info/200202/performance_and_spending/1079/payments_over_500,01-Sep-2021,Individual School Budgets With Inclusion,TIMBERTREE NEIGHBOURHOOD NURSERY,Individual School Budgets With Inclusion,510.00,Externally Purchased Professional Services ,2122P06_CR00530,135664
Sandwell Metropolitan Borough Council,http://www.sandwell.gov.uk/info/200202/performance_and_spending/1079/payments_over_500,27-Sep-2021,Individual School Budgets With Inclusion,MUNCHIES SANDWICHES LTD,Individual School Budgets With Inclusion,575.60,Contract Catering,2122P06_CR00531,145631
Sandwell Metropolitan Borough Council,http://www.sandwell.gov.uk/info/200202/performance_and_spending/1079/payments_over_500,01-Sep-2021,Individual School Budgets With Inclusion,THE NATIONAL TEACHING & ADVISORY SERVICE LIMITED,Individual School Budgets With Inclusion,585.00,Externally Purchased Professional Services ,2122P06_CR00532,01727359
Sandwell Metropolitan Borough Council,http://www.sandwell.gov.uk/info/200202/performance_and_spending/1079/payments_over_500,01-Sep-2021,Individual School Budgets With Inclusion,COLMORE EDUCATION RECRUITMENT,Individual School Budgets With Inclusion,600.00,Agency Staff,2122P06_CR00533,148720
Sandwell Metropolitan Borough Council,http://www.sandwell.gov.uk/info/200202/performance_and_spending/1079/payments_over_500,01-Sep-2021,Individual School Budgets With Inclusion,COLMORE EDUCATION RECRUITMENT,Individual School Budgets With Inclusion,600.00,Agency Staff,2122P06_CR00534,148720
Sandwell Metropolitan Borough Council,http://www.sandwell.gov.uk/info/200202/performance_and_spending/1079/payments_over_500,01-Sep-2021,Individual School Budgets With Inclusion,TEACHERACTIVE LIMITED,Individual School Budgets With Inclusion,606.36,Agency Staff,2122P06_CR00535,83931
Sandwell Metropolitan Borough Council,http://www.sandwell.gov.uk/info/200202/performance_and_spending/1079/payments_over_500,01-Sep-2021,Individual School Budgets With Inclusion,SANDWELL & WEST BIRMINGHAM HOSPITALS NHS TRUST,Individual School Budgets With Inclusion,616.50,Health Authorities,2122P06_CR00536,1385
Sandwell Metropolitan Borough Council,http://www.sandwell.gov.uk/info/200202/performance_and_spending/1079/payments_over_500,20-Sep-2021,Individual School Budgets With Inclusion,SHARP BUSINESS SYSTEMS UK PLC,Individual School Budgets With Inclusion,674.32,Equipment & Furniture ,2122P06_CR00537,126247
Sandwell Metropolitan Borough Council,http://www.sandwell.gov.uk/info/200202/performance_and_spending/1079/payments_over_500,01-Sep-2021,Individual School Budgets With Inclusion,COLMORE EDUCATION RECRUITMENT,Individual School Budgets With Inclusion,675.00,Agency Staff,2122P06_CR00538,148720
Sandwell Metropolitan Borough Council,http://www.sandwell.gov.uk/info/200202/performance_and_spending/1079/payments_over_500,09-Sep-2021,Individual School Budgets With Inclusion,LYNG PRIMARY SCHOOL                                              01,Individual School Budgets With Inclusion,700.00,Externally Purchased Professional Services ,2122P06_CR00539,21030682
Sandwell Metropolitan Borough Council,http://www.sandwell.gov.uk/info/200202/performance_and_spending/1079/payments_over_500,09-Sep-2021,Individual School Budgets With Inclusion,CONNEVANS LIMITED,Individual School Budgets With Inclusion,750.00,Equipment & Furniture ,2122P06_CR00540,01001241
Sandwell Metropolitan Borough Council,http://www.sandwell.gov.uk/info/200202/performance_and_spending/1079/payments_over_500,02-Sep-2021,Individual School Budgets With Inclusion,PRIME RESOLUTION LTD,Individual School Budgets With Inclusion,770.00,Externally Purchased Professional Services ,2122P06_CR00541,134794
Sandwell Metropolitan Borough Council,http://www.sandwell.gov.uk/info/200202/performance_and_spending/1079/payments_over_500,01-Sep-2021,Individual School Budgets With Inclusion,ENTRUST SUPPORT SERVICES LIMITED,Individual School Budgets With Inclusion,773.61,Licences,2122P06_CR00542,114114
Sandwell Metropolitan Borough Council,http://www.sandwell.gov.uk/info/200202/performance_and_spending/1079/payments_over_500,01-Sep-2021,Individual School Budgets With Inclusion,THE NATIONAL TEACHING & ADVISORY SERVICE LIMITED,Individual School Budgets With Inclusion,780.00,Externally Purchased Professional Services ,2122P06_CR00543,01727359
Sandwell Metropolitan Borough Council,http://www.sandwell.gov.uk/info/200202/performance_and_spending/1079/payments_over_500,11-Sep-2021,Individual School Budgets With Inclusion,UNICORN DAY NURSERY,Individual School Budgets With Inclusion,801.84,Externally Purchased Professional Services ,2122P06_CR00544,91543
Sandwell Metropolitan Borough Council,http://www.sandwell.gov.uk/info/200202/performance_and_spending/1079/payments_over_500,11-Sep-2021,Individual School Budgets With Inclusion,UNICORN DAY NURSERY,Individual School Budgets With Inclusion,801.84,Externally Purchased Professional Services ,2122P06_CR00545,91543
Sandwell Metropolitan Borough Council,http://www.sandwell.gov.uk/info/200202/performance_and_spending/1079/payments_over_500,01-Sep-2021,Individual School Budgets With Inclusion,ENVIRONMENTS FOR LEARNING SANDWELL PFI ONE LIMITED,Individual School Budgets With Inclusion,844.88,PFI & PPP Schemes,2122P06_CR00546,98332
Sandwell Metropolitan Borough Council,http://www.sandwell.gov.uk/info/200202/performance_and_spending/1079/payments_over_500,01-Sep-2021,Individual School Budgets With Inclusion,POST HASTE,Individual School Budgets With Inclusion,857.40,Postages,2122P06_CR00547,49464
Sandwell Metropolitan Borough Council,http://www.sandwell.gov.uk/info/200202/performance_and_spending/1079/payments_over_500,01-Sep-2021,Individual School Budgets With Inclusion,THE NATIONAL TEACHING & ADVISORY SERVICE LIMITED,Individual School Budgets With Inclusion,877.50,Externally Purchased Professional Services ,2122P06_CR00548,01727359
Sandwell Metropolitan Borough Council,http://www.sandwell.gov.uk/info/200202/performance_and_spending/1079/payments_over_500,27-Sep-2021,Individual School Budgets With Inclusion,TOTALENERGIES GAS & POWER LTD,Individual School Budgets With Inclusion,889.98,Electricity,2122P06_CR00549,107605
Sandwell Metropolitan Borough Council,http://www.sandwell.gov.uk/info/200202/performance_and_spending/1079/payments_over_500,01-Sep-2021,Individual School Budgets With Inclusion,HUMPTY DUMPTYS DAY NURSERY,Individual School Budgets With Inclusion,900.00,Externally Purchased Professional Services ,2122P06_CR00550,08510771
Sandwell Metropolitan Borough Council,http://www.sandwell.gov.uk/info/200202/performance_and_spending/1079/payments_over_500,01-Sep-2021,Individual School Budgets With Inclusion,THE NATIONAL TEACHING & ADVISORY SERVICE LIMITED,Individual School Budgets With Inclusion,910.00,Externally Purchased Professional Services ,2122P06_CR00551,01727359
Sandwell Metropolitan Borough Council,http://www.sandwell.gov.uk/info/200202/performance_and_spending/1079/payments_over_500,20-Sep-2021,Individual School Budgets With Inclusion,RESOLUTION DYNAMICS,Individual School Budgets With Inclusion,960.00,Externally Purchased Professional Services ,2122P06_CR00552,135871
Sandwell Metropolitan Borough Council,http://www.sandwell.gov.uk/info/200202/performance_and_spending/1079/payments_over_500,01-Sep-2021,Individual School Budgets With Inclusion,JENNY'S KITCHEN (WALL HEATH) LTD,Individual School Budgets With Inclusion,962.50,Contract Catering,2122P06_CR00553,01079439
Sandwell Metropolitan Borough Council,http://www.sandwell.gov.uk/info/200202/performance_and_spending/1079/payments_over_500,01-Sep-2021,Individual School Budgets With Inclusion,COLMORE EDUCATION RECRUITMENT,Individual School Budgets With Inclusion,975.00,Agency Staff,2122P06_CR00554,148720
Sandwell Metropolitan Borough Council,http://www.sandwell.gov.uk/info/200202/performance_and_spending/1079/payments_over_500,01-Sep-2021,Individual School Budgets With Inclusion,COLMORE EDUCATION RECRUITMENT,Individual School Budgets With Inclusion,995.00,Agency Staff,2122P06_CR00555,148720
Sandwell Metropolitan Borough Council,http://www.sandwell.gov.uk/info/200202/performance_and_spending/1079/payments_over_500,01-Sep-2021,Individual School Budgets With Inclusion,TINY STEPS,Individual School Budgets With Inclusion,1000.00,Externally Purchased Professional Services ,2122P06_CR00556,125778
Sandwell Metropolitan Borough Council,http://www.sandwell.gov.uk/info/200202/performance_and_spending/1079/payments_over_500,27-Sep-2021,Individual School Budgets With Inclusion,TUTE EDUCATION LTD,Individual School Budgets With Inclusion,1015.00,Externally Purchased Professional Services ,2122P06_CR00557,145340
Sandwell Metropolitan Borough Council,http://www.sandwell.gov.uk/info/200202/performance_and_spending/1079/payments_over_500,15-Sep-2021,Individual School Budgets With Inclusion,SONOVA UK,Individual School Budgets With Inclusion,1020.00,Equipment & Furniture ,2122P06_CR00558,01576192
Sandwell Metropolitan Borough Council,http://www.sandwell.gov.uk/info/200202/performance_and_spending/1079/payments_over_500,01-Sep-2021,Individual School Budgets With Inclusion,THE NATIONAL TEACHING & ADVISORY SERVICE LIMITED,Individual School Budgets With Inclusion,1105.00,Externally Purchased Professional Services ,2122P06_CR00559,01727359
Sandwell Metropolitan Borough Council,http://www.sandwell.gov.uk/info/200202/performance_and_spending/1079/payments_over_500,01-Sep-2021,Individual School Budgets With Inclusion,WALSALL COLLEGE,Individual School Budgets With Inclusion,1113.38,Externally Purchased Professional Services ,2122P06_CR00560,15561
Sandwell Metropolitan Borough Council,http://www.sandwell.gov.uk/info/200202/performance_and_spending/1079/payments_over_500,01-Sep-2021,Individual School Budgets With Inclusion,WALSALL COLLEGE,Individual School Budgets With Inclusion,1113.38,Externally Purchased Professional Services ,2122P06_CR00561,15561
Sandwell Metropolitan Borough Council,http://www.sandwell.gov.uk/info/200202/performance_and_spending/1079/payments_over_500,01-Sep-2021,Individual School Budgets With Inclusion,JENNIFER NOCK TRAINING AND CONSULTANCY,Individual School Budgets With Inclusion,1160.00,Externally Purchased Professional Services ,2122P06_CR00562,140689
Sandwell Metropolitan Borough Council,http://www.sandwell.gov.uk/info/200202/performance_and_spending/1079/payments_over_500,01-Sep-2021,Individual School Budgets With Inclusion,THE NATIONAL TEACHING & ADVISORY SERVICE LIMITED,Individual School Budgets With Inclusion,1170.00,Externally Purchased Professional Services ,2122P06_CR00563,01727359
Sandwell Metropolitan Borough Council,http://www.sandwell.gov.uk/info/200202/performance_and_spending/1079/payments_over_500,01-Sep-2021,Individual School Budgets With Inclusion,THE NATIONAL TEACHING & ADVISORY SERVICE LIMITED,Individual School Budgets With Inclusion,1170.00,Externally Purchased Professional Services ,2122P06_CR00564,01727359
Sandwell Metropolitan Borough Council,http://www.sandwell.gov.uk/info/200202/performance_and_spending/1079/payments_over_500,01-Sep-2021,Individual School Budgets With Inclusion,BRIGHTER FUTURES PSYCHOLOGY (DR DUNCAN GILLARD),Individual School Budgets With Inclusion,1200.00,Externally Purchased Professional Services ,2122P06_CR00565,154620
Sandwell Metropolitan Borough Council,http://www.sandwell.gov.uk/info/200202/performance_and_spending/1079/payments_over_500,01-Sep-2021,Individual School Budgets With Inclusion,THE NATIONAL TEACHING & ADVISORY SERVICE LIMITED,Individual School Budgets With Inclusion,1235.00,Externally Purchased Professional Services ,2122P06_CR00566,01727359
Sandwell Metropolitan Borough Council,http://www.sandwell.gov.uk/info/200202/performance_and_spending/1079/payments_over_500,01-Sep-2021,Individual School Budgets With Inclusion,WALSALL COLLEGE,Individual School Budgets With Inclusion,1261.83,Externally Purchased Professional Services ,2122P06_CR00567,15561
Sandwell Metropolitan Borough Council,http://www.sandwell.gov.uk/info/200202/performance_and_spending/1079/payments_over_500,18-Sep-2021,Individual School Budgets With Inclusion,MIDLAND NEWS ASSOCIATION LTD,Individual School Budgets With Inclusion,1287.98,Advertising & Publicity,2122P06_CR00568,01038645
Sandwell Metropolitan Borough Council,http://www.sandwell.gov.uk/info/200202/performance_and_spending/1079/payments_over_500,01-Sep-2021,Individual School Budgets With Inclusion,REFLECTIONS OFFICE SOLUTIONS LTD,Individual School Budgets With Inclusion,1331.88,Equipment & Furniture ,2122P06_CR00569,135744
Sandwell Metropolitan Borough Council,http://www.sandwell.gov.uk/info/200202/performance_and_spending/1079/payments_over_500,01-Sep-2021,Individual School Budgets With Inclusion,WORK N LEARN LIMITED,Individual School Budgets With Inclusion,1400.00,Externally Purchased Professional Services ,2122P06_CR00570,130458
Sandwell Metropolitan Borough Council,http://www.sandwell.gov.uk/info/200202/performance_and_spending/1079/payments_over_500,01-Sep-2021,Individual School Budgets With Inclusion,THE NATIONAL TEACHING & ADVISORY SERVICE LIMITED,Individual School Budgets With Inclusion,1430.00,Externally Purchased Professional Services ,2122P06_CR00571,01727359
Sandwell Metropolitan Borough Council,http://www.sandwell.gov.uk/info/200202/performance_and_spending/1079/payments_over_500,01-Sep-2021,Individual School Budgets With Inclusion,SANDWELL FUTURES LTD,Individual School Budgets With Inclusion,1452.80,Private Contractors,2122P06_CR00572,88151
Sandwell Metropolitan Borough Council,http://www.sandwell.gov.uk/info/200202/performance_and_spending/1079/payments_over_500,11-Sep-2021,Individual School Budgets With Inclusion,UNICORN DAY NURSERY,Individual School Budgets With Inclusion,1603.80,Externally Purchased Professional Services ,2122P06_CR00573,91543
Sandwell Metropolitan Borough Council,http://www.sandwell.gov.uk/info/200202/performance_and_spending/1079/payments_over_500,14-Sep-2021,Individual School Budgets With Inclusion,VICTORIA HOUSE NURSERY,Individual School Budgets With Inclusion,1740.00,Externally Purchased Professional Services ,2122P06_CR00574,104097
Sandwell Metropolitan Borough Council,http://www.sandwell.gov.uk/info/200202/performance_and_spending/1079/payments_over_500,01-Sep-2021,Individual School Budgets With Inclusion,RAK DAY CARE LTD T/A HAPPY VALLEY PRE SCHOOL LTD,Individual School Budgets With Inclusion,1800.00,Externally Purchased Professional Services ,2122P06_CR00575,01572212
Sandwell Metropolitan Borough Council,http://www.sandwell.gov.uk/info/200202/performance_and_spending/1079/payments_over_500,01-Sep-2021,Individual School Budgets With Inclusion,THE NATIONAL TEACHING & ADVISORY SERVICE LIMITED,Individual School Budgets With Inclusion,1820.00,Externally Purchased Professional Services ,2122P06_CR00576,01727359
Sandwell Metropolitan Borough Council,http://www.sandwell.gov.uk/info/200202/performance_and_spending/1079/payments_over_500,01-Sep-2021,Individual School Budgets With Inclusion,SANDWELL & WEST BIRMINGHAM HOSPITALS NHS TRUST,Individual School Budgets With Inclusion,1850.00,Health Authorities,2122P06_CR00577,1385
Sandwell Metropolitan Borough Council,http://www.sandwell.gov.uk/info/200202/performance_and_spending/1079/payments_over_500,01-Sep-2021,Individual School Budgets With Inclusion,NISAI VIRTUAL ACADEMY LIMITED,Individual School Budgets With Inclusion,2050.00,Externally Purchased Professional Services ,2122P06_CR00578,131183
Sandwell Metropolitan Borough Council,http://www.sandwell.gov.uk/info/200202/performance_and_spending/1079/payments_over_500,01-Sep-2021,Individual School Budgets With Inclusion,THE NATIONAL TEACHING & ADVISORY SERVICE LIMITED,Individual School Budgets With Inclusion,2210.00,Externally Purchased Professional Services ,2122P06_CR00579,01727359
Sandwell Metropolitan Borough Council,http://www.sandwell.gov.uk/info/200202/performance_and_spending/1079/payments_over_500,01-Sep-2021,Individual School Budgets With Inclusion,WILSON STUART SCHOOL,Individual School Budgets With Inclusion,2248.00,Other Local Authorities,2122P06_CR00580,115237
Sandwell Metropolitan Borough Council,http://www.sandwell.gov.uk/info/200202/performance_and_spending/1079/payments_over_500,01-Sep-2021,Individual School Budgets With Inclusion,HOMECARE DIRECT LTD,Individual School Budgets With Inclusion,2287.00,Other Local Authorities,2122P06_CR00581,146933
Sandwell Metropolitan Borough Council,http://www.sandwell.gov.uk/info/200202/performance_and_spending/1079/payments_over_500,01-Sep-2021,Individual School Budgets With Inclusion,WEST SMETHWICK ENTERPRISE FAMILY CENTRE,Individual School Budgets With Inclusion,2304.00,Externally Purchased Professional Services ,2122P06_CR00582,137713
Sandwell Metropolitan Borough Council,http://www.sandwell.gov.uk/info/200202/performance_and_spending/1079/payments_over_500,21-Sep-2021,Individual School Budgets With Inclusion,SMARTY PANTS PRIVATE DAY NURSERY LTD,Individual School Budgets With Inclusion,2316.00,Externally Purchased Professional Services ,2122P06_CR00583,74037
Sandwell Metropolitan Borough Council,http://www.sandwell.gov.uk/info/200202/performance_and_spending/1079/payments_over_500,01-Sep-2021,Individual School Budgets With Inclusion,RAK DAY CARE LTD T/A HAPPY VALLEY PRE SCHOOL LTD,Individual School Budgets With Inclusion,2340.00,Externally Purchased Professional Services ,2122P06_CR00584,01572212
Sandwell Metropolitan Borough Council,http://www.sandwell.gov.uk/info/200202/performance_and_spending/1079/payments_over_500,01-Sep-2021,Individual School Budgets With Inclusion,THE NATIONAL TEACHING & ADVISORY SERVICE LIMITED,Individual School Budgets With Inclusion,2340.00,Externally Purchased Professional Services ,2122P06_CR00585,01727359
Sandwell Metropolitan Borough Council,http://www.sandwell.gov.uk/info/200202/performance_and_spending/1079/payments_over_500,22-Sep-2021,Individual School Budgets With Inclusion,FORTIS ACADEMY,Individual School Budgets With Inclusion,2349.34,Other Local Authorities,2122P06_CR00586,137428
Sandwell Metropolitan Borough Council,http://www.sandwell.gov.uk/info/200202/performance_and_spending/1079/payments_over_500,01-Sep-2021,Individual School Budgets With Inclusion,VICTORIA HOUSE NURSERY,Individual School Budgets With Inclusion,2502.00,Externally Purchased Professional Services ,2122P06_CR00587,104097
Sandwell Metropolitan Borough Council,http://www.sandwell.gov.uk/info/200202/performance_and_spending/1079/payments_over_500,14-Sep-2021,Individual School Budgets With Inclusion,VICTORIA HOUSE NURSERY,Individual School Budgets With Inclusion,2502.00,Externally Purchased Professional Services ,2122P06_CR00588,104097
Sandwell Metropolitan Borough Council,http://www.sandwell.gov.uk/info/200202/performance_and_spending/1079/payments_over_500,01-Sep-2021,Individual School Budgets With Inclusion,ASCEND HEALTH AND CHILDCARE TRAINING,Individual School Budgets With Inclusion,2520.00,Other Establishments,2122P06_CR00589,136631
Sandwell Metropolitan Borough Council,http://www.sandwell.gov.uk/info/200202/performance_and_spending/1079/payments_over_500,01-Sep-2021,Individual School Budgets With Inclusion,ASCEND HEALTH AND CHILDCARE TRAINING,Individual School Budgets With Inclusion,2520.00,Other Establishments,2122P06_CR00590,136631
Sandwell Metropolitan Borough Council,http://www.sandwell.gov.uk/info/200202/performance_and_spending/1079/payments_over_500,06-Sep-2021,Individual School Budgets With Inclusion,REACH PSYCHOLOGY LTD,Individual School Budgets With Inclusion,2550.00,Externally Purchased Professional Services ,2122P06_CR00591,137823
Sandwell Metropolitan Borough Council,http://www.sandwell.gov.uk/info/200202/performance_and_spending/1079/payments_over_500,27-Sep-2021,Individual School Budgets With Inclusion,LONDON GRID FOR LEARNING TRUST,Individual School Budgets With Inclusion,2750.00,Licences,2122P06_CR00592,127283
Sandwell Metropolitan Borough Council,http://www.sandwell.gov.uk/info/200202/performance_and_spending/1079/payments_over_500,01-Sep-2021,Individual School Budgets With Inclusion,HOMECARE DIRECT LTD,Individual School Budgets With Inclusion,2875.08,Other Local Authorities,2122P06_CR00593,146933
Sandwell Metropolitan Borough Council,http://www.sandwell.gov.uk/info/200202/performance_and_spending/1079/payments_over_500,01-Sep-2021,Individual School Budgets With Inclusion,DUDLEY MBC,Individual School Budgets With Inclusion,2905.29,Other Local Authorities,2122P06_CR00594,01349846
Sandwell Metropolitan Borough Council,http://www.sandwell.gov.uk/info/200202/performance_and_spending/1079/payments_over_500,01-Sep-2021,Individual School Budgets With Inclusion,THE NATIONAL TEACHING & ADVISORY SERVICE LIMITED,Individual School Budgets With Inclusion,2990.00,Externally Purchased Professional Services ,2122P06_CR00595,01727359
Sandwell Metropolitan Borough Council,http://www.sandwell.gov.uk/info/200202/performance_and_spending/1079/payments_over_500,09-Sep-2021,Individual School Budgets With Inclusion,IMPACT EDUCATION AND TRAINING LIMITED,Individual School Budgets With Inclusion,3222.50,Other Establishments,2122P06_CR00596,97667
Sandwell Metropolitan Borough Council,http://www.sandwell.gov.uk/info/200202/performance_and_spending/1079/payments_over_500,07-Sep-2021,Individual School Budgets With Inclusion,ENVIRONMENTS FOR LEARNING SANDWELL PFI ONE LIMITED,Individual School Budgets With Inclusion,3264.67,PFI & PPP Schemes,2122P06_CR00597,98332
Sandwell Metropolitan Borough Council,http://www.sandwell.gov.uk/info/200202/performance_and_spending/1079/payments_over_500,01-Sep-2021,Individual School Budgets With Inclusion,GL EDUCATION GROUP LIMITED,Individual School Budgets With Inclusion,3276.80,Licences,2122P06_CR00598,01447883
Sandwell Metropolitan Borough Council,http://www.sandwell.gov.uk/info/200202/performance_and_spending/1079/payments_over_500,01-Sep-2021,Individual School Budgets With Inclusion,SANDWELL FUTURES LTD,Individual School Budgets With Inclusion,3456.20,Private Contractors,2122P06_CR00599,88151
Sandwell Metropolitan Borough Council,http://www.sandwell.gov.uk/info/200202/performance_and_spending/1079/payments_over_500,06-Sep-2021,Individual School Budgets With Inclusion,MOORLANDS LITTLE LEARNERS PLAYGROUP,Individual School Budgets With Inclusion,3600.00,Externally Purchased Professional Services ,2122P06_CR00600,46390
Sandwell Metropolitan Borough Council,http://www.sandwell.gov.uk/info/200202/performance_and_spending/1079/payments_over_500,01-Sep-2021,Individual School Budgets With Inclusion,THE NATIONAL TEACHING & ADVISORY SERVICE LIMITED,Individual School Budgets With Inclusion,3607.50,Externally Purchased Professional Services ,2122P06_CR00601,01727359
Sandwell Metropolitan Borough Council,http://www.sandwell.gov.uk/info/200202/performance_and_spending/1079/payments_over_500,15-Sep-2021,Individual School Budgets With Inclusion,KRUNCH UK,Individual School Budgets With Inclusion,3632.63,Externally Purchased Professional Services ,2122P06_CR00602,08588452
Sandwell Metropolitan Borough Council,http://www.sandwell.gov.uk/info/200202/performance_and_spending/1079/payments_over_500,01-Sep-2021,Individual School Budgets With Inclusion,LEASOWES HIGH SCHOOL,Individual School Budgets With Inclusion,3942.99,Other Local Authorities,2122P06_CR00603,119648
Sandwell Metropolitan Borough Council,http://www.sandwell.gov.uk/info/200202/performance_and_spending/1079/payments_over_500,01-Sep-2021,Individual School Budgets With Inclusion,LEASOWES HIGH SCHOOL,Individual School Budgets With Inclusion,3942.99,Other Local Authorities,2122P06_CR00604,119648
Sandwell Metropolitan Borough Council,http://www.sandwell.gov.uk/info/200202/performance_and_spending/1079/payments_over_500,01-Sep-2021,Individual School Budgets With Inclusion,WILSON STUART SCHOOL,Individual School Budgets With Inclusion,3971.00,Other Local Authorities,2122P06_CR00605,115237
Sandwell Metropolitan Borough Council,http://www.sandwell.gov.uk/info/200202/performance_and_spending/1079/payments_over_500,01-Sep-2021,Individual School Budgets With Inclusion,WILSON STUART SCHOOL,Individual School Budgets With Inclusion,3971.00,Other Local Authorities,2122P06_CR00606,115237
Sandwell Metropolitan Borough Council,http://www.sandwell.gov.uk/info/200202/performance_and_spending/1079/payments_over_500,01-Sep-2021,Individual School Budgets With Inclusion,WONDE LTD,Individual School Budgets With Inclusion,4200.00,Contract Catering,2122P06_CR00607,149233
Sandwell Metropolitan Borough Council,http://www.sandwell.gov.uk/info/200202/performance_and_spending/1079/payments_over_500,22-Sep-2021,Individual School Budgets With Inclusion,FORTIS ACADEMY,Individual School Budgets With Inclusion,4698.66,Other Local Authorities,2122P06_CR00608,137428
Sandwell Metropolitan Borough Council,http://www.sandwell.gov.uk/info/200202/performance_and_spending/1079/payments_over_500,01-Sep-2021,Individual School Budgets With Inclusion,THE EDUCATION DEVELOPMENT SERVICE LIMITED,Individual School Budgets With Inclusion,5250.00,Other Establishments,2122P06_CR00609,104614
Sandwell Metropolitan Borough Council,http://www.sandwell.gov.uk/info/200202/performance_and_spending/1079/payments_over_500,10-Sep-2021,Individual School Budgets With Inclusion,CITY UNITED LIMITED,Individual School Budgets With Inclusion,5333.33,Other Establishments,2122P06_CR00610,74261
Sandwell Metropolitan Borough Council,http://www.sandwell.gov.uk/info/200202/performance_and_spending/1079/payments_over_500,09-Sep-2021,Individual School Budgets With Inclusion,ST GEORGES SCHOOL EDGBASTON,Individual School Budgets With Inclusion,6046.67,Other Establishments,2122P06_CR00611,131335
Sandwell Metropolitan Borough Council,http://www.sandwell.gov.uk/info/200202/performance_and_spending/1079/payments_over_500,01-Sep-2021,Individual School Budgets With Inclusion,ORBIS EDUCATION AND CARE LTD,Individual School Budgets With Inclusion,6152.79,Other Establishments,2122P06_CR00612,140984
Sandwell Metropolitan Borough Council,http://www.sandwell.gov.uk/info/200202/performance_and_spending/1079/payments_over_500,01-Sep-2021,Individual School Budgets With Inclusion,WILSON STUART SCHOOL,Individual School Budgets With Inclusion,6268.00,Other Local Authorities,2122P06_CR00613,115237
Sandwell Metropolitan Borough Council,http://www.sandwell.gov.uk/info/200202/performance_and_spending/1079/payments_over_500,01-Sep-2021,Individual School Budgets With Inclusion,WILSON STUART SCHOOL,Individual School Budgets With Inclusion,6268.00,Other Local Authorities,2122P06_CR00614,115237
Sandwell Metropolitan Borough Council,http://www.sandwell.gov.uk/info/200202/performance_and_spending/1079/payments_over_500,01-Sep-2021,Individual School Budgets With Inclusion,WILSON STUART SCHOOL,Individual School Budgets With Inclusion,6268.00,Other Local Authorities,2122P06_CR00615,115237
Sandwell Metropolitan Borough Council,http://www.sandwell.gov.uk/info/200202/performance_and_spending/1079/payments_over_500,01-Sep-2021,Individual School Budgets With Inclusion,SKYBOUND THERAPIES LTD,Individual School Budgets With Inclusion,6738.81,Other Local Authorities,2122P06_CR00616,144066
Sandwell Metropolitan Borough Council,http://www.sandwell.gov.uk/info/200202/performance_and_spending/1079/payments_over_500,02-Sep-2021,Individual School Budgets With Inclusion,BLACKWATER ACADEMY,Individual School Budgets With Inclusion,7000.00,Other Establishments,2122P06_CR00617,129151
Sandwell Metropolitan Borough Council,http://www.sandwell.gov.uk/info/200202/performance_and_spending/1079/payments_over_500,02-Sep-2021,Individual School Budgets With Inclusion,ACORN CARE AND EDUCATION LIMITED,Individual School Budgets With Inclusion,7084.93,Other Establishments,2122P06_CR00618,115235
Sandwell Metropolitan Borough Council,http://www.sandwell.gov.uk/info/200202/performance_and_spending/1079/payments_over_500,01-Sep-2021,Individual School Budgets With Inclusion,WORCESTERSHIRE COUNTY COUNCIL,Individual School Budgets With Inclusion,7133.34,Other Local Authorities,2122P06_CR00619,01719134
Sandwell Metropolitan Borough Council,http://www.sandwell.gov.uk/info/200202/performance_and_spending/1079/payments_over_500,02-Sep-2021,Individual School Budgets With Inclusion,ACORN CARE AND EDUCATION LIMITED,Individual School Budgets With Inclusion,7321.10,Other Establishments,2122P06_CR00620,115235
Sandwell Metropolitan Borough Council,http://www.sandwell.gov.uk/info/200202/performance_and_spending/1079/payments_over_500,02-Sep-2021,Individual School Budgets With Inclusion,ACORN CARE AND EDUCATION LIMITED,Individual School Budgets With Inclusion,7321.10,Other Establishments,2122P06_CR00621,115235
Sandwell Metropolitan Borough Council,http://www.sandwell.gov.uk/info/200202/performance_and_spending/1079/payments_over_500,01-Sep-2021,Individual School Budgets With Inclusion,NEWBURY SCHOOL LTD,Individual School Budgets With Inclusion,8500.67,Other Establishments,2122P06_CR00622,153981
Sandwell Metropolitan Borough Council,http://www.sandwell.gov.uk/info/200202/performance_and_spending/1079/payments_over_500,02-Sep-2021,Individual School Budgets With Inclusion,VALUES ACADEMY,Individual School Budgets With Inclusion,8535.00,Other Establishments,2122P06_CR00623,128203
Sandwell Metropolitan Borough Council,http://www.sandwell.gov.uk/info/200202/performance_and_spending/1079/payments_over_500,01-Sep-2021,Individual School Budgets With Inclusion,DELL TECHNOLOGIES LTD,Individual School Budgets With Inclusion,10973.50,ICT ,2122P06_CR00624,152889
Sandwell Metropolitan Borough Council,http://www.sandwell.gov.uk/info/200202/performance_and_spending/1079/payments_over_500,07-Sep-2021,Individual School Budgets With Inclusion,ENVIRONMENTS FOR LEARNING SANDWELL PFI ONE LIMITED,Individual School Budgets With Inclusion,11356.09,PFI & PPP Schemes,2122P06_CR00625,98332
Sandwell Metropolitan Borough Council,http://www.sandwell.gov.uk/info/200202/performance_and_spending/1079/payments_over_500,01-Sep-2021,Individual School Budgets With Inclusion,SANDWELL & WEST BIRMINGHAM HOSPITALS NHS TRUST,Individual School Budgets With Inclusion,15811.00,Health Authorities,2122P06_CR00626,1385
Sandwell Metropolitan Borough Council,http://www.sandwell.gov.uk/info/200202/performance_and_spending/1079/payments_over_500,01-Sep-2021,Individual School Budgets With Inclusion,NEWBURY SCHOOL LTD,Individual School Budgets With Inclusion,16300.67,Other Establishments,2122P06_CR00627,153981
Sandwell Metropolitan Borough Council,http://www.sandwell.gov.uk/info/200202/performance_and_spending/1079/payments_over_500,01-Sep-2021,Individual School Budgets With Inclusion,NEWBURY SCHOOL LTD,Individual School Budgets With Inclusion,16300.67,Other Establishments,2122P06_CR00628,153981
Sandwell Metropolitan Borough Council,http://www.sandwell.gov.uk/info/200202/performance_and_spending/1079/payments_over_500,13-Sep-2021,Individual School Budgets With Inclusion,SANDWELL GENERAL UNISON BRANCH,Individual School Budgets With Inclusion,16434.00,Externally Purchased Professional Services ,2122P06_CR00629,126714
Sandwell Metropolitan Borough Council,http://www.sandwell.gov.uk/info/200202/performance_and_spending/1079/payments_over_500,10-Sep-2021,Individual School Budgets With Inclusion,CITY UNITED LIMITED,Individual School Budgets With Inclusion,16524.30,Other Establishments,2122P06_CR00630,74261
Sandwell Metropolitan Borough Council,http://www.sandwell.gov.uk/info/200202/performance_and_spending/1079/payments_over_500,27-Sep-2021,Individual School Budgets With Inclusion,LONDON GRID FOR LEARNING TRUST,Individual School Budgets With Inclusion,18307.00,Licences,2122P06_CR00631,127283
Sandwell Metropolitan Borough Council,http://www.sandwell.gov.uk/info/200202/performance_and_spending/1079/payments_over_500,01-Sep-2021,Individual School Budgets With Inclusion,THE ROWAN SCHOOL,Individual School Budgets With Inclusion,21194.36,Other Establishments,2122P06_CR00632,139765
Sandwell Metropolitan Borough Council,http://www.sandwell.gov.uk/info/200202/performance_and_spending/1079/payments_over_500,01-Sep-2021,Individual School Budgets With Inclusion,SPRING HILL HIGH SCHOOL,Individual School Budgets With Inclusion,21983.67,Other Establishments,2122P06_CR00633,105656
Sandwell Metropolitan Borough Council,http://www.sandwell.gov.uk/info/200202/performance_and_spending/1079/payments_over_500,01-Sep-2021,Individual School Budgets With Inclusion,SANDWELL FUTURES LTD,Individual School Budgets With Inclusion,23539.36,Private Contractors,2122P06_CR00634,88151
Sandwell Metropolitan Borough Council,http://www.sandwell.gov.uk/info/200202/performance_and_spending/1079/payments_over_500,01-Sep-2021,Individual School Budgets With Inclusion,TRUANCY CALL LIMITED,Individual School Budgets With Inclusion,37065.60,Externally Purchased Professional Services ,2122P06_CR00635,01724305
Sandwell Metropolitan Borough Council,http://www.sandwell.gov.uk/info/200202/performance_and_spending/1079/payments_over_500,01-Sep-2021,Individual School Budgets With Inclusion,ORBIS EDUCATION AND CARE LTD,Individual School Budgets With Inclusion,42546.34,Other Establishments,2122P06_CR00636,140984
Sandwell Metropolitan Borough Council,http://www.sandwell.gov.uk/info/200202/performance_and_spending/1079/payments_over_500,01-Sep-2021,Individual School Budgets With Inclusion,WORK N LEARN LIMITED,Individual School Budgets With Inclusion,51700.00,Externally Purchased Professional Services ,2122P06_CR00637,130458
Sandwell Metropolitan Borough Council,http://www.sandwell.gov.uk/info/200202/performance_and_spending/1079/payments_over_500,01-Sep-2021,Individual School Budgets With Inclusion,THE WESTMINISTER SPECIALIST COLLEGE,Individual School Budgets With Inclusion,70200.00,Externally Purchased Professional Services ,2122P06_CR00638,154438
Sandwell Metropolitan Borough Council,http://www.sandwell.gov.uk/info/200202/performance_and_spending/1079/payments_over_500,13-Sep-2021,Individual School Budgets With Inclusion,BOW STREET SCHOOL LTD,Individual School Budgets With Inclusion,96015.60,Other Establishments,2122P06_CR00639,115236
Sandwell Metropolitan Borough Council,http://www.sandwell.gov.uk/info/200202/performance_and_spending/1079/payments_over_500,07-Sep-2021,Individual School Budgets With Inclusion,SANDWELL FUTURES LTD,Individual School Budgets With Inclusion,98375.36,Private Contractors,2122P06_CR00640,88151
Sandwell Metropolitan Borough Council,http://www.sandwell.gov.uk/info/200202/performance_and_spending/1079/payments_over_500,07-Sep-2021,Individual School Budgets With Inclusion,SANDWELL FUTURES LTD,Individual School Budgets With Inclusion,114421.01,Private Contractors,2122P06_CR00641,88151
Sandwell Metropolitan Borough Council,http://www.sandwell.gov.uk/info/200202/performance_and_spending/1079/payments_over_500,07-Sep-2021,Individual School Budgets With Inclusion,SANDWELL FUTURES LTD,Individual School Budgets With Inclusion,116377.68,Private Contractors,2122P06_CR00642,88151
Sandwell Metropolitan Borough Council,http://www.sandwell.gov.uk/info/200202/performance_and_spending/1079/payments_over_500,07-Sep-2021,Individual School Budgets With Inclusion,SANDWELL FUTURES LTD,Individual School Budgets With Inclusion,120318.86,Private Contractors,2122P06_CR00643,88151
Sandwell Metropolitan Borough Council,http://www.sandwell.gov.uk/info/200202/performance_and_spending/1079/payments_over_500,10-Sep-2021,Individual School Budgets With Inclusion,SANDWELL FUTURES LTD,Individual School Budgets With Inclusion,129114.50,Private Contractors,2122P06_CR00644,88151
Sandwell Metropolitan Borough Council,http://www.sandwell.gov.uk/info/200202/performance_and_spending/1079/payments_over_500,01-Sep-2021,Individual School Budgets With Inclusion,SANDWELL COLLEGE,Individual School Budgets With Inclusion,204481.14,Externally Purchased Professional Services ,2122P06_CR00645,01529345
Sandwell Metropolitan Borough Council,http://www.sandwell.gov.uk/info/200202/performance_and_spending/1079/payments_over_500,01-Sep-2021,Individual School Budgets With Inclusion,TOTAL SCHOOL SOLUTIONS (SANDWELL) LTD,Individual School Budgets With Inclusion,234823.83,PFI & PPP Schemes,2122P06_CR00646,34284
Sandwell Metropolitan Borough Council,http://www.sandwell.gov.uk/info/200202/performance_and_spending/1079/payments_over_500,07-Sep-2021,Individual School Budgets With Inclusion,ENVIRONMENTS FOR LEARNING SANDWELL PFI ONE LIMITED,Individual School Budgets With Inclusion,592500.40,PFI & PPP Schemes,2122P06_CR00647,98332
Sandwell Metropolitan Borough Council,http://www.sandwell.gov.uk/info/200202/performance_and_spending/1079/payments_over_500,01-Sep-2021,Individual School Budgets With Inclusion,CAUSEWAY GREEN PRIMARY SCHOOL                           02,Individual School Budgets With Inclusion,572.40,Grant Payments,2122P06_CR00648,60976
Sandwell Metropolitan Borough Council,http://www.sandwell.gov.uk/info/200202/performance_and_spending/1079/payments_over_500,01-Sep-2021,Individual School Budgets With Inclusion,FERNDALE PRIMARY SCHOOL                                    01,Individual School Budgets With Inclusion,572.40,Grant Payments,2122P06_CR00649,11562
Sandwell Metropolitan Borough Council,http://www.sandwell.gov.uk/info/200202/performance_and_spending/1079/payments_over_500,01-Sep-2021,Individual School Budgets With Inclusion,HOLYHEAD PRIMARY ACADEMY           02,Individual School Budgets With Inclusion,572.40,Grant Payments,2122P06_CR00650,61005
Sandwell Metropolitan Borough Council,http://www.sandwell.gov.uk/info/200202/performance_and_spending/1079/payments_over_500,01-Sep-2021,Individual School Budgets With Inclusion,KING GEORGE V PRIMARY SCHOOL                                             02,Individual School Budgets With Inclusion,572.40,Grant Payments,2122P06_CR00651,61009
Sandwell Metropolitan Borough Council,http://www.sandwell.gov.uk/info/200202/performance_and_spending/1079/payments_over_500,22-Sep-2021,Individual School Budgets With Inclusion,BRIGHT LIGHTS DAY NURSERY,Individual School Budgets With Inclusion,615.00,Grant Payments,2122P06_CR00652,89877
Sandwell Metropolitan Borough Council,http://www.sandwell.gov.uk/info/200202/performance_and_spending/1079/payments_over_500,22-Sep-2021,Individual School Budgets With Inclusion,LAVENDER FARM DAY NURSERY,Individual School Budgets With Inclusion,615.00,Grant Payments,2122P06_CR00653,65596
Sandwell Metropolitan Borough Council,http://www.sandwell.gov.uk/info/200202/performance_and_spending/1079/payments_over_500,01-Sep-2021,Individual School Budgets With Inclusion,BLACKHEATH PRIMARY SCHOOL                            02,Individual School Budgets With Inclusion,667.80,Grant Payments,2122P06_CR00654,60968
Sandwell Metropolitan Borough Council,http://www.sandwell.gov.uk/info/200202/performance_and_spending/1079/payments_over_500,01-Sep-2021,Individual School Budgets With Inclusion,GALTON VALLEY PRIMARY SCHOOL                                             02,Individual School Budgets With Inclusion,667.80,Grant Payments,2122P06_CR00655,73124
Sandwell Metropolitan Borough Council,http://www.sandwell.gov.uk/info/200202/performance_and_spending/1079/payments_over_500,01-Sep-2021,Individual School Budgets With Inclusion,ROOD END PRIMARY SCHOOL                                         02,Individual School Budgets With Inclusion,667.80,Grant Payments,2122P06_CR00656,61044
Sandwell Metropolitan Borough Council,http://www.sandwell.gov.uk/info/200202/performance_and_spending/1079/payments_over_500,01-Sep-2021,Individual School Budgets With Inclusion,RYDERS GREEN PRIMARY SCHOOL                                           02,Individual School Budgets With Inclusion,667.80,Grant Payments,2122P06_CR00657,61047
Sandwell Metropolitan Borough Council,http://www.sandwell.gov.uk/info/200202/performance_and_spending/1079/payments_over_500,01-Sep-2021,Individual School Budgets With Inclusion,HOLY TRINITY CE PRIMARY                                    02,Individual School Budgets With Inclusion,763.20,Grant Payments,2122P06_CR00658,61004
Sandwell Metropolitan Borough Council,http://www.sandwell.gov.uk/info/200202/performance_and_spending/1079/payments_over_500,01-Sep-2021,Individual School Budgets With Inclusion,GLEBEFIELDS PRIMARY SCHOOL                             02,Individual School Budgets With Inclusion,763.20,Grant Payments,2122P06_CR00659,60989
Sandwell Metropolitan Borough Council,http://www.sandwell.gov.uk/info/200202/performance_and_spending/1079/payments_over_500,01-Sep-2021,Individual School Budgets With Inclusion,GREAT BRIDGE PRIMARY SCHOOL                          02,Individual School Budgets With Inclusion,763.20,Grant Payments,2122P06_CR00660,42484
Sandwell Metropolitan Borough Council,http://www.sandwell.gov.uk/info/200202/performance_and_spending/1079/payments_over_500,01-Sep-2021,Individual School Budgets With Inclusion,MOAT FARM INFANTS SCHOOL                                     02,Individual School Budgets With Inclusion,763.20,Grant Payments,2122P06_CR00661,61031
Sandwell Metropolitan Borough Council,http://www.sandwell.gov.uk/info/200202/performance_and_spending/1079/payments_over_500,01-Sep-2021,Individual School Budgets With Inclusion,NEWTOWN PRIMARY ACADEMY                                             02,Individual School Budgets With Inclusion,763.20,Grant Payments,2122P06_CR00662,61034
Sandwell Metropolitan Borough Council,http://www.sandwell.gov.uk/info/200202/performance_and_spending/1079/payments_over_500,01-Sep-2021,Individual School Budgets With Inclusion,CAPE PRIMARY SCHOOL,Individual School Budgets With Inclusion,858.60,Grant Payments,2122P06_CR00663,01672537
Sandwell Metropolitan Borough Council,http://www.sandwell.gov.uk/info/200202/performance_and_spending/1079/payments_over_500,01-Sep-2021,Individual School Budgets With Inclusion,CROCKETTS LANE COMMUNITY PRIMARY SCHOOL                           02,Individual School Budgets With Inclusion,858.60,Grant Payments,2122P06_CR00664,60980
Sandwell Metropolitan Borough Council,http://www.sandwell.gov.uk/info/200202/performance_and_spending/1079/payments_over_500,01-Sep-2021,Individual School Budgets With Inclusion,HALL GREEN PRIMARY SCHOOL                                             02,Individual School Budgets With Inclusion,858.60,Grant Payments,2122P06_CR00665,60996
Sandwell Metropolitan Borough Council,http://www.sandwell.gov.uk/info/200202/performance_and_spending/1079/payments_over_500,01-Sep-2021,Individual School Budgets With Inclusion,HAMSTEAD INFANT SCHOOL                                  02,Individual School Budgets With Inclusion,858.60,Grant Payments,2122P06_CR00666,60997
Sandwell Metropolitan Borough Council,http://www.sandwell.gov.uk/info/200202/performance_and_spending/1079/payments_over_500,01-Sep-2021,Individual School Budgets With Inclusion,HATELEY HEATH PRIMARY ACADEMY                                02,Individual School Budgets With Inclusion,858.60,Grant Payments,2122P06_CR00667,61000
Sandwell Metropolitan Borough Council,http://www.sandwell.gov.uk/info/200202/performance_and_spending/1079/payments_over_500,01-Sep-2021,Individual School Budgets With Inclusion,JUBILEE PARK ACADEMY TRUST,Individual School Budgets With Inclusion,858.60,Grant Payments,2122P06_CR00668,113377
Sandwell Metropolitan Borough Council,http://www.sandwell.gov.uk/info/200202/performance_and_spending/1079/payments_over_500,01-Sep-2021,Individual School Budgets With Inclusion,PENNYHILL PRIMARY SCHOOL,Individual School Budgets With Inclusion,858.60,Grant Payments,2122P06_CR00669,73032
Sandwell Metropolitan Borough Council,http://www.sandwell.gov.uk/info/200202/performance_and_spending/1079/payments_over_500,01-Sep-2021,Individual School Budgets With Inclusion,REDDAL HILL PRIMARY SCHOOL             02,Individual School Budgets With Inclusion,858.60,Grant Payments,2122P06_CR00670,61043
Sandwell Metropolitan Borough Council,http://www.sandwell.gov.uk/info/200202/performance_and_spending/1079/payments_over_500,01-Sep-2021,Individual School Budgets With Inclusion,SHIRELAND HALL PRIMARY ACADEMY,Individual School Budgets With Inclusion,858.60,Grant Payments,2122P06_CR00671,15209
Sandwell Metropolitan Borough Council,http://www.sandwell.gov.uk/info/200202/performance_and_spending/1079/payments_over_500,01-Sep-2021,Individual School Budgets With Inclusion,ST PHILIPS CATHOLIC PRIMARY                           02,Individual School Budgets With Inclusion,954.00,Grant Payments,2122P06_CR00672,61063
Sandwell Metropolitan Borough Council,http://www.sandwell.gov.uk/info/200202/performance_and_spending/1079/payments_over_500,01-Sep-2021,Individual School Budgets With Inclusion,ABBEY INFANT SCHOOL                                             02,Individual School Budgets With Inclusion,954.00,Grant Payments,2122P06_CR00673,60959
Sandwell Metropolitan Borough Council,http://www.sandwell.gov.uk/info/200202/performance_and_spending/1079/payments_over_500,01-Sep-2021,Individual School Budgets With Inclusion,BURNT TREE PRIMARY SCHOOL                                             01,Individual School Budgets With Inclusion,954.00,Grant Payments,2122P06_CR00674,60974
Sandwell Metropolitan Borough Council,http://www.sandwell.gov.uk/info/200202/performance_and_spending/1079/payments_over_500,01-Sep-2021,Individual School Budgets With Inclusion,EATON VALLEY PRIMARY SCHOOL,Individual School Budgets With Inclusion,954.00,Grant Payments,2122P06_CR00675,60981
Sandwell Metropolitan Borough Council,http://www.sandwell.gov.uk/info/200202/performance_and_spending/1079/payments_over_500,01-Sep-2021,Individual School Budgets With Inclusion,OLD PARK PRIMARY SCHOOL                                           02,Individual School Budgets With Inclusion,954.00,Grant Payments,2122P06_CR00676,61039
Sandwell Metropolitan Borough Council,http://www.sandwell.gov.uk/info/200202/performance_and_spending/1079/payments_over_500,01-Sep-2021,Individual School Budgets With Inclusion,SACRED HEART PRIMARY SCHOOL                                             01,Individual School Budgets With Inclusion,954.00,Grant Payments,2122P06_CR00677,61048
Sandwell Metropolitan Borough Council,http://www.sandwell.gov.uk/info/200202/performance_and_spending/1079/payments_over_500,01-Sep-2021,Individual School Budgets With Inclusion,SHIRELAND COLLEGIATE ACADEMY TRUST T/A TAMESIDE,Individual School Budgets With Inclusion,954.00,Grant Payments,2122P06_CR00678,61064
Sandwell Metropolitan Borough Council,http://www.sandwell.gov.uk/info/200202/performance_and_spending/1079/payments_over_500,01-Sep-2021,Individual School Budgets With Inclusion,SPRINGFIELD PRIMARY SCHOOL                                       02,Individual School Budgets With Inclusion,954.00,Grant Payments,2122P06_CR00679,61050
Sandwell Metropolitan Borough Council,http://www.sandwell.gov.uk/info/200202/performance_and_spending/1079/payments_over_500,01-Sep-2021,Individual School Budgets With Inclusion,TEMPLE MEADOW PRIMARY SCHOOL                                 02,Individual School Budgets With Inclusion,954.00,Grant Payments,2122P06_CR00680,61065
Sandwell Metropolitan Borough Council,http://www.sandwell.gov.uk/info/200202/performance_and_spending/1079/payments_over_500,01-Sep-2021,Individual School Budgets With Inclusion,LANGLEY PRIMARY SCHOOL                                 02,Individual School Budgets With Inclusion,1049.40,Grant Payments,2122P06_CR00681,61011
Sandwell Metropolitan Borough Council,http://www.sandwell.gov.uk/info/200202/performance_and_spending/1079/payments_over_500,01-Sep-2021,Individual School Budgets With Inclusion,LYNG PRIMARY SCHOOL                                        02,Individual School Budgets With Inclusion,1049.40,Grant Payments,2122P06_CR00682,61026
Sandwell Metropolitan Borough Council,http://www.sandwell.gov.uk/info/200202/performance_and_spending/1079/payments_over_500,01-Sep-2021,Individual School Budgets With Inclusion,JOSEPH TURNER PRIMARY SCHOOL                               02,Individual School Budgets With Inclusion,1144.80,Grant Payments,2122P06_CR00683,61006
Sandwell Metropolitan Borough Council,http://www.sandwell.gov.uk/info/200202/performance_and_spending/1079/payments_over_500,01-Sep-2021,Individual School Budgets With Inclusion,MESTY CROFT ACADEMY                                                           01,Individual School Budgets With Inclusion,1144.80,Grant Payments,2122P06_CR00684,04017193
Sandwell Metropolitan Borough Council,http://www.sandwell.gov.uk/info/200202/performance_and_spending/1079/payments_over_500,01-Sep-2021,Individual School Budgets With Inclusion,BEARWOOD PRIMARY SCHOOL,Individual School Budgets With Inclusion,1240.20,Grant Payments,2122P06_CR00685,21030798
Sandwell Metropolitan Borough Council,http://www.sandwell.gov.uk/info/200202/performance_and_spending/1079/payments_over_500,01-Sep-2021,Individual School Budgets With Inclusion,PARK HILL PRIMARY SCHOOL,Individual School Budgets With Inclusion,1240.20,Grant Payments,2122P06_CR00686,04017201
Sandwell Metropolitan Borough Council,http://www.sandwell.gov.uk/info/200202/performance_and_spending/1079/payments_over_500,01-Sep-2021,Individual School Budgets With Inclusion,ST JAMES C OF E PRIMARY SCHOOL,Individual School Budgets With Inclusion,1240.20,Grant Payments,2122P06_CR00687,61054
Sandwell Metropolitan Borough Council,http://www.sandwell.gov.uk/info/200202/performance_and_spending/1079/payments_over_500,01-Sep-2021,Individual School Budgets With Inclusion,YEW TREE PRIMARY SCHOOL                         02,Individual School Budgets With Inclusion,1240.20,Grant Payments,2122P06_CR00688,61078
Sandwell Metropolitan Borough Council,http://www.sandwell.gov.uk/info/200202/performance_and_spending/1079/payments_over_500,01-Sep-2021,Individual School Budgets With Inclusion,DEVONSHIRE INFANTS ACADEMY,Individual School Budgets With Inclusion,1431.00,Grant Payments,2122P06_CR00689,118366
Sandwell Metropolitan Borough Council,http://www.sandwell.gov.uk/info/200202/performance_and_spending/1079/payments_over_500,01-Sep-2021,Individual School Budgets With Inclusion,HARGATE PRIMARY SCHOOL                                   02,Individual School Budgets With Inclusion,1431.00,Grant Payments,2122P06_CR00690,60999
Sandwell Metropolitan Borough Council,http://www.sandwell.gov.uk/info/200202/performance_and_spending/1079/payments_over_500,01-Sep-2021,Individual School Budgets With Inclusion,SILVERTREES ACADEMY TRUST,Individual School Budgets With Inclusion,1431.00,Grant Payments,2122P06_CR00691,113719
Sandwell Metropolitan Borough Council,http://www.sandwell.gov.uk/info/200202/performance_and_spending/1079/payments_over_500,01-Sep-2021,Individual School Budgets With Inclusion,ROUNDS GREEN PRIMARY SCHOOL                                         02,Individual School Budgets With Inclusion,1526.40,Grant Payments,2122P06_CR00692,61045
Sandwell Metropolitan Borough Council,http://www.sandwell.gov.uk/info/200202/performance_and_spending/1079/payments_over_500,01-Sep-2021,Individual School Budgets With Inclusion,THE RIVERS MULTI ACADEMY TRUST,Individual School Budgets With Inclusion,1621.80,Grant Payments,2122P06_CR00693,61014
Sandwell Metropolitan Borough Council,http://www.sandwell.gov.uk/info/200202/performance_and_spending/1079/payments_over_500,01-Sep-2021,Individual School Budgets With Inclusion,UPLANDS MANOR PRIMARY               02,Individual School Budgets With Inclusion,1717.20,Grant Payments,2122P06_CR00694,61071
Sandwell Metropolitan Borough Council,http://www.sandwell.gov.uk/info/200202/performance_and_spending/1079/payments_over_500,01-Sep-2021,Individual School Budgets With Inclusion,THE PRIORY PRIMARY,Individual School Budgets With Inclusion,1908.00,Grant Payments,2122P06_CR00695,01746051
Sandwell Metropolitan Borough Council,http://www.sandwell.gov.uk/info/200202/performance_and_spending/1079/payments_over_500,01-Sep-2021,Individual School Budgets With Inclusion,HANBURY PRIMARY SCHOOL                                                             01,Individual School Budgets With Inclusion,1908.00,Grant Payments,2122P06_CR00696,60995
Sandwell Metropolitan Borough Council,http://www.sandwell.gov.uk/info/200202/performance_and_spending/1079/payments_over_500,01-Sep-2021,Individual School Budgets With Inclusion,BRANDHALL PRIMARY SCHOOL                                          02,Individual School Budgets With Inclusion,2480.40,Grant Payments,2122P06_CR00697,60971
Sandwell Metropolitan Borough Council,http://www.sandwell.gov.uk/info/200202/performance_and_spending/1079/payments_over_500,01-Sep-2021,Individual School Budgets With Inclusion,BURNT TREE PRIMARY SCHOOL                                             01,Individual School Budgets With Inclusion,3990.00,Grants,2122P06_CR00698,60974
Sandwell Metropolitan Borough Council,http://www.sandwell.gov.uk/info/200202/performance_and_spending/1079/payments_over_500,23-Sep-2021,Individual School Budgets With Inclusion,REDACTED PERSONAL DATA,Individual School Budgets With Inclusion,564.90,Grant Payments,2122P06_CR00699,REDACTED PERSONAL DATA
Sandwell Metropolitan Borough Council,http://www.sandwell.gov.uk/info/200202/performance_and_spending/1079/payments_over_500,23-Sep-2021,Individual School Budgets With Inclusion,REDACTED PERSONAL DATA,Individual School Budgets With Inclusion,564.90,Grant Payments,2122P06_CR00700,REDACTED PERSONAL DATA
Sandwell Metropolitan Borough Council,http://www.sandwell.gov.uk/info/200202/performance_and_spending/1079/payments_over_500,23-Sep-2021,Individual School Budgets With Inclusion,BLUEBELLS DAY NURSERY,Individual School Budgets With Inclusion,847.35,Grant Payments,2122P06_CR00701,01721314
Sandwell Metropolitan Borough Council,http://www.sandwell.gov.uk/info/200202/performance_and_spending/1079/payments_over_500,23-Sep-2021,Individual School Budgets With Inclusion,REDACTED PERSONAL DATA,Individual School Budgets With Inclusion,847.35,Grant Payments,2122P06_CR00702,REDACTED PERSONAL DATA
Sandwell Metropolitan Borough Council,http://www.sandwell.gov.uk/info/200202/performance_and_spending/1079/payments_over_500,23-Sep-2021,Individual School Budgets With Inclusion,TIMBERTREE (ACADEMY) PRIMARY SCHOOL,Individual School Budgets With Inclusion,847.35,Grant Payments,2122P06_CR00703,112804
Sandwell Metropolitan Borough Council,http://www.sandwell.gov.uk/info/200202/performance_and_spending/1079/payments_over_500,23-Sep-2021,Individual School Budgets With Inclusion,TULIP DAY NURSERY LTD,Individual School Budgets With Inclusion,847.35,Grant Payments,2122P06_CR00704,152250
Sandwell Metropolitan Borough Council,http://www.sandwell.gov.uk/info/200202/performance_and_spending/1079/payments_over_500,23-Sep-2021,Individual School Budgets With Inclusion,LITTLE ANGELS DAY NURSERY LIMITED,Individual School Budgets With Inclusion,1129.80,Grant Payments,2122P06_CR00705,10207
Sandwell Metropolitan Borough Council,http://www.sandwell.gov.uk/info/200202/performance_and_spending/1079/payments_over_500,23-Sep-2021,Individual School Budgets With Inclusion,LOLA BELLES PRIVATE DAY NURSERY,Individual School Budgets With Inclusion,1129.80,Grant Payments,2122P06_CR00706,89271
Sandwell Metropolitan Borough Council,http://www.sandwell.gov.uk/info/200202/performance_and_spending/1079/payments_over_500,23-Sep-2021,Individual School Budgets With Inclusion,CATHERINE HOUSE DAY NURSERY,Individual School Budgets With Inclusion,1412.25,Grant Payments,2122P06_CR00707,08587767
Sandwell Metropolitan Borough Council,http://www.sandwell.gov.uk/info/200202/performance_and_spending/1079/payments_over_500,23-Sep-2021,Individual School Budgets With Inclusion,JOYFUL CHILDRENS NURSERY,Individual School Budgets With Inclusion,1412.25,Grant Payments,2122P06_CR00708,150961
Sandwell Metropolitan Borough Council,http://www.sandwell.gov.uk/info/200202/performance_and_spending/1079/payments_over_500,23-Sep-2021,Individual School Budgets With Inclusion,LITTLE ACADEMY NURSERY,Individual School Budgets With Inclusion,1412.25,Grant Payments,2122P06_CR00709,81904
Sandwell Metropolitan Borough Council,http://www.sandwell.gov.uk/info/200202/performance_and_spending/1079/payments_over_500,23-Sep-2021,Individual School Budgets With Inclusion,REDACTED PERSONAL DATA,Individual School Budgets With Inclusion,1412.25,Grant Payments,2122P06_CR00710,REDACTED PERSONAL DATA
Sandwell Metropolitan Borough Council,http://www.sandwell.gov.uk/info/200202/performance_and_spending/1079/payments_over_500,23-Sep-2021,Individual School Budgets With Inclusion,PITTA PATTA DAYCARE,Individual School Budgets With Inclusion,1694.70,Grant Payments,2122P06_CR00711,114742
Sandwell Metropolitan Borough Council,http://www.sandwell.gov.uk/info/200202/performance_and_spending/1079/payments_over_500,23-Sep-2021,Individual School Budgets With Inclusion,ABC DAY NURSERY & PRE SCHOOL LTD,Individual School Budgets With Inclusion,1694.70,Grant Payments,2122P06_CR00712,01472823
Sandwell Metropolitan Borough Council,http://www.sandwell.gov.uk/info/200202/performance_and_spending/1079/payments_over_500,23-Sep-2021,Individual School Budgets With Inclusion,BOOKWORMS DAYCARE LIMITED,Individual School Budgets With Inclusion,1694.70,Grant Payments,2122P06_CR00713,114741
